Workbook

Sheet Titolare
B1: Titolare Licenza d'uso
B2: Titolo
B3: Cognome
B4: Nome
B5: Codice Fiscale
B6: P.Iva
B7: Indirizzo
B8: CAP
B9: Città
B10: Provincia
B11: Telefono
B12: Mail
B13: Codice Univoco
B14: Mail/Pec
A15: TRUE
B16: Versione Demo
B19: Guida | C19: https://www.madosoft.it/prodotti/superbonus110/pratica-110-xlsm
B20: Introduzione
B21: Download
B22: Attivazione Software
B23: Dati Generali
B24: Tipologia Edificio
B25: Dati Progetto
B26: Committenti
B27: Unità Immobiliari
B28: Computo Massimali
B29: Interventi Trainanti
B30: Interventi Trainati Parti Comuni condominiali
B31: Interventi Trainanti Unità Immobiliari

Sheet Dati Gen
B1: https://www.madosoft.it/prodotti/superbonus110/pratica-110-xlsm | P1: 1 | Q1: 1
A2: 0 | K2: Pratica.110plus | Q2: Edificio Unifamiliare
B3: PRATICA SUPERBONUS 110% | F3: N. | G3: 1 | K3: Vers.ne | L3: 2.1 | P3: 1 | Q3: 1
B4: Tipologia Immobile | K4: ©2021 SIM srl - www.madosoft.it
B5: 1 | F5: 2 | G5: 1 | H5: =IF(TipoEdif=2,"Denominazione : ","") ->  | Q5: Edificio Unifamiliare
B6: =IF(TipoEdif=1, IF(N_Uimm>1,"Inserire N.Unità Immobiliari =1",""),IF(N_Uimm<=1,"Inserire N.Unità Immobiliari >=2","")) ->  | H6: =IF(TipoEdif=2,"Codice Fiscale : ","") ->  | Q6: Condominio
B7: Dati Edificio | Q7: 1
B8: Comune di Ubicazione | M8: CAP | Q8: =Q7+1 -> 2
B9: Indirizzo | M9: N. | Q9: =Q8+1 -> 3
B10: =IF(TipoEdif=2,"","Dati Catastali") -> Dati Catastali | E10: =IF(TipoEdif=2,"","Foglio") -> Foglio | H10: =IF(TipoEdif=2,"","Particella") -> Particella | K10: =IF(TipoEdif=2,"","Sub.") -> Sub. | M10: =IF(TipoEdif=2,"","CAT.") -> CAT. | Q10: 4
B11: Anno di Costruzione Immobile | H11: Superficie Totale Disperdente : | Q11: 5
B12: Autorizzazione Edilizia | E12: Licenza Edilizia / Titolo Edilizio | K12: =IF(E12="Licenza Edilizia / Titolo Edilizio","N.",IF(E12="Concessione in Sanatoria","N.","")) -> N. | M12: Data | Q12: 6
B13: Relazione ex Legge 10/91 Depositata al Comune in Data | K13: Prot. N. | Q13: 7
B14: Data Inizio Lavori | Q14: 8
Q15: 9
B16: DATI DI PROGETTO | C16: Oggetto Lavori : | F16: Oggetto Lavori | Q16: 10
B17: Descrizione | F17: Imponibile | J17: %iva | K17: IVA | M17: Totale | Q17: 11
B18: Importo complessivo Lavori | G18: 10000 | J18: 0.1 | K18: =G18*J18 -> 1000 | M18: =G18+K18 -> 11000 | Q18: 12
B19: di cui Oneri/Lavori x Sicurezza | G19: 0 | J19: =J18 -> 0.1 | K19: =G19*J19 -> 0 | M19: =G19+K19 -> 0 | Q19: 13
B20: Importo Lavori al netto della Sicurezza | G20: =G18-G19 -> 10000 | J20: =J18 -> 0.1 | K20: =G20*J20 -> 1000 | M20: =G20+K20 -> 11000 | Q20: 14
B21: Spese tecniche (compresa iva) | G21: =M36 -> 266.45 | M21: =G21 -> 266.45 | Q21: 15
G22: Importo Complessivo Progetto : | M22: =M18+M21 -> 11266.45 | Q22: 16
Q23: 17
B24: SPESE TECNICHE | C24: Tecnico | E24: Onorario | G24: C.Cassa | J24: IVA | M24: Totale | Q24: 18 | S24: Foto 1
B25: Incarico 1 | C25: Ingegnere 1 | E25: 10 | G25: 0.04 | H25: =E25*G25 -> 0.4 | J25: 0.22 | K25: =(E25+H25)*J25 -> 2.288 | M25: =ROUND(E25+H25+K25,2) -> 12.69 | Q25: 19
B26: Calcoli e Deposito G.C. | C26: Ingegnere 1 | E26: 0 | G26: 0.04 | H26: 0 | J26: 0.22 | K26: 0 | M26: 0 | Q26: 20
B27: Congruità | C27: Ingegnere 1 | E27: 0 | G27: 0.04 | H27: 0 | J27: 0.22 | K27: 0 | M27: 0 | Q27: 21
E28: 0 | G28: 0.04 | H28: 0 | J28: 0.22 | K28: 0 | M28: 0 | Q28: 22
E29: 0 | G29: 0.04 | H29: 0 | J29: 0.22 | K29: 0 | M29: 0 | Q29: 23
E30: 0 | G30: 0.04 | H30: 0 | J30: 0.22 | K30: 0 | M30: 0 | Q30: 24
E31: 0 | G31: 0.04 | H31: 0 | J31: 0.22 | K31: 0 | M31: 0 | Q31: 25
E32: 0 | G32: 0.04 | H32: 0 | J32: 0.22 | K32: 0 | M32: 0 | Q32: 26
E33: =SUM(E25:F32) -> 10 | H33: =SUM(H25:I32) -> 0.4 | K33: =SUM(K25:L32) -> 2.288 | M33: =SUM(M25:N32) -> 12.69 | Q33: 27
E34: onorario | G34: c.cassa | J34: iva | M34: totale | Q34: 28
B35: Visto Conformità | C35: Dott. Igor | D35: 0.02 | E35: =D35*G18 -> 200 | G35: 0.04 | H35: =E35*G35 -> 8 | J35: 0.22 | K35: =(E35+H35)*J35 -> 45.76 | M35: =ROUND(E35+H35+K35,2) -> 253.76 | Q35: 29
E36: =E33+E35 -> 210 | H36: =H33+H35 -> 8.4 | K36: =K33+K35 -> 48.048 | M36: =M33+M35 -> 266.45 | Q36: 30
Q37: 31
B38: Appaltatore / General Contractor / Soggetto Principale a cui viene ceduto il credito | Q38: 32
B39: Denominazione | C39: SIM srl | F39: CF/Piva | L39: Tel. | Q39: 33
B40: Indirizzo | F40: Città | L40: Mail | Q40: 34
B41: Dati Pagamento | Q41: 35
Q42: 36
B43: TECNICI | D43: Sc.to | E43: Indirizzo | G43: Città | J43: CodFisc/Piva | L43: Tel./Mail | N43: Dati Pagamento | Q43: 37
B44: Ingegnere 1 | D44: SI | E44: Via Libertà N.3 | G44: 90020 Castellana Sicula (PA) | N44: Bonifico Bancario | Zafonte Mario | Banca Unicredit | IBAN : IT69Y0897643240000000305975 | Q44: 38
B45: Dott. Igor | D45: NO | Q45: 39
D46: NO | Q46: 40
D47: NO | Q47: 41
D48: NO | Q48: 42
D49: NO | Q49: 43
D50: NO | Q50: 44
D51: NO | Q51: 45
Q52: 46 | S52: Foto 2
Q53: 47
Q54: 48
Q55: 49
Q56: 50
Q57: 51
Q58: 52
Q59: 53
Q60: 54
Q61: 55
Q62: 56
Q63: 57
Q64: 58
Q65: 59
Q66: 60
Q67: 61
Q68: 62
Q69: 63
Q70: 64
Q71: 65
Q72: 66
Q73: =Q72+1 -> 67
Q74: 68
Q75: 69
Q76: 70
Q77: 71
Q78: 72
Q79: 73
Q80: 74
Q81: 75
Q82: 76
Q83: 77
Q84: 78
Q85: 79
Q86: 80
Q87: 81
Q88: 82
Q89: 83
Q90: 84
Q91: 85
Q92: 86
Q93: 87
Q94: 88
Q95: 89
Q96: 90
Q97: 91
Q98: 92
Q99: 93
Q100: 94
Q101: 95
Q102: 96
Q103: 97
Q104: 98
Q105: 99
Q106: 100
Q107: 101
Q108: 102
Q109: 103
Q110: 104
Q111: 105
Q112: 106
Q113: 107
Q114: 108
Q115: 109
Q116: 110
Q117: 111
Q118: 112
Q119: 113
Q120: 114
Q121: 115
Q122: 116
Q123: 117
Q124: 118
Q125: 119
Q126: 120
Q127: 121
Q128: 122
Q129: 123
Q130: 124
Q131: 125
Q132: 126
Q133: 127
Q134: 128
Q135: 129
Q136: 130
Q137: =Q136+1 -> 131
Q138: 132
Q139: 133
Q140: 134
Q141: 135
Q142: 136
Q143: 137
Q144: 138
Q145: 139
Q146: 140
Q147: 141
Q148: 142
Q149: 143
Q150: 144
Q151: 145
Q152: 146
Q153: 147
Q154: 148
Q155: 149
Q156: 150
Q157: 151
Q158: 152
Q159: 153
Q160: 154
Q161: 155
Q162: 156
Q163: 157
Q164: 158
Q165: 159
Q166: 160
Q167: 161
Q168: 162
Q169: 163
Q170: 164
Q171: 165
Q172: 166
Q173: 167
Q174: 168
Q175: 169
Q176: 170
Q177: 171
Q178: 172
Q179: 173
Q180: 174
Q181: 175
Q182: 176
Q183: 177
Q184: 178
Q185: 179
Q186: 180
Q187: 181
Q188: 182
Q189: 183
Q190: 184
Q191: 185
Q192: 186
Q193: 187
Q194: 188
Q195: 189
Q196: 190
Q197: 191
Q198: 192
Q199: 193
Q200: 194
... 806 more rows

Sheet Committenti
B1: Elenco Committenti
B2: Cognome | C2: Nome | D2: Codice Fiscale | E2: Sesso | F2: Data Nascita | G2: Nazione Nascita | H2: Comune Nascita | I2: Nazione Residenza | J2: Comune Residenza | K2: Provincia | L2: Indirizzo | M2: CAP | N2: Telefono
A3: =IF(B3<>"",1,"") -> 1 | B3: Tizio | C3: Caio
A4: =IF(B4<>"", IF(A3<>"",A3+1,""),"") -> 
A5: =IF(B5<>"", IF(A4<>"",A4+1,""),"") -> 
A69: =IF(B69<>"", IF(A68<>"",A68+1,""),"") -> 
A133: =IF(B133<>"", IF(A132<>"",A132+1,""),"") -> 
A197: =IF(B197<>"", IF(A196<>"",A196+1,""),"") -> 
A261: =IF(B261<>"", IF(A260<>"",A260+1,""),"") -> 
A325: =IF(B325<>"", IF(A324<>"",A324+1,""),"") -> 
A389: =IF(B389<>"", IF(A388<>"",A388+1,""),"") -> 
A453: =IF(B453<>"", IF(A452<>"",A452+1,""),"") -> 
A517: =IF(B517<>"", IF(A516<>"",A516+1,""),"") -> 
A581: =IF(B581<>"", IF(A580<>"",A580+1,""),"") -> 
A645: =IF(B645<>"", IF(A644<>"",A644+1,""),"") -> 
A709: =IF(B709<>"", IF(A708<>"",A708+1,""),"") -> 
A773: =IF(B773<>"", IF(A772<>"",A772+1,""),"") -> 
A837: =IF(B837<>"", IF(A836<>"",A836+1,""),"") -> 
A901: =IF(B901<>"", IF(A900<>"",A900+1,""),"") -> 
A965: =IF(B965<>"", IF(A964<>"",A964+1,""),"") -> 

Sheet UnitàImmobiliari (hidden)
B1: Elenco Unità Immobiliari | F1: Beneficiario 1 | H1: Beneficiario 2 | J1: Beneficiario 3 | L1: Beneficiario 4 | N1: Beneficiario 5
B2: Foglio | C2: Particella | D2: Sub. | E2: Categoria | F2: Codice Fiscale | G2: Titolo Possesso | H2: Codice Fiscale | I2: Titolo Possesso | J2: Codice Fiscale | K2: Titolo Possesso | L2: Codice Fiscale | M2: Titolo Possesso | N2: Codice Fiscale | O2: Titolo Possesso | Q2: Elenco Committenti
A3: =IF(B3<>"",1,"") -> 1 | B3: 12 | C3: 27 | D3: 1 | E3: A3 | Q3: =IF(Committenti!D3<>"",CONCATENATE(Committenti!B3," ",Committenti!C3," CF: ",Committenti!D3),"") -> 
A4: =IF(B4<>"", IF(A3<>"",A3+1,""),"") -> 2 | B4: 14 | C4: 27 | D4: 2 | E4: A3 | Q4: =IF(Committenti!D4<>"",CONCATENATE(Committenti!B4," ",Committenti!C4," CF: ",Committenti!D4),"") -> 
A5: =IF(B5<>"", IF(A4<>"",A4+1,""),"") ->  | Q5: =IF(Committenti!D5<>"",CONCATENATE(Committenti!B5," ",Committenti!C5," CF: ",Committenti!D5),"") -> 
Q6: =IF(Committenti!D6<>"",CONCATENATE(Committenti!B6," ",Committenti!C6," CF: ",Committenti!D6),"") -> 
Q7: =IF(Committenti!D7<>"",CONCATENATE(Committenti!B7," ",Committenti!C7," CF: ",Committenti!D7),"") -> 
Q8: =IF(Committenti!D8<>"",CONCATENATE(Committenti!B8," ",Committenti!C8," CF: ",Committenti!D8),"") -> 
Q9: =IF(Committenti!D9<>"",CONCATENATE(Committenti!B9," ",Committenti!C9," CF: ",Committenti!D9),"") -> 
Q10: =IF(Committenti!D10<>"",CONCATENATE(Committenti!B10," ",Committenti!C10," CF: ",Committenti!D10),"") -> 
Q11: =IF(Committenti!D11<>"",CONCATENATE(Committenti!B11," ",Committenti!C11," CF: ",Committenti!D11),"") -> 
Q12: =IF(Committenti!D12<>"",CONCATENATE(Committenti!B12," ",Committenti!C12," CF: ",Committenti!D12),"") -> 
Q13: =IF(Committenti!D13<>"",CONCATENATE(Committenti!B13," ",Committenti!C13," CF: ",Committenti!D13),"") -> 
Q14: =IF(Committenti!D14<>"",CONCATENATE(Committenti!B14," ",Committenti!C14," CF: ",Committenti!D14),"") -> 
Q15: =IF(Committenti!D15<>"",CONCATENATE(Committenti!B15," ",Committenti!C15," CF: ",Committenti!D15),"") -> 
Q16: =IF(Committenti!D16<>"",CONCATENATE(Committenti!B16," ",Committenti!C16," CF: ",Committenti!D16),"") -> 
Q17: =IF(Committenti!D17<>"",CONCATENATE(Committenti!B17," ",Committenti!C17," CF: ",Committenti!D17),"") -> 
Q18: =IF(Committenti!D18<>"",CONCATENATE(Committenti!B18," ",Committenti!C18," CF: ",Committenti!D18),"") -> 
Q19: =IF(Committenti!D19<>"",CONCATENATE(Committenti!B19," ",Committenti!C19," CF: ",Committenti!D19),"") -> 
Q20: =IF(Committenti!D20<>"",CONCATENATE(Committenti!B20," ",Committenti!C20," CF: ",Committenti!D20),"") -> 
Q21: =IF(Committenti!D21<>"",CONCATENATE(Committenti!B21," ",Committenti!C21," CF: ",Committenti!D21),"") -> 
Q22: =IF(Committenti!D22<>"",CONCATENATE(Committenti!B22," ",Committenti!C22," CF: ",Committenti!D22),"") -> 
Q23: =IF(Committenti!D23<>"",CONCATENATE(Committenti!B23," ",Committenti!C23," CF: ",Committenti!D23),"") -> 
Q24: =IF(Committenti!D24<>"",CONCATENATE(Committenti!B24," ",Committenti!C24," CF: ",Committenti!D24),"") -> 
Q25: =IF(Committenti!D25<>"",CONCATENATE(Committenti!B25," ",Committenti!C25," CF: ",Committenti!D25),"") -> 
Q26: =IF(Committenti!D26<>"",CONCATENATE(Committenti!B26," ",Committenti!C26," CF: ",Committenti!D26),"") -> 
Q27: =IF(Committenti!D27<>"",CONCATENATE(Committenti!B27," ",Committenti!C27," CF: ",Committenti!D27),"") -> 
Q28: =IF(Committenti!D28<>"",CONCATENATE(Committenti!B28," ",Committenti!C28," CF: ",Committenti!D28),"") -> 
Q29: =IF(Committenti!D29<>"",CONCATENATE(Committenti!B29," ",Committenti!C29," CF: ",Committenti!D29),"") -> 
Q30: =IF(Committenti!D30<>"",CONCATENATE(Committenti!B30," ",Committenti!C30," CF: ",Committenti!D30),"") -> 
Q31: =IF(Committenti!D31<>"",CONCATENATE(Committenti!B31," ",Committenti!C31," CF: ",Committenti!D31),"") -> 
Q32: =IF(Committenti!D32<>"",CONCATENATE(Committenti!B32," ",Committenti!C32," CF: ",Committenti!D32),"") -> 
Q33: =IF(Committenti!D33<>"",CONCATENATE(Committenti!B33," ",Committenti!C33," CF: ",Committenti!D33),"") -> 
Q34: =IF(Committenti!D34<>"",CONCATENATE(Committenti!B34," ",Committenti!C34," CF: ",Committenti!D34),"") -> 
Q35: =IF(Committenti!D35<>"",CONCATENATE(Committenti!B35," ",Committenti!C35," CF: ",Committenti!D35),"") -> 
Q36: =IF(Committenti!D36<>"",CONCATENATE(Committenti!B36," ",Committenti!C36," CF: ",Committenti!D36),"") -> 
Q37: =IF(Committenti!D37<>"",CONCATENATE(Committenti!B37," ",Committenti!C37," CF: ",Committenti!D37),"") -> 
Q38: =IF(Committenti!D38<>"",CONCATENATE(Committenti!B38," ",Committenti!C38," CF: ",Committenti!D38),"") -> 
Q39: =IF(Committenti!D39<>"",CONCATENATE(Committenti!B39," ",Committenti!C39," CF: ",Committenti!D39),"") -> 
Q40: =IF(Committenti!D40<>"",CONCATENATE(Committenti!B40," ",Committenti!C40," CF: ",Committenti!D40),"") -> 
Q41: =IF(Committenti!D41<>"",CONCATENATE(Committenti!B41," ",Committenti!C41," CF: ",Committenti!D41),"") -> 
Q42: =IF(Committenti!D42<>"",CONCATENATE(Committenti!B42," ",Committenti!C42," CF: ",Committenti!D42),"") -> 
Q43: =IF(Committenti!D43<>"",CONCATENATE(Committenti!B43," ",Committenti!C43," CF: ",Committenti!D43),"") -> 
Q44: =IF(Committenti!D44<>"",CONCATENATE(Committenti!B44," ",Committenti!C44," CF: ",Committenti!D44),"") -> 
Q45: =IF(Committenti!D45<>"",CONCATENATE(Committenti!B45," ",Committenti!C45," CF: ",Committenti!D45),"") -> 
Q46: =IF(Committenti!D46<>"",CONCATENATE(Committenti!B46," ",Committenti!C46," CF: ",Committenti!D46),"") -> 
Q47: =IF(Committenti!D47<>"",CONCATENATE(Committenti!B47," ",Committenti!C47," CF: ",Committenti!D47),"") -> 
Q48: =IF(Committenti!D48<>"",CONCATENATE(Committenti!B48," ",Committenti!C48," CF: ",Committenti!D48),"") -> 
Q49: =IF(Committenti!D49<>"",CONCATENATE(Committenti!B49," ",Committenti!C49," CF: ",Committenti!D49),"") -> 
Q50: =IF(Committenti!D50<>"",CONCATENATE(Committenti!B50," ",Committenti!C50," CF: ",Committenti!D50),"") -> 
Q51: =IF(Committenti!D51<>"",CONCATENATE(Committenti!B51," ",Committenti!C51," CF: ",Committenti!D51),"") -> 
Q52: =IF(Committenti!D52<>"",CONCATENATE(Committenti!B52," ",Committenti!C52," CF: ",Committenti!D52),"") -> 
Q53: =IF(Committenti!D53<>"",CONCATENATE(Committenti!B53," ",Committenti!C53," CF: ",Committenti!D53),"") -> 
Q54: =IF(Committenti!D54<>"",CONCATENATE(Committenti!B54," ",Committenti!C54," CF: ",Committenti!D54),"") -> 
Q55: =IF(Committenti!D55<>"",CONCATENATE(Committenti!B55," ",Committenti!C55," CF: ",Committenti!D55),"") -> 
Q56: =IF(Committenti!D56<>"",CONCATENATE(Committenti!B56," ",Committenti!C56," CF: ",Committenti!D56),"") -> 
Q57: =IF(Committenti!D57<>"",CONCATENATE(Committenti!B57," ",Committenti!C57," CF: ",Committenti!D57),"") -> 
Q58: =IF(Committenti!D58<>"",CONCATENATE(Committenti!B58," ",Committenti!C58," CF: ",Committenti!D58),"") -> 
Q59: =IF(Committenti!D59<>"",CONCATENATE(Committenti!B59," ",Committenti!C59," CF: ",Committenti!D59),"") -> 
Q60: =IF(Committenti!D60<>"",CONCATENATE(Committenti!B60," ",Committenti!C60," CF: ",Committenti!D60),"") -> 
Q61: =IF(Committenti!D61<>"",CONCATENATE(Committenti!B61," ",Committenti!C61," CF: ",Committenti!D61),"") -> 
Q62: =IF(Committenti!D62<>"",CONCATENATE(Committenti!B62," ",Committenti!C62," CF: ",Committenti!D62),"") -> 
Q63: =IF(Committenti!D63<>"",CONCATENATE(Committenti!B63," ",Committenti!C63," CF: ",Committenti!D63),"") -> 
Q64: =IF(Committenti!D64<>"",CONCATENATE(Committenti!B64," ",Committenti!C64," CF: ",Committenti!D64),"") -> 
Q65: =IF(Committenti!D65<>"",CONCATENATE(Committenti!B65," ",Committenti!C65," CF: ",Committenti!D65),"") -> 
Q66: =IF(Committenti!D66<>"",CONCATENATE(Committenti!B66," ",Committenti!C66," CF: ",Committenti!D66),"") -> 
Q67: =IF(Committenti!D67<>"",CONCATENATE(Committenti!B67," ",Committenti!C67," CF: ",Committenti!D67),"") -> 
Q68: =IF(Committenti!D68<>"",CONCATENATE(Committenti!B68," ",Committenti!C68," CF: ",Committenti!D68),"") -> 
A69: =IF(B69<>"", IF(A68<>"",A68+1,""),"") ->  | Q69: =IF(Committenti!D69<>"",CONCATENATE(Committenti!B69," ",Committenti!C69," CF: ",Committenti!D69),"") -> 
Q70: =IF(Committenti!D70<>"",CONCATENATE(Committenti!B70," ",Committenti!C70," CF: ",Committenti!D70),"") -> 
Q71: =IF(Committenti!D71<>"",CONCATENATE(Committenti!B71," ",Committenti!C71," CF: ",Committenti!D71),"") -> 
Q72: =IF(Committenti!D72<>"",CONCATENATE(Committenti!B72," ",Committenti!C72," CF: ",Committenti!D72),"") -> 
Q73: =IF(Committenti!D73<>"",CONCATENATE(Committenti!B73," ",Committenti!C73," CF: ",Committenti!D73),"") -> 
Q74: =IF(Committenti!D74<>"",CONCATENATE(Committenti!B74," ",Committenti!C74," CF: ",Committenti!D74),"") -> 
Q75: =IF(Committenti!D75<>"",CONCATENATE(Committenti!B75," ",Committenti!C75," CF: ",Committenti!D75),"") -> 
Q76: =IF(Committenti!D76<>"",CONCATENATE(Committenti!B76," ",Committenti!C76," CF: ",Committenti!D76),"") -> 
Q77: =IF(Committenti!D77<>"",CONCATENATE(Committenti!B77," ",Committenti!C77," CF: ",Committenti!D77),"") -> 
Q78: =IF(Committenti!D78<>"",CONCATENATE(Committenti!B78," ",Committenti!C78," CF: ",Committenti!D78),"") -> 
Q79: =IF(Committenti!D79<>"",CONCATENATE(Committenti!B79," ",Committenti!C79," CF: ",Committenti!D79),"") -> 
Q80: =IF(Committenti!D80<>"",CONCATENATE(Committenti!B80," ",Committenti!C80," CF: ",Committenti!D80),"") -> 
Q81: =IF(Committenti!D81<>"",CONCATENATE(Committenti!B81," ",Committenti!C81," CF: ",Committenti!D81),"") -> 
Q82: =IF(Committenti!D82<>"",CONCATENATE(Committenti!B82," ",Committenti!C82," CF: ",Committenti!D82),"") -> 
Q83: =IF(Committenti!D83<>"",CONCATENATE(Committenti!B83," ",Committenti!C83," CF: ",Committenti!D83),"") -> 
Q84: =IF(Committenti!D84<>"",CONCATENATE(Committenti!B84," ",Committenti!C84," CF: ",Committenti!D84),"") -> 
Q85: =IF(Committenti!D85<>"",CONCATENATE(Committenti!B85," ",Committenti!C85," CF: ",Committenti!D85),"") -> 
Q86: =IF(Committenti!D86<>"",CONCATENATE(Committenti!B86," ",Committenti!C86," CF: ",Committenti!D86),"") -> 
Q87: =IF(Committenti!D87<>"",CONCATENATE(Committenti!B87," ",Committenti!C87," CF: ",Committenti!D87),"") -> 
Q88: =IF(Committenti!D88<>"",CONCATENATE(Committenti!B88," ",Committenti!C88," CF: ",Committenti!D88),"") -> 
Q89: =IF(Committenti!D89<>"",CONCATENATE(Committenti!B89," ",Committenti!C89," CF: ",Committenti!D89),"") -> 
Q90: =IF(Committenti!D90<>"",CONCATENATE(Committenti!B90," ",Committenti!C90," CF: ",Committenti!D90),"") -> 
Q91: =IF(Committenti!D91<>"",CONCATENATE(Committenti!B91," ",Committenti!C91," CF: ",Committenti!D91),"") -> 
Q92: =IF(Committenti!D92<>"",CONCATENATE(Committenti!B92," ",Committenti!C92," CF: ",Committenti!D92),"") -> 
Q93: =IF(Committenti!D93<>"",CONCATENATE(Committenti!B93," ",Committenti!C93," CF: ",Committenti!D93),"") -> 
Q94: =IF(Committenti!D94<>"",CONCATENATE(Committenti!B94," ",Committenti!C94," CF: ",Committenti!D94),"") -> 
Q95: =IF(Committenti!D95<>"",CONCATENATE(Committenti!B95," ",Committenti!C95," CF: ",Committenti!D95),"") -> 
Q96: =IF(Committenti!D96<>"",CONCATENATE(Committenti!B96," ",Committenti!C96," CF: ",Committenti!D96),"") -> 
Q97: =IF(Committenti!D97<>"",CONCATENATE(Committenti!B97," ",Committenti!C97," CF: ",Committenti!D97),"") -> 
Q98: =IF(Committenti!D98<>"",CONCATENATE(Committenti!B98," ",Committenti!C98," CF: ",Committenti!D98),"") -> 
Q99: =IF(Committenti!D99<>"",CONCATENATE(Committenti!B99," ",Committenti!C99," CF: ",Committenti!D99),"") -> 
Q100: =IF(Committenti!D100<>"",CONCATENATE(Committenti!B100," ",Committenti!C100," CF: ",Committenti!D100),"") -> 
Q101: =IF(Committenti!D101<>"",CONCATENATE(Committenti!B101," ",Committenti!C101," CF: ",Committenti!D101),"") -> 
Q102: =IF(Committenti!D102<>"",CONCATENATE(Committenti!B102," ",Committenti!C102," CF: ",Committenti!D102),"") -> 
Q103: =IF(Committenti!D103<>"",CONCATENATE(Committenti!B103," ",Committenti!C103," CF: ",Committenti!D103),"") -> 
Q104: =IF(Committenti!D104<>"",CONCATENATE(Committenti!B104," ",Committenti!C104," CF: ",Committenti!D104),"") -> 
Q105: =IF(Committenti!D105<>"",CONCATENATE(Committenti!B105," ",Committenti!C105," CF: ",Committenti!D105),"") -> 
Q106: =IF(Committenti!D106<>"",CONCATENATE(Committenti!B106," ",Committenti!C106," CF: ",Committenti!D106),"") -> 
Q107: =IF(Committenti!D107<>"",CONCATENATE(Committenti!B107," ",Committenti!C107," CF: ",Committenti!D107),"") -> 
Q108: =IF(Committenti!D108<>"",CONCATENATE(Committenti!B108," ",Committenti!C108," CF: ",Committenti!D108),"") -> 
Q109: =IF(Committenti!D109<>"",CONCATENATE(Committenti!B109," ",Committenti!C109," CF: ",Committenti!D109),"") -> 
Q110: =IF(Committenti!D110<>"",CONCATENATE(Committenti!B110," ",Committenti!C110," CF: ",Committenti!D110),"") -> 
Q111: =IF(Committenti!D111<>"",CONCATENATE(Committenti!B111," ",Committenti!C111," CF: ",Committenti!D111),"") -> 
Q112: =IF(Committenti!D112<>"",CONCATENATE(Committenti!B112," ",Committenti!C112," CF: ",Committenti!D112),"") -> 
Q113: =IF(Committenti!D113<>"",CONCATENATE(Committenti!B113," ",Committenti!C113," CF: ",Committenti!D113),"") -> 
Q114: =IF(Committenti!D114<>"",CONCATENATE(Committenti!B114," ",Committenti!C114," CF: ",Committenti!D114),"") -> 
Q115: =IF(Committenti!D115<>"",CONCATENATE(Committenti!B115," ",Committenti!C115," CF: ",Committenti!D115),"") -> 
Q116: =IF(Committenti!D116<>"",CONCATENATE(Committenti!B116," ",Committenti!C116," CF: ",Committenti!D116),"") -> 
Q117: =IF(Committenti!D117<>"",CONCATENATE(Committenti!B117," ",Committenti!C117," CF: ",Committenti!D117),"") -> 
Q118: =IF(Committenti!D118<>"",CONCATENATE(Committenti!B118," ",Committenti!C118," CF: ",Committenti!D118),"") -> 
Q119: =IF(Committenti!D119<>"",CONCATENATE(Committenti!B119," ",Committenti!C119," CF: ",Committenti!D119),"") -> 
Q120: =IF(Committenti!D120<>"",CONCATENATE(Committenti!B120," ",Committenti!C120," CF: ",Committenti!D120),"") -> 
Q121: =IF(Committenti!D121<>"",CONCATENATE(Committenti!B121," ",Committenti!C121," CF: ",Committenti!D121),"") -> 
Q122: =IF(Committenti!D122<>"",CONCATENATE(Committenti!B122," ",Committenti!C122," CF: ",Committenti!D122),"") -> 
Q123: =IF(Committenti!D123<>"",CONCATENATE(Committenti!B123," ",Committenti!C123," CF: ",Committenti!D123),"") -> 
Q124: =IF(Committenti!D124<>"",CONCATENATE(Committenti!B124," ",Committenti!C124," CF: ",Committenti!D124),"") -> 
Q125: =IF(Committenti!D125<>"",CONCATENATE(Committenti!B125," ",Committenti!C125," CF: ",Committenti!D125),"") -> 
Q126: =IF(Committenti!D126<>"",CONCATENATE(Committenti!B126," ",Committenti!C126," CF: ",Committenti!D126),"") -> 
Q127: =IF(Committenti!D127<>"",CONCATENATE(Committenti!B127," ",Committenti!C127," CF: ",Committenti!D127),"") -> 
Q128: =IF(Committenti!D128<>"",CONCATENATE(Committenti!B128," ",Committenti!C128," CF: ",Committenti!D128),"") -> 
Q129: =IF(Committenti!D129<>"",CONCATENATE(Committenti!B129," ",Committenti!C129," CF: ",Committenti!D129),"") -> 
Q130: =IF(Committenti!D130<>"",CONCATENATE(Committenti!B130," ",Committenti!C130," CF: ",Committenti!D130),"") -> 
Q131: =IF(Committenti!D131<>"",CONCATENATE(Committenti!B131," ",Committenti!C131," CF: ",Committenti!D131),"") -> 
Q132: =IF(Committenti!D132<>"",CONCATENATE(Committenti!B132," ",Committenti!C132," CF: ",Committenti!D132),"") -> 
A133: =IF(B133<>"", IF(A132<>"",A132+1,""),"") ->  | Q133: =IF(Committenti!D133<>"",CONCATENATE(Committenti!B133," ",Committenti!C133," CF: ",Committenti!D133),"") -> 
Q134: =IF(Committenti!D134<>"",CONCATENATE(Committenti!B134," ",Committenti!C134," CF: ",Committenti!D134),"") -> 
Q135: =IF(Committenti!D135<>"",CONCATENATE(Committenti!B135," ",Committenti!C135," CF: ",Committenti!D135),"") -> 
Q136: =IF(Committenti!D136<>"",CONCATENATE(Committenti!B136," ",Committenti!C136," CF: ",Committenti!D136),"") -> 
Q137: =IF(Committenti!D137<>"",CONCATENATE(Committenti!B137," ",Committenti!C137," CF: ",Committenti!D137),"") -> 
Q138: =IF(Committenti!D138<>"",CONCATENATE(Committenti!B138," ",Committenti!C138," CF: ",Committenti!D138),"") -> 
Q139: =IF(Committenti!D139<>"",CONCATENATE(Committenti!B139," ",Committenti!C139," CF: ",Committenti!D139),"") -> 
Q140: =IF(Committenti!D140<>"",CONCATENATE(Committenti!B140," ",Committenti!C140," CF: ",Committenti!D140),"") -> 
Q141: =IF(Committenti!D141<>"",CONCATENATE(Committenti!B141," ",Committenti!C141," CF: ",Committenti!D141),"") -> 
Q142: =IF(Committenti!D142<>"",CONCATENATE(Committenti!B142," ",Committenti!C142," CF: ",Committenti!D142),"") -> 
Q143: =IF(Committenti!D143<>"",CONCATENATE(Committenti!B143," ",Committenti!C143," CF: ",Committenti!D143),"") -> 
Q144: =IF(Committenti!D144<>"",CONCATENATE(Committenti!B144," ",Committenti!C144," CF: ",Committenti!D144),"") -> 
Q145: =IF(Committenti!D145<>"",CONCATENATE(Committenti!B145," ",Committenti!C145," CF: ",Committenti!D145),"") -> 
Q146: =IF(Committenti!D146<>"",CONCATENATE(Committenti!B146," ",Committenti!C146," CF: ",Committenti!D146),"") -> 
Q147: =IF(Committenti!D147<>"",CONCATENATE(Committenti!B147," ",Committenti!C147," CF: ",Committenti!D147),"") -> 
Q148: =IF(Committenti!D148<>"",CONCATENATE(Committenti!B148," ",Committenti!C148," CF: ",Committenti!D148),"") -> 
Q149: =IF(Committenti!D149<>"",CONCATENATE(Committenti!B149," ",Committenti!C149," CF: ",Committenti!D149),"") -> 
Q150: =IF(Committenti!D150<>"",CONCATENATE(Committenti!B150," ",Committenti!C150," CF: ",Committenti!D150),"") -> 
Q151: =IF(Committenti!D151<>"",CONCATENATE(Committenti!B151," ",Committenti!C151," CF: ",Committenti!D151),"") -> 
Q152: =IF(Committenti!D152<>"",CONCATENATE(Committenti!B152," ",Committenti!C152," CF: ",Committenti!D152),"") -> 
Q153: =IF(Committenti!D153<>"",CONCATENATE(Committenti!B153," ",Committenti!C153," CF: ",Committenti!D153),"") -> 
Q154: =IF(Committenti!D154<>"",CONCATENATE(Committenti!B154," ",Committenti!C154," CF: ",Committenti!D154),"") -> 
Q155: =IF(Committenti!D155<>"",CONCATENATE(Committenti!B155," ",Committenti!C155," CF: ",Committenti!D155),"") -> 
Q156: =IF(Committenti!D156<>"",CONCATENATE(Committenti!B156," ",Committenti!C156," CF: ",Committenti!D156),"") -> 
Q157: =IF(Committenti!D157<>"",CONCATENATE(Committenti!B157," ",Committenti!C157," CF: ",Committenti!D157),"") -> 
Q158: =IF(Committenti!D158<>"",CONCATENATE(Committenti!B158," ",Committenti!C158," CF: ",Committenti!D158),"") -> 
Q159: =IF(Committenti!D159<>"",CONCATENATE(Committenti!B159," ",Committenti!C159," CF: ",Committenti!D159),"") -> 
Q160: =IF(Committenti!D160<>"",CONCATENATE(Committenti!B160," ",Committenti!C160," CF: ",Committenti!D160),"") -> 
Q161: =IF(Committenti!D161<>"",CONCATENATE(Committenti!B161," ",Committenti!C161," CF: ",Committenti!D161),"") -> 
Q162: =IF(Committenti!D162<>"",CONCATENATE(Committenti!B162," ",Committenti!C162," CF: ",Committenti!D162),"") -> 
Q163: =IF(Committenti!D163<>"",CONCATENATE(Committenti!B163," ",Committenti!C163," CF: ",Committenti!D163),"") -> 
Q164: =IF(Committenti!D164<>"",CONCATENATE(Committenti!B164," ",Committenti!C164," CF: ",Committenti!D164),"") -> 
Q165: =IF(Committenti!D165<>"",CONCATENATE(Committenti!B165," ",Committenti!C165," CF: ",Committenti!D165),"") -> 
Q166: =IF(Committenti!D166<>"",CONCATENATE(Committenti!B166," ",Committenti!C166," CF: ",Committenti!D166),"") -> 
Q167: =IF(Committenti!D167<>"",CONCATENATE(Committenti!B167," ",Committenti!C167," CF: ",Committenti!D167),"") -> 
Q168: =IF(Committenti!D168<>"",CONCATENATE(Committenti!B168," ",Committenti!C168," CF: ",Committenti!D168),"") -> 
Q169: =IF(Committenti!D169<>"",CONCATENATE(Committenti!B169," ",Committenti!C169," CF: ",Committenti!D169),"") -> 
Q170: =IF(Committenti!D170<>"",CONCATENATE(Committenti!B170," ",Committenti!C170," CF: ",Committenti!D170),"") -> 
Q171: =IF(Committenti!D171<>"",CONCATENATE(Committenti!B171," ",Committenti!C171," CF: ",Committenti!D171),"") -> 
Q172: =IF(Committenti!D172<>"",CONCATENATE(Committenti!B172," ",Committenti!C172," CF: ",Committenti!D172),"") -> 
Q173: =IF(Committenti!D173<>"",CONCATENATE(Committenti!B173," ",Committenti!C173," CF: ",Committenti!D173),"") -> 
Q174: =IF(Committenti!D174<>"",CONCATENATE(Committenti!B174," ",Committenti!C174," CF: ",Committenti!D174),"") -> 
Q175: =IF(Committenti!D175<>"",CONCATENATE(Committenti!B175," ",Committenti!C175," CF: ",Committenti!D175),"") -> 
Q176: =IF(Committenti!D176<>"",CONCATENATE(Committenti!B176," ",Committenti!C176," CF: ",Committenti!D176),"") -> 
Q177: =IF(Committenti!D177<>"",CONCATENATE(Committenti!B177," ",Committenti!C177," CF: ",Committenti!D177),"") -> 
Q178: =IF(Committenti!D178<>"",CONCATENATE(Committenti!B178," ",Committenti!C178," CF: ",Committenti!D178),"") -> 
Q179: =IF(Committenti!D179<>"",CONCATENATE(Committenti!B179," ",Committenti!C179," CF: ",Committenti!D179),"") -> 
Q180: =IF(Committenti!D180<>"",CONCATENATE(Committenti!B180," ",Committenti!C180," CF: ",Committenti!D180),"") -> 
Q181: =IF(Committenti!D181<>"",CONCATENATE(Committenti!B181," ",Committenti!C181," CF: ",Committenti!D181),"") -> 
Q182: =IF(Committenti!D182<>"",CONCATENATE(Committenti!B182," ",Committenti!C182," CF: ",Committenti!D182),"") -> 
Q183: =IF(Committenti!D183<>"",CONCATENATE(Committenti!B183," ",Committenti!C183," CF: ",Committenti!D183),"") -> 
Q184: =IF(Committenti!D184<>"",CONCATENATE(Committenti!B184," ",Committenti!C184," CF: ",Committenti!D184),"") -> 
Q185: =IF(Committenti!D185<>"",CONCATENATE(Committenti!B185," ",Committenti!C185," CF: ",Committenti!D185),"") -> 
Q186: =IF(Committenti!D186<>"",CONCATENATE(Committenti!B186," ",Committenti!C186," CF: ",Committenti!D186),"") -> 
Q187: =IF(Committenti!D187<>"",CONCATENATE(Committenti!B187," ",Committenti!C187," CF: ",Committenti!D187),"") -> 
Q188: =IF(Committenti!D188<>"",CONCATENATE(Committenti!B188," ",Committenti!C188," CF: ",Committenti!D188),"") -> 
Q189: =IF(Committenti!D189<>"",CONCATENATE(Committenti!B189," ",Committenti!C189," CF: ",Committenti!D189),"") -> 
Q190: =IF(Committenti!D190<>"",CONCATENATE(Committenti!B190," ",Committenti!C190," CF: ",Committenti!D190),"") -> 
Q191: =IF(Committenti!D191<>"",CONCATENATE(Committenti!B191," ",Committenti!C191," CF: ",Committenti!D191),"") -> 
Q192: =IF(Committenti!D192<>"",CONCATENATE(Committenti!B192," ",Committenti!C192," CF: ",Committenti!D192),"") -> 
Q193: =IF(Committenti!D193<>"",CONCATENATE(Committenti!B193," ",Committenti!C193," CF: ",Committenti!D193),"") -> 
Q194: =IF(Committenti!D194<>"",CONCATENATE(Committenti!B194," ",Committenti!C194," CF: ",Committenti!D194),"") -> 
Q195: =IF(Committenti!D195<>"",CONCATENATE(Committenti!B195," ",Committenti!C195," CF: ",Committenti!D195),"") -> 
Q196: =IF(Committenti!D196<>"",CONCATENATE(Committenti!B196," ",Committenti!C196," CF: ",Committenti!D196),"") -> 
A197: =IF(B197<>"", IF(A196<>"",A196+1,""),"") ->  | Q197: =IF(Committenti!D197<>"",CONCATENATE(Committenti!B197," ",Committenti!C197," CF: ",Committenti!D197),"") -> 
Q198: =IF(Committenti!D198<>"",CONCATENATE(Committenti!B198," ",Committenti!C198," CF: ",Committenti!D198),"") -> 
Q199: =IF(Committenti!D199<>"",CONCATENATE(Committenti!B199," ",Committenti!C199," CF: ",Committenti!D199),"") -> 
Q200: =IF(Committenti!D200<>"",CONCATENATE(Committenti!B200," ",Committenti!C200," CF: ",Committenti!D200),"") -> 
... 817 more rows

Sheet Computo-Massimali
P1: =MATCH("SimMZ",C:C,0) -> 78
Q2: Edificio Unifamiliare
C3: Verifica Massimali Superbonus | F3: =CONCATENATE(IF('Dati Gen'!E9<>"",'Dati Gen'!E9,""),IF('Dati Gen'!E8<>"",CONCATENATE(" - ",'Dati Gen'!E8),"")) ->  | M3: ='Dati Gen'!K2 -> Pratica.110plus | Q3: 1
C4: =IF(TipoEdif=1,'Dati Gen'!Q5,'Dati Gen'!Q6) -> Edificio Unifamiliare | D4: =IF('Dati Gen'!G5>1,CONCATENATE('Dati Gen'!G5," U.Imm"),"") ->  | F4: =IF(TipoEdif=2,IF('Dati Gen'!K5<>"",'Dati Gen'!K5,""),IF(Committenti!B3<>"",CONCATENATE(Committenti!B3," ",Committenti!C3),"")) -> Tizio Caio | M4: ='Dati Gen'!K4 -> ©2021 SIM srl - www.madosoft.it | Q4: =IF(Titolare!$B$16="Versione Demo","Versione Demo","") -> Versione Demo
C6: =IF(ABS(F100-'Dati Gen'!G20)>0.01,"Importo Lavori al Netto della Sicurezza =",IF(ABS(G100-'Dati Gen'!G19)>0.01,"Importo Sicurezza da Progetto =",IF(ABS(H100-'Dati Gen'!G18)>0.01,"Importo Lavori da Progetto =",IF(ABS('Dati Gen'!M21-K100)>0.01,"Importo Spese Tecniche da Progetto =",IF(ABS(L100-'Dati Gen'!M22)<=0.01,"","Importo Complessivo Progetto ="))))) -> Importo Lavori al Netto della Sicurezza = | F6: =IF(ABS(F100-'Dati Gen'!G20)>0.01,'Dati Gen'!G20,IF(ABS(G100-'Dati Gen'!G19)>0.01,'Dati Gen'!G19,IF(ABS(H100-'Dati Gen'!G18)>0.01,'Dati Gen'!G18,IF(ABS('Dati Gen'!M21-K100)>0.01,'Dati Gen'!M21,IF(ABS(L100-'Dati Gen'!M22)<=0.01,"",'Dati Gen'!M22))))) -> 10000 | G6: =IF(C6<>"","DIVERSO da","") -> DIVERSO da | I6: =IF(ABS(F100-'Dati Gen'!G20)>0.01,"Sommatoria Importo Lavori =",IF(ABS(G100-'Dati Gen'!G19)>0.01,"Sommatoria Incidenza Sicurezza =",IF(ABS(H100-'Dati Gen'!G18)>0.01,"Sommatoria Imponibili =",IF(ABS('Dati Gen'!M21-K100)>0.01,"Sommatoria Spese Tecniche =",IF(ABS(L100-'Dati Gen'!M22)<=0.01,"","Totale Interventi ="))))) -> Sommatoria Importo Lavori = | K6: =IF(ABS(F100-'Dati Gen'!G20)>0.01,F100,IF(ABS(G100-'Dati Gen'!G19)>0.01,G100,IF(ABS(H100-'Dati Gen'!G18)>0.01,H100,IF(ABS('Dati Gen'!M21-K100)>0.01,K100,IF(ABS(L100-'Dati Gen'!M22)<=0.01,"",L100))))) -> -2 | L6: =IF(C6<>"","Completare Tabella Interventi","") -> Completare Tabella Interventi | AD6: Se Dichiarazione Fornitore
C7: INTERVENTI TRAINANTI | Q7: =CONCATENATE("Verifica Massimali di Spesa ",C7) -> Verifica Massimali di Spesa INTERVENTI TRAINANTI | AD7: Verifica Massimali di Costo INTERVENTI TRAINANTI
C8: Interventi | F8: Importo Lavori | G8: Incidenza Sicurezza | H8: Imponibile | I8: Iva | J8: Importo c.iva | K8: Spese tecniche | L8: Totale | M8: Credito Spettante 110% Spesa Ammessa | R8: Massimale spesa | S8: Verifica Max | U8: Spesa Ammessa | W8: Quota Eccedente Massimale Spesa | Y8: Cessione Credito | AD8: Sup. Interv. | AE8: Costo Unitario | AF8: Massimale costo | AG8: Verifica Costo Un.
C9: PV) Isolamento pareti perimetrali | E9: Esterno | F9: 1000 | G9: 0 | H9: =SUM(F9:G9) -> 1000 | I9: =F9*'Dati Gen'!$J$20+G9*'Dati Gen'!$J$19 -> 100 | J9: =H9+I9 -> 1100 | K9: 0 | L9: =SUM(J9:K9) -> 1100 | M9: =IF(L9<=R9,L9*1.1,R9*1.1) -> 1210 | Q9: =C9 -> PV) Isolamento pareti perimetrali | R9: =IF(TipoEdif=1,50000,IF(N_Uimm>8,40000*8+30000*(N_Uimm-8),40000*N_Uimm)) -> 50000 | S9: =IF(L9>M9,"KO Tot.>Detr.",IF(L9>R9,"ok< Tot.>Max.","ok")) -> ok | Y9: Quota Impresa | AA9: Quota Tecnici | AD9: 150 | AE9: =IF(ISNUMBER(AD9)=TRUE,IF(AD9<>0,F9/AD9,0),0) -> 6.666666667 | AF9: =IF(E9="Parete Ventilata",200,IF(E9="Interno",80,150)) -> 150 | AG9: =IF(AF9<>0,IF(AE9>AF9,"KO","ok"),"ok") -> ok
C10: PO) Isolamento coperture | E10: Esterno | F10: 0 | G10: 0 | H10: =SUM(F10:G10) -> 0 | I10: =F10*'Dati Gen'!$J$20+G10*'Dati Gen'!$J$19 -> 0 | J10: =H10+I10 -> 0 | K10: 0 | L10: =SUM(J10:K10) -> 0 | M10: 0 | Q10: =C10 -> PO) Isolamento coperture | R10: =IF(TipoEdif=1,50000,IF(N_Uimm>8,40000*8+30000*(N_Uimm-8),40000*N_Uimm)) -> 50000 | S10: ok | AE10: =IF(ISNUMBER(AD10)=TRUE,IF(AD10<>0,F10/AD10,0),0) -> 0 | AF10: =IF(E10="Copertura Ventilata",250,IF(E10="Interno",100,230)) -> 230 | AG10: =IF(AF10<>0,IF(AE10>AF10,"KO","ok"),"ok") -> ok
C11: POND) Isol. coperture non disperdenti | E11: Esterno | F11: 0 | G11: 0 | H11: =SUM(F11:G11) -> 0 | I11: =F11*'Dati Gen'!$J$20+G11*'Dati Gen'!$J$19 -> 0 | J11: =H11+I11 -> 0 | K11: 0 | L11: =SUM(J11:K11) -> 0 | M11: =IF(L11<=R11,L11*1.1,R11*1.1) -> 0 | Q11: =C11 -> POND) Isol. coperture non disperdenti | R11: =IF(TipoEdif=1,50000,IF(N_Uimm>8,40000*8+30000*(N_Uimm-8),40000*N_Uimm)) -> 50000 | S11: =IF(L11>M11,"KO Tot.>Detr.",IF(L11>R11,"ok< Tot.>Max.","ok")) -> ok | AE11: =IF(ISNUMBER(AD11)=TRUE,IF(AD11<>0,F11/AD11,0),0) -> 0 | AF11: =IF(E11="Copertura Ventilata",250,IF(E11="Interno",100,230)) -> 230 | AG11: =IF(AF11<>0,IF(AE11>AF11,"KO","ok"),"ok") -> ok
C12: PS) Isolamento Pavimenti | E12: Esterno | F12: 0 | G12: 0 | H12: =SUM(F12:G12) -> 0 | I12: =F12*'Dati Gen'!$J$20+G12*'Dati Gen'!$J$19 -> 0 | J12: =H12+I12 -> 0 | K12: 0 | L12: =SUM(J12:K12) -> 0 | M12: 0 | Q12: =C12 -> PS) Isolamento Pavimenti | R12: =IF(TipoEdif=1,50000,IF(N_Uimm>8,40000*8+30000*(N_Uimm-8),40000*N_Uimm)) -> 50000 | S12: ok | AE12: =IF(ISNUMBER(AD12)=TRUE,IF(AD12<>0,F12/AD12,0),0) -> 0 | AF12: =IF(E12="Interno/terreno",150,120) -> 120 | AG12: =IF(AF12<>0,IF(AE12>AF12,"KO","ok"),"ok") -> ok
C13: TOT.Isolamento sup.verticali/orizzontali | F13: =SUM(F9:F12) -> 1000 | G13: =SUM(G9:G12) -> 0 | H13: 1000 | I13: 100 | J13: 1100 | K13: 0 | L13: 1100 | M13: 1210 | Q13: Isolamento PV) PO) PS) | R13: =IF(TipoEdif=1,50000,IF(N_Uimm>8,40000*8+30000*(N_Uimm-8),40000*N_Uimm)) -> 50000 | S13: ok | U13: =IF(L13<R13,L13,R13) -> 1100 | W13: =IF(L13>R13,L13-R13,0) -> 0 | Y13: =IF(M13<>0,J13*M13/L13,0) -> 1210 | AA13: =IF(M13<>0,K13*M13/L13,0) -> 0
C14: Impianti climatizzazione e ACS | F14: 0 | G14: 0 | H14: =SUM(F14:G14) -> 0 | I14: =F14*'Dati Gen'!$J$20+G14*'Dati Gen'!$J$19 -> 0 | J14: =H14+I14 -> 0 | K14: 0 | L14: =SUM(J14:K14) -> 0 | M14: 0 | Q14: =C14 -> Impianti climatizzazione e ACS | R14: =IF(TipoEdif=1,30000,IF(N_Uimm>8,20000*8+15000*(N_Uimm-8),20000*N_Uimm)) -> 30000 | S14: ok | U14: =IF(L14<R14,L14,R14) -> 0 | W14: =IF(L14>R14,L14-R14,0) -> 0 | Y14: =IF(M14<>0,J14*M14/L14,0) -> 0 | AA14: =IF(M14<>0,K14*M14/L14,0) -> 0 | AE14: =IF(ISNUMBER(AD14)=TRUE,IF(AD14<>0,F14/AD14,0),0) -> 0 | AF14: vedi All.I | AG14: =IF(AF14<>0,IF(AE14>AF14,"KO","ok"),"ok") -> ok
C15: SismaBonus | F15: 0 | G15: 0 | H15: =SUM(F15:G15) -> 0 | I15: =F15*'Dati Gen'!$J$20+G15*'Dati Gen'!$J$19 -> 0 | J15: =H15+I15 -> 0 | K15: 0 | L15: =SUM(J15:K15) -> 0 | M15: 0 | Q15: =C15 -> SismaBonus | R15: =105600*N_Uimm/1.1 -> 96000 | S15: ok | U15: =IF(L15<R15,L15,R15) -> 0 | W15: =IF(L15>R15,L15-R15,0) -> 0 | Y15: =IF(M15<>0,J15*M15/L15,0) -> 0 | AA15: =IF(M15<>0,K15*M15/L15,0) -> 0 | AE15: =IF(ISNUMBER(AD15)=TRUE,IF(AD15<>0,F15/AD15,0),0) -> 0 | AF15: vedi All.I | AG15: =IF(AF15<>0,IF(AE15>AF15,"KO","ok"),"ok") -> ok
C16: Totale interventi Trainanti : | F16: =IF(Titolare!$B$16="Versione Demo",-1,SUM(F13:F15)) -> -1 | G16: =SUM(G13:G15) -> 0 | H16: =SUM(H13:H15) -> 1000 | I16: =SUM(I13:I15) -> 100 | J16: =IF(Titolare!$B$16="Versione Demo",-1,SUM(J13:J15)) -> -1 | K16: =SUM(K13:K15) -> 0 | L16: =IF(Titolare!$B$16="Versione Demo",0,SUM(L13:L15)) -> 0 | M16: =SUM(M13:M15) -> 1210 | Q16: =C16 -> Totale interventi Trainanti : | U16: =SUM(U13:V15) -> 1100 | W16: =SUM(W13:X15) -> 0 | Y16: =SUM(Y13:Z15) -> 1210 | AA16: =SUM(AA13:AB15) -> 0
AD17: Se Dichiarazione Fornitore
C18: INTERVENTI TRAINATI PARTI COMUNI CONDOMINIALI | Q18: =CONCATENATE("Verifica Massimali di Spesa ",C18) -> Verifica Massimali di Spesa INTERVENTI TRAINATI PARTI COMUNI CONDOMINIALI | AD18: =C18 -> INTERVENTI TRAINATI PARTI COMUNI CONDOMINIALI
C19: Interventi | F19: Importo Lavori | G19: Incidenza Sicurezza | H19: Imponibile | I19: Iva | J19: Importo c.iva | K19: Spese tecniche | L19: Totale | M19: Credito Spettante 110% Spesa Ammessa | R19: Massimale spesa | S19: Verifica Max | U19: Spesa Ammessa | W19: Quota Eccedente Massimale Spesa | Y19: Cessione Credito | AD19: Sup. Interv. | AE19: Costo Unitario | AF19: Massimale costo | AG19: Verifica Costo Un.
C20: PV) Isolamento pareti perimetrali | E20: Esterno | F20: 0 | G20: 0 | H20: =SUM(F20:G20) -> 0 | I20: =F20*'Dati Gen'!$J$20+G20*'Dati Gen'!$J$19 -> 0 | J20: =H20+I20 -> 0 | K20: 0 | L20: =SUM(J20:K20) -> 0 | M20: =IF(L20<=R20,L20*1.1,R20*1.1) -> 0 | Q20: =C20 -> PV) Isolamento pareti perimetrali | R20: =IF(TipoEdif=1,50000,IF(N_Uimm>8,40000*8+30000*(N_Uimm-8),40000*N_Uimm)) -> 50000 | S20: =IF(L20>M20,"KO Tot.>Detr.",IF(L20>R20,"ok< Tot.>Max.","ok")) -> ok | Y20: Quota Impresa | AA20: Quota Tecnici | AE20: =IF(ISNUMBER(AD20)=TRUE,IF(AD20<>0,F20/AD20,0),0) -> 0 | AF20: =IF(E20="Parete Ventilata",200,IF(E20="Interno",80,150)) -> 150 | AG20: =IF(AF20<>0,IF(AE20>AF20,"KO","ok"),"ok") -> ok
C21: PO) Isolamento coperture | E21: Esterno | F21: 0 | G21: 0 | H21: =SUM(F21:G21) -> 0 | I21: =F21*'Dati Gen'!$J$20+G21*'Dati Gen'!$J$19 -> 0 | J21: =H21+I21 -> 0 | K21: 0 | L21: =SUM(J21:K21) -> 0 | M21: =IF(L21<=R21,L21*1.1,R21*1.1) -> 0 | Q21: =C21 -> PO) Isolamento coperture | R21: =IF(TipoEdif=1,50000,IF(N_Uimm>8,40000*8+30000*(N_Uimm-8),40000*N_Uimm)) -> 50000 | S21: =IF(L21>M21,"KO Tot.>Detr.",IF(L21>R21,"ok< Tot.>Max.","ok")) -> ok | AE21: =IF(ISNUMBER(AD21)=TRUE,IF(AD21<>0,F21/AD21,0),0) -> 0 | AF21: =IF(E21="Copertura Ventilata",250,IF(E21="Interno",100,230)) -> 230 | AG21: =IF(AF21<>0,IF(AE21>AF21,"KO","ok"),"ok") -> ok
C22: PS) Isolamento Pavimenti | E22: Esterno | F22: 0 | G22: 0 | H22: =SUM(F22:G22) -> 0 | I22: =F22*'Dati Gen'!$J$20+G22*'Dati Gen'!$J$19 -> 0 | J22: =H22+I22 -> 0 | K22: 0 | L22: =SUM(J22:K22) -> 0 | M22: =IF(L22<=R22,L22*1.1,R22*1.1) -> 0 | Q22: =C22 -> PS) Isolamento Pavimenti | R22: =IF(TipoEdif=1,50000,IF(N_Uimm>8,40000*8+30000*(N_Uimm-8),40000*N_Uimm)) -> 50000 | S22: =IF(L22>M22,"KO Tot.>Detr.",IF(L22>R22,"ok< Tot.>Max.","ok")) -> ok | AE22: =IF(ISNUMBER(AD22)=TRUE,IF(AD22<>0,F22/AD22,0),0) -> 0 | AF22: =IF(E22="Interno/terreno",150,120) -> 120 | AG22: =IF(AF22<>0,IF(AE22>AF22,"KO","ok"),"ok") -> ok
C23: IN) Serramenti con chiusure oscuranti | E23: Zone D, E ed F | F23: 0 | G23: 0 | H23: =SUM(F23:G23) -> 0 | I23: =F23*'Dati Gen'!$J$20+G23*'Dati Gen'!$J$19 -> 0 | J23: =H23+I23 -> 0 | K23: 0 | L23: =SUM(J23:K23) -> 0 | M23: =IF(L23<=R23,L23*1.1,R23*1.1) -> 0 | Q23: =C23 -> IN) Serramenti con chiusure oscuranti | R23: =INT(60000/1.1)*N_Uimm -> 54545 | S23: =IF(L23>M23,"KO Tot.>Detr.",IF(L23>R23,"ok< Tot.>Max.","ok")) -> ok | AE23: =IF(ISNUMBER(AD23)=TRUE,IF(AD23<>0,F23/AD23,0),0) -> 0 | AF23: =IF(C23="IN) Serramenti",IF(E23="Zone A, B e C",550,650),IF(E23="Zone A, B e C",650,750)) -> 750 | AG23: =IF(AF23<>0,IF(AE23>AF23,"KO","ok"),"ok") -> ok
C24: Totali Isolamenti e Serramenti | F24: =SUM(F20:F23) -> 0 | G24: 0 | H24: 0 | I24: 0 | J24: 0 | K24: 0 | L24: 0 | M24: 0 | Q24: Isolamento PV) PO) PS) e Infissi | R24: =INT(60000/1.1)*N_Uimm -> 54545 | S24: ok | U24: =IF(L24<R24,L24,R24) -> 0 | W24: =IF(L24>R24,L24-R24,0) -> 0 | Y24: =IF(M24<>0,J24*M24/L24,0) -> 0 | AA24: =IF(M24<>0,K24*M24/L24,0) -> 0
C25: SS) Schermature solari e chiusure oscur. | F25: 0 | G25: 0 | H25: =SUM(F25:G25) -> 0 | I25: =F25*'Dati Gen'!$J$20+G25*'Dati Gen'!$J$19 -> 0 | J25: =H25+I25 -> 0 | K25: 0 | L25: =SUM(J25:K25) -> 0 | M25: 0 | Q25: =C25 -> SS) Schermature solari e chiusure oscur. | R25: =INT(60000/1.1)*N_Uimm -> 54545 | S25: ok | AE25: =IF(ISNUMBER(AD25)=TRUE,IF(AD25<>0,F25/AD25,0),0) -> 0 | AF25: 230 | AG25: =IF(AF25<>0,IF(AE25>AF25,"KO","ok"),"ok") -> ok
C26: Impianti climatizzazione con CC) PC) PCA) o SI) | F26: 0 | G26: 0 | H26: =SUM(F26:G26) -> 0 | I26: =F26*'Dati Gen'!$J$20+G26*'Dati Gen'!$J$19 -> 0 | J26: =H26+I26 -> 0 | K26: 0 | L26: =SUM(J26:K26) -> 0 | M26: 0 | Q26: =C26 -> Impianti climatizzazione con CC) PC) PCA) o SI) | R26: =INT(30000/1.1)*N_Uimm -> 27272 | S26: ok | AE26: =IF(ISNUMBER(AD26)=TRUE,IF(AD26<>0,F26/AD26,0),0) -> 0 | AF26: vedi All.I | AG26: =IF(AF26<>0,IF(AE26>AF26,"KO","ok"),"ok") -> ok
C27: GA) Generatori aria calda Condensazione | F27: 0 | G27: 0 | H27: =SUM(F27:G27) -> 0 | I27: =F27*'Dati Gen'!$J$20+G27*'Dati Gen'!$J$19 -> 0 | J27: =H27+I27 -> 0 | K27: 0 | L27: =SUM(J27:K27) -> 0 | M27: 0 | Q27: =C27 -> GA) Generatori aria calda Condensazione | R27: =INT(30000/1.1)*N_Uimm -> 27272 | S27: ok | AE27: =IF(ISNUMBER(AD27)=TRUE,IF(AD27<>0,F27/AD27,0),0) -> 0 | AF27: vedi All.I | AG27: =IF(AF27<>0,IF(AE27>AF27,"KO","ok"),"ok") -> ok
C28: IB) Impianti Biomassa | F28: 0 | G28: 0 | H28: =SUM(F28:G28) -> 0 | I28: =F28*'Dati Gen'!$J$20+G28*'Dati Gen'!$J$19 -> 0 | J28: =H28+I28 -> 0 | K28: 0 | L28: =SUM(J28:K28) -> 0 | M28: =IF(L28<=R28,L28*1.1,R28*1.1) -> 0 | Q28: =C28 -> IB) Impianti Biomassa | R28: =INT(30000/1.1)*N_Uimm -> 27272 | S28: =IF(L28>M28,"KO Tot.>Detr.",IF(L28>R28,"ok< Tot.>Max.","ok")) -> ok | AE28: =IF(ISNUMBER(AD28)=TRUE,IF(AD28<>0,F28/AD28,0),0) -> 0 | AF28: vedi All.I | AG28: =IF(AF28<>0,IF(AE28>AF28,"KO","ok"),"ok") -> ok
C29: SA) Scaldacqua a pompa di calore | F29: 0 | G29: 0 | H29: =SUM(F29:G29) -> 0 | I29: =F29*'Dati Gen'!$J$20+G29*'Dati Gen'!$J$19 -> 0 | J29: =H29+I29 -> 0 | K29: 0 | L29: =SUM(J29:K29) -> 0 | M29: 0 | Q29: =C29 -> SA) Scaldacqua a pompa di calore | R29: =INT(30000/1.1)*N_Uimm -> 27272 | S29: ok | AE29: =IF(ISNUMBER(AD29)=TRUE,IF(AD29<>0,F29/AD29,0),0) -> 0 | AF29: vedi All.I | AG29: =IF(AF29<>0,IF(AE29>AF29,"KO","ok"),"ok") -> ok
C30: Totali GA) IB) SA) | F30: =SUM(F27:F29) -> 0 | G30: =SUM(G27:G29) -> 0 | H30: =SUM(H27:H29) -> 0 | I30: 0 | J30: 0 | K30: 0 | L30: 0 | M30: 0 | Q30: Generatori Condens., Biomassa, Scaldacqua | R30: =INT(30000/1.1)*N_Uimm -> 27272 | S30: =IF(L30>M30,"KO Tot.>Detr.",IF(L30>R30,"ok< Tot.>Max.","ok")) -> ok | U30: =IF(L30<R30,L30,R30) -> 0 | W30: =IF(L30>R30,L30-R30,0) -> 0 | Y30: =IF(M30<>0,J30*M30/L30,0) -> 0 | AA30: =IF(M30<>0,K30*M30/L30,0) -> 0
C31: CO) Sistemi di Microgenerazione | F31: 0 | G31: 0 | H31: =SUM(F31:G31) -> 0 | I31: =F31*'Dati Gen'!$J$20+G31*'Dati Gen'!$J$19 -> 0 | J31: =H31+I31 -> 0 | K31: 0 | L31: =SUM(J31:K31) -> 0 | M31: =IF(L31<=R31,L31*1.1,R31*1.1) -> 0 | Q31: =C31 -> CO) Sistemi di Microgenerazione | R31: =INT(100000/1.1)*N_Uimm -> 90909 | S31: =IF(L31>M31,"KO Tot.>Detr.",IF(L31>R31,"ok< Tot.>Max.","ok")) -> ok | U31: 0 | W31: 0 | Y31: 0 | AA31: 0 | AE31: =IF(ISNUMBER(AD31)=TRUE,IF(AD31<>0,F31/AD31,0),0) -> 0 | AF31: vedi All.I | AG31: =IF(AF31<>0,IF(AE31>AF31,"KO","ok"),"ok") -> ok
C32: ST) Collettori Solari | E32: Piani Vetrati | F32: 0 | G32: 0 | H32: 0 | I32: =F32*'Dati Gen'!$J$20+G32*'Dati Gen'!$J$19 -> 0 | J32: 0 | K32: 0 | L32: 0 | M32: 0 | Q32: ST) Collettori Solari | R32: =INT(60000/1.1)*N_Uimm -> 54545 | S32: =IF(L32>M32,"KO Tot.>Detr.",IF(L32>R32,"ok< Tot.>Max.","ok")) -> ok | U32: 0 | W32: 0 | Y32: 0 | AA32: 0 | AE32: 0 | AF32: =IF(E32="Scoperti",750,IF(E32="Piani vetrati",1000,1250)) -> 1000 | AG32: ok
C33: FV) Solare Fotovoltaico ristr. kWp | E33: 6 | F33: 0 | G33: 0 | H33: 0 | I33: =F33*'Dati Gen'!$J$20+G33*'Dati Gen'!$J$19 -> 0 | J33: 0 | K33: 0 | L33: 0 | M33: 0 | Q33: =LEFT(C33,30) -> FV) Solare Fotovoltaico ristr. | R33: =IF(C33="FV) Solare Fotovoltaico kWp",IF(E33*2400<48000*N_Uimm,E33*2400,48000*N_Uimm),IF(E33*1600<48000*N_Uimm,E33*1600,48000*N_Uimm)) -> 9600 | S33: =IF(L33>M33,"KO Tot.>Detr.",IF(L33>R33,"ok< Tot.>Max.","ok")) -> ok | U33: 0 | W33: 0 | Y33: 0 | AA33: 0 | AE33: 0 | AF33: vedi All.I | AG33: ok
C34: AC) Sistema di Accumulo kWh | E34: 10 | F34: 0 | G34: 0 | H34: 0 | I34: =F34*'Dati Gen'!$J$20+G34*'Dati Gen'!$J$19 -> 0 | J34: 0 | K34: 0 | L34: 0 | M34: 0 | Q34: =LEFT(C34,30) -> AC) Sistema di Accumulo | R34: =IF(E34*1000<48000*N_Uimm,E34*1000,48000*N_Uimm) -> 10000 | S34: =IF(L34>M34,"KO Tot.>Detr.",IF(L34>R34,"ok< Tot.>Max.","ok")) -> ok | U34: 0 | W34: 0 | Y34: 0 | AA34: 0 | AE34: 0 | AF34: vedi All.I | AG34: ok
C35: CR) Colonnine di Ricarica N. | E35: 1 | F35: 0 | G35: 0 | H35: 0 | I35: =F35*'Dati Gen'!$J$20+G35*'Dati Gen'!$J$19 -> 0 | J35: 0 | K35: 0 | L35: 0 | M35: 0 | Q35: =LEFT(C35,30) -> CR) Colonnine di Ricarica | R35: =IF(E35>8,1500*8+1200*(E35-8),1500*E35) -> 1500 | S35: ok | U35: 0 | W35: 0 | Y35: 0 | AA35: 0 | AE35: 0 | AF35: vedi All.I | AG35: ok
C36: EBA) Eliminazione Barriere architettoniche | F36: 0 | G36: 0 | H36: 0 | I36: =F36*'Dati Gen'!$J$20+G36*'Dati Gen'!$J$19 -> 0 | J36: 0 | K36: 0 | L36: 0 | M36: 0 | Q36: EBA) Eliminazione Barriere architettoniche | R36: =IF(F36>0,IF(96000*N_Uimm > F15,96000*N_Uimm - F15,0),96000*N_Uimm ) -> 96000 | S36: ok | U36: 0 | W36: 0 | Y36: 0 | AA36: 0 | AE36: 0 | AF36: vedi All.I | AG36: ok
C37: Totale Interventi Trainati Parti Comuni: | F37: =SUM(F24:F26)+SUM(F30:F36) -> 0 | G37: =SUM(G24:G26)+SUM(G30:G36) -> 0 | H37: 0 | I37: 0 | J37: 0 | K37: 0 | L37: 0 | M37: 0 | Q37: =C37 -> Totale Interventi Trainati Parti Comuni: | U37: =SUM(U24:V36) -> 0 | W37: =SUM(W24:X36) -> 0 | Y37: =SUM(Y24:Z36) -> 0 | AA37: =SUM(AA24:AB36) -> 0
AD39: Se Dichiarazione Fornitore
C40: INTERVENTI TRAINATI | Q40: =CONCATENATE("Verifica Massimali di Spesa ",C40) -> Verifica Massimali di Spesa INTERVENTI TRAINATI | AD40: Verifica Massimali di Costo INTERVENTI TRAINATI
C41: Interventi | F41: Importo Lavori | G41: Incidenza Sicurezza | H41: Imponibile | I41: Iva | J41: Importo c.iva | K41: Spese tecniche | L41: Totale | M41: Credito Spettante 110% Spesa Ammessa | R41: Massimale spesa | S41: Verifica Max | U41: Spesa Ammessa | W41: Quota Eccedente Massimale Spesa | Y41: Cessione Credito | AD41: Sup. Interv. | AE41: Costo Unitario | AF41: Massimale costo | AG41: Verifica Costo Un.
C42: PV) Isolamento pareti perimetrali | E42: Esterno | F42: 0 | G42: 0 | H42: =SUM(F42:G42) -> 0 | I42: =F42*'Dati Gen'!$J$20+G42*'Dati Gen'!$J$19 -> 0 | J42: =H42+I42 -> 0 | K42: 0 | L42: =SUM(J42:K42) -> 0 | M42: =IF(L42<=R42,L42*1.1,R42*1.1) -> 0 | Q42: =C42 -> PV) Isolamento pareti perimetrali | R42: =INT(60000/1.1) -> 54545 | S42: =IF(L42>M42,"KO Tot.>Detr.",IF(L42>R42,"ok< Tot.>Max.","ok")) -> ok | Y42: Quota Impresa | AA42: Quota Tecnici | AE42: =IF(ISNUMBER(AD42)=TRUE,IF(AD42<>0,F43/AD42,0),0) -> 0 | AF42: =IF(E43="Parete Ventilata",200,IF(E43="Interno",80,150)) -> 150 | AG42: =IF(AF42<>0,IF(AE42>AF42,"KO","ok"),"ok") -> ok
C43: PO) Isolamento coperture | E43: Esterno | F43: 0 | G43: 0 | H43: =SUM(F43:G43) -> 0 | I43: =F43*'Dati Gen'!$J$20+G43*'Dati Gen'!$J$19 -> 0 | J43: =H43+I43 -> 0 | K43: 0 | L43: =SUM(J43:K43) -> 0 | M43: =IF(L43<=R43,L43*1.1,R43*1.1) -> 0 | Q43: =C43 -> PO) Isolamento coperture | R43: 54545 | S43: ok | AE43: =IF(ISNUMBER(AD43)=TRUE,IF(AD43<>0,F44/AD43,0),0) -> 0 | AF43: =IF(E44="Copertura Ventilata",250,IF(E44="Interno",100,230)) -> 230 | AG43: =IF(AF43<>0,IF(AE43>AF43,"KO","ok"),"ok") -> ok
C44: PS) Isolamento Pavimenti | E44: Esterno | F44: 0 | G44: 0 | H44: =SUM(F44:G44) -> 0 | I44: =F44*'Dati Gen'!$J$20+G44*'Dati Gen'!$J$19 -> 0 | J44: =H44+I44 -> 0 | K44: 0 | L44: =SUM(J44:K44) -> 0 | M44: =IF(L44<=R44,L44*1.1,R44*1.1) -> 0 | Q44: =C44 -> PS) Isolamento Pavimenti | R44: 54545 | S44: ok | AE44: =IF(ISNUMBER(AD44)=TRUE,IF(AD44<>0,F45/AD44,0),0) -> 0 | AF44: =IF(E45="Interno/terreno",150,120) -> 120 | AG44: =IF(AF44<>0,IF(AE44>AF44,"KO","ok"),"ok") -> ok
C45: IN) Serramenti con chiusure oscuranti | E45: Zone D, E ed F | F45: 0 | G45: 0 | H45: =SUM(F45:G45) -> 0 | I45: =F45*'Dati Gen'!$J$20+G45*'Dati Gen'!$J$19 -> 0 | J45: =H45+I45 -> 0 | K45: 0 | L45: =SUM(J45:K45) -> 0 | M45: =IF(L45<=R45,L45*1.1,R45*1.1) -> 0 | Q45: =C45 -> IN) Serramenti con chiusure oscuranti | R45: 54545 | S45: ok | AE45: =IF(ISNUMBER(AD45)=TRUE,IF(AD45<>0,F46/AD45,0),0) -> 0 | AF45: =IF(C45="IN) Serramenti",IF(E45="Zone A, B e C",550,650),IF(E45="Zone A, B e C",650,750)) -> 750 | AG45: =IF(AF45<>0,IF(AE45>AF45,"KO","ok"),"ok") -> ok
C46: Totali Isolamenti e Serramenti | F46: =SUM(F42:F45) -> 0 | G46: 0 | H46: 0 | I46: 0 | J46: 0 | K46: 0 | L46: 0 | M46: 0 | R46: 54545 | S46: ok | U46: =IF(L46<R46,L46,R46) -> 0 | W46: =IF(L46>R46,L46-R46,0) -> 0 | Y46: =IF(M46<>0,J46*M46/L46,0) -> 0 | AA46: =IF(M46<>0,K46*M46/L46,0) -> 0
C47: SS) Schermature solari e chiusure oscur. | F47: 0 | G47: 0 | H47: =SUM(F47:G47) -> 0 | I47: =F47*'Dati Gen'!$J$20+G47*'Dati Gen'!$J$19 -> 0 | J47: =H47+I47 -> 0 | K47: 0 | L47: =SUM(J47:K47) -> 0 | M47: =IF(L47<=R47,L47*1.1,R47*1.1) -> 0 | Q47: =C47 -> SS) Schermature solari e chiusure oscur. | R47: 54545 | S47: ok | AE47: =IF(ISNUMBER(AD47)=TRUE,IF(AD47<>0,F48/AD47,0),0) -> 0 | AF47: 230 | AG47: =IF(AF47<>0,IF(AE47>AF47,"KO","ok"),"ok") -> ok
C48: Impianti climatizzazione e ACS | F48: 0 | G48: 0 | H48: =SUM(F48:G48) -> 0 | I48: =F48*'Dati Gen'!$J$20+G48*'Dati Gen'!$J$19 -> 0 | J48: =H48+I48 -> 0 | K48: 0 | L48: =SUM(J48:K48) -> 0 | M48: =IF(L48<=R48,L48*1.1,R48*1.1) -> 0 | Q48: =C48 -> Impianti climatizzazione e ACS | R48: =INT(30000/1.1) -> 27272 | S48: ok | AE48: =IF(ISNUMBER(AD48)=TRUE,IF(AD48<>0,F49/AD48,0),0) -> 0 | AF48: vedi All.I | AG48: =IF(AF48<>0,IF(AE48>AF48,"KO","ok"),"ok") -> ok
C49: SA) Scaldacqua a pompa di calore | F49: 0 | G49: 0 | H49: =SUM(F49:G49) -> 0 | I49: =F49*'Dati Gen'!$J$20+G49*'Dati Gen'!$J$19 -> 0 | J49: =H49+I49 -> 0 | K49: 0 | L49: =SUM(J49:K49) -> 0 | M49: =IF(L49<=R49,L49*1.1,R49*1.1) -> 0 | Q49: =C49 -> SA) Scaldacqua a pompa di calore | R49: =INT(30000/1.1) -> 27272 | S49: ok | AE49: =IF(ISNUMBER(AD49)=TRUE,IF(AD49<>0,F50/AD49,0),0) -> 0 | AF49: vedi All.I | AG49: =IF(AF49<>0,IF(AE49>AF49,"KO","ok"),"ok") -> ok
C50: Totali Impianti ed SA) | F50: =SUM(F48:F49) -> 0 | G50: =SUM(G48:G49) -> 0 | H50: 0 | I50: 0 | J50: 0 | K50: 0 | L50: 0 | M50: 0 | R50: =INT(30000/1.1) -> 27272 | S50: ok | U50: =IF(L50<R50,L50,R50) -> 0 | W50: =IF(L50>R50,L50-R50,0) -> 0 | Y50: =IF(M50<>0,J50*M50/L50,0) -> 0 | AA50: =IF(M50<>0,K50*M50/L50,0) -> 0
C51: CO) Sistemi di Microgenerazione | F51: 0 | G51: 0 | H51: =SUM(F51:G51) -> 0 | I51: =F51*'Dati Gen'!$J$20+G51*'Dati Gen'!$J$19 -> 0 | J51: =H51+I51 -> 0 | K51: 0 | L51: =SUM(J51:K51) -> 0 | M51: =IF(L51<=R51,L51*1.1,R51*1.1) -> 0 | Q51: =C51 -> CO) Sistemi di Microgenerazione | R51: =INT(100000/1.1) -> 90909 | S51: ok | U51: 0 | W51: 0 | Y51: 0 | AA51: 0 | AE51: =IF(ISNUMBER(AD51)=TRUE,IF(AD51<>0,F52/AD51,0),0) -> 0 | AF51: vedi All.I | AG51: =IF(AF51<>0,IF(AE51>AF51,"KO","ok"),"ok") -> ok
C52: IB) Generatori a Biomassa | F52: 0 | G52: 0 | H52: 0 | I52: =F52*'Dati Gen'!$J$20+G52*'Dati Gen'!$J$19 -> 0 | J52: 0 | K52: 0 | L52: 0 | M52: 0 | Q52: IB) Generatori a Biomassa | R52: =INT(30000/1.1) -> 27272 | S52: ok | U52: 0 | W52: 0 | Y52: 0 | AA52: 0 | AE52: 0 | AF52: vedi All.I | AG52: ok
C53: BA) Building Automation | F53: 0 | G53: 0 | H53: 0 | I53: =F53*'Dati Gen'!$J$20+G53*'Dati Gen'!$J$19 -> 0 | J53: 0 | K53: 0 | L53: 0 | M53: 0 | Q53: BA) Building Automation | R53: =15000/1.1 -> 13636.36364 | S53: ok | U53: 0 | W53: 0 | Y53: 0 | AA53: 0 | AE53: 0 | AF53: 50 | AG53: ok
C54: ST) Collettori Solari | E54: Piani Vetrati | F54: 0 | G54: 0 | H54: 0 | I54: =F54*'Dati Gen'!$J$20+G54*'Dati Gen'!$J$19 -> 0 | J54: 0 | K54: 0 | L54: 0 | M54: 0 | Q54: ST) Collettori Solari | R54: =INT(60000/1.1) -> 54545 | S54: ok | U54: 0 | W54: 0 | Y54: 0 | AA54: 0 | AE54: 0 | AF54: =IF(E55="Scoperti",750,IF(E55="Piani vetrati",1000,1250)) -> 1250 | AG54: ok
C55: FV) Solare Fotovoltaico kWp | E55: 6 | F55: 0 | G55: 0 | H55: 0 | I55: =F55*'Dati Gen'!$J$20+G55*'Dati Gen'!$J$19 -> 0 | J55: 0 | K55: 0 | L55: 0 | M55: 0 | Q55: =LEFT(C55,30) -> FV) Solare Fotovoltaico | R55: =IF(C55="FV) Solare Fotovoltaico kWp",IF(E55*2400<48000*N_Uimm,E55*2400,48000*N_Uimm),IF(E55*1600<48000*N_Uimm,E55*1600,48000*N_Uimm)) -> 14400 | S55: ok | U55: 0 | W55: 0 | Y55: 0 | AA55: 0 | AE55: 0 | AF55: vedi All.I | AG55: ok
C56: AC) Sistema di Accumulo kWh | E56: 10 | F56: 0 | G56: 0 | H56: 0 | I56: =F56*'Dati Gen'!$J$20+G56*'Dati Gen'!$J$19 -> 0 | J56: 0 | K56: 0 | L56: 0 | M56: 0 | Q56: =LEFT(C56,30) -> AC) Sistema di Accumulo | R56: =IF(E56*1000<48000*N_Uimm,E56*1000,48000*N_Uimm) -> 10000 | S56: ok | U56: 0 | W56: 0 | Y56: 0 | AA56: 0 | AE56: 0 | AF56: vedi All.I | AG56: ok
C57: CR) Colonnine di Ricarica | F57: 0 | G57: 0 | H57: 0 | I57: =F57*'Dati Gen'!$J$20+G57*'Dati Gen'!$J$19 -> 0 | J57: 0 | K57: 0 | L57: 0 | M57: 0 | Q57: CR) Colonnine di Ricarica | R57: 1500 | S57: ok | U57: 0 | W57: 0 | Y57: 0 | AA57: 0 | AE57: 0 | AF57: vedi All.I | AG57: ok
C58: Totale Interventi trainati | F58: =IF(Titolare!B16="Versione Demo",-1,F46+F47+SUM(F50:F57)) -> -1 | G58: =G46+G47+SUM(G50:G57) -> 0 | H58: 0 | I58: 0 | J58: =IF(Titolare!B16="Versione Demo",-1,J46+J47+SUM(J50:J57)) -> -1 | K58: =K46+K47+SUM(K50:K57) -> 0 | L58: =IF(Titolare!B16="Versione Demo",0,L46+L47+SUM(L50:L57)) -> 0 | M58: 0 | Q58: =C58 -> Totale Interventi trainati | U58: =SUM(U46:V57) -> 0 | W58: =SUM(W46:X57) -> 0 | Y58: =SUM(Y46:Z57) -> 0 | AA58: =SUM(AA46:AB57) -> 0
C78: SimMZ
C80: TOTALE INTERVENTI 110 | F80: Importo Lavori | G80: Incidenza Sicurezza | H80: Imponibile | I80: Iva | J80: Importo c.iva | K80: Spese tecniche | L80: Totale | M80: Credito Spettante 110% Spesa Ammessa | Q80: =C80 -> TOTALE INTERVENTI 110 | U80: Spesa Ammessa | W80: Quota Eccedente Massimale Spesa | Y80: Cessione Credito Quota Impresa | Quota Tecnici
F81: =F16+F58 -> -2 | G81: 0 | H81: 1000 | I81: 100 | J81: -2 | K81: 0 | L81: 0 | M81: 1210 | U81: =U16+U37+U58 -> 1100 | W81: =T16+T58 -> 0 | Y81: =V16+V58 -> 0 | AA81: =X16+X58 -> 0
C87: ALTRI INTERVENTI | Q87: =CONCATENATE("Verifica Massimali di Spesa ",C87) -> Verifica Massimali di Spesa ALTRI INTERVENTI | AD87: Se Dichiarazione Fornitore
C88: Interventi | E88: x% Credito ceduto | F88: Importo Lavori | G88: Incidenza Sicurezza | H88: Imponibile | I88: Iva | J88: Importo c.iva | K88: Spese tecniche | L88: Totale | M88: Credito Spettante x% Spesa Ammessa | R88: Massimale spesa | S88: Verifica Max | U88: Spesa Ammessa | W88: Quota Eccedente Massimale Spesa | Y88: Cessione Credito Quota Impresa | Quota Tecnici | AD88: Sup. Interv. | AE88: Costo Unitario | AF88: Massimale costo | AG88: Verifica Costo Un.
C89: Lavori Ristrutturazione | E89: 0.5 | F89: 0 | G89: 0 | H89: =SUM(F89:G89) -> 0 | I89: =F89*'Dati Gen'!$J$20+G89*'Dati Gen'!$J$19 -> 0 | J89: =H89+I89 -> 0 | K89: 0 | L89: =SUM(J89:K89) -> 0 | M89: =IF(L89<=R89,L89*E89,R89*E89) -> 0 | Q89: =IF(C89<>"",C89,"") -> Lavori Ristrutturazione | R89: =96000*N_Uimm -> 96000 | S89: =IF(R89<>0,IF(L89>R89,"KO","ok"),"ok") -> ok | U89: =IF(L89<R89,L89,R89) -> 0 | W89: =IF(L89>R89,L89-R89,0) -> 0 | Y89: =IF(M89<>0,J89*M89/L89,0) -> 0 | AA89: =IF(M89<>0,K89*M89/L89,0) -> 0 | AE89: =IF(ISNUMBER(AD89)=TRUE,IF(AD89<>0,F89/AD89,0),0) -> 0 | AF89: 0 | AG89: =IF(AF89<>0,IF(AE89>AF89,"KO","ok"),"ok") -> ok
C90: Ecobonus | E90: 0.65 | F90: 0 | G90: 0 | H90: =SUM(F90:G90) -> 0 | I90: =F90*'Dati Gen'!$J$20+G90*'Dati Gen'!$J$19 -> 0 | J90: =H90+I90 -> 0 | K90: 0 | L90: =SUM(J90:K90) -> 0 | M90: =IF(L90<=R90,L90*E90,R90*E90) -> 0 | Q90: =IF(C90<>"",C90,"") -> Ecobonus | R90: =96000*N_Uimm -> 96000 | S90: =IF(R90<>0,IF(L90>R90,"KO","ok"),"ok") -> ok | U90: =IF(L90<R90,L90,R90) -> 0 | W90: =IF(L90>R90,L90-R90,0) -> 0 | Y90: =IF(M90<>0,J90*M90/L90,0) -> 0 | AA90: =IF(M90<>0,K90*M90/L90,0) -> 0 | AE90: =IF(ISNUMBER(AD90)=TRUE,IF(AD90<>0,F90/AD90,0),0) -> 0 | AF90: 0 | AG90: =IF(AF90<>0,IF(AE90>AF90,"KO","ok"),"ok") -> ok
C91: Bonus Facciata | E91: 0.9 | F91: 0 | G91: 0 | H91: =SUM(F91:G91) -> 0 | I91: =F91*'Dati Gen'!$J$20+G91*'Dati Gen'!$J$19 -> 0 | J91: =H91+I91 -> 0 | K91: 0 | L91: =SUM(J91:K91) -> 0 | M91: =IF(L91<=R91,L91*E91,R91*E91) -> 0 | Q91: =IF(C91<>"",C91,"") -> Bonus Facciata | R91: 1000000 | S91: =IF(R91<>0,IF(L91>R91,"KO","ok"),"ok") -> ok | U91: =IF(L91<R91,L91,R91) -> 0 | W91: =IF(L91>R91,L91-R91,0) -> 0 | Y91: =IF(M91<>0,J91*M91/L91,0) -> 0 | AA91: =IF(M91<>0,K91*M91/L91,0) -> 0 | AE91: =IF(ISNUMBER(AD91)=TRUE,IF(AD91<>0,F91/AD91,0),0) -> 0 | AF91: 0 | AG91: =IF(AF91<>0,IF(AE91>AF91,"KO","ok"),"ok") -> ok
F92: 0 | G92: 0 | H92: 0 | I92: 0 | J92: 0 | K92: 0 | L92: 0 | M92: 0 | Q92: =IF(C92<>"",C92,"") ->  | R92: =96000*N_Uimm -> 96000 | S92: =IF(R92<>0,IF(L92>R92,"KO","ok"),"ok") -> ok | U92: =IF(L92<R92,L92,R92) -> 0 | W92: =IF(L92>R92,L92-R92,0) -> 0 | Y92: =IF(M92<>0,J92*M92/L92,0) -> 0 | AA92: =IF(M92<>0,K92*M92/L92,0) -> 0 | AE92: =IF(ISNUMBER(AD92)=TRUE,IF(AD92<>0,F92/AD92,0),0) -> 0 | AF92: 0 | AG92: =IF(AF92<>0,IF(AE92>AF92,"KO","ok"),"ok") -> ok
C93: Totale Altri Interventi : | F93: =SUM(F89:F92) -> 0 | G93: 0 | H93: 0 | I93: 0 | J93: 0 | K93: 0 | L93: 0 | M93: 0 | R93: =C93 -> Totale Altri Interventi : | U93: =SUM(U89:V92) -> 0 | W93: =SUM(W89:X92) -> 0 | Y93: =SUM(Y89:Z92) -> 0 | AA93: =SUM(AA89:AB92) -> 0
C99: TOTALI PROGETTO | F99: Importo Lavori | G99: Incidenza Sicurezza | H99: Imponibile | I99: Iva | J99: Importo c.iva | K99: Spese tecniche | L99: Totale | M99: Credito Spettante | Q99: =C99 -> TOTALI PROGETTO | U99: Spesa Ammessa | W99: Quota Eccedente Massimale Spesa | Y99: Cessione Credito Quota Impresa | Quota Tecnici
F100: =F81+F93 -> -2 | G100: 0 | H100: 1000 | I100: 100 | J100: =J81+J93 -> -2 | K100: 0 | L100: 0 | M100: 1210 | U100: =U81+U93 -> 1100 | W100: =W81+W93 -> 0 | Y100: =Y81+Y93 -> 0 | AA100: =AA81+AA93 -> 0
G103: Quota % effettiva per cessione credito a Banca o Impresa Interventi 110: | H103: =102/110 -> 0.9272727273 | I103: =H103*110 -> 102
G104: Quota % effettiva per cessione credito a Banca o Impresa Interventi NO 110: | H104: 0.875 | I104: =H104*100 -> 87.5 | J104: Quota Impresa | K104: Quota Tecnici
G105: Netto a seguito Cessione Credito a Banca/Impresa : | H105: =H103*M81+H104*M93 -> 1122 | J105: =Y100*H105/M100 -> 0 | K105: =AA100*H105/M100 -> 0
G106: Quota a carico cliente : | H106: =L100-H105 -> -1122 | J106: =H106*Y100/M100 -> 0 | K106: =H106*AA100/M100 -> 0

Sheet SAL.30%
P1: =MATCH("SimMZ",C:C,0) -> 78
F2: DATI DI PROGETTO : | G2: IMPONIBILE | H2: IVA | I2: IMPORTO | K2: IMPONIBILE | L2: IVA | M2: IMPORTO | N2: =CONCATENATE('Dati Gen'!K2," SIM.srl") -> Pratica.110plus SIM.srl
C3: STATO AVANZAMENTO LAVORI N.1 | F3: Importo Lavori | G3: ='Dati Gen'!G18 -> 10000 | H3: ='Dati Gen'!K18 -> 1000 | I3: ='Dati Gen'!M18 -> 11000 | J3: Importo Netto | K3: ='Dati Gen'!G20 -> 10000 | L3: ='Dati Gen'!K20 -> 1000 | M3: ='Dati Gen'!M20 -> 11000 | Q3: =IF('Computo-Massimali'!C6<>"","Attenzione! Tabella Computo-Massimali non completa. Si consiglia di completare, prima di registrare Voci di SAL","") -> Attenzione! Tabella Computo-Massimali non completa. Si consiglia di completare, prima di registrare Voci di SAL
C4: 24/04/2021 | F4: Oneri Sicurezza | G4: ='Dati Gen'!G19 -> 0 | H4: ='Dati Gen'!K19 -> 0 | I4: ='Dati Gen'!M19 -> 0 | J4: Spese Tecniche | K4: ='Dati Gen'!G21 -> 266.45 | L4: ='Dati Gen'!K21 -> 0 | M4: ='Dati Gen'!M21 -> 266.45
C5: Oneri/Lavori x Sicurezza | D5: 0 | K5: ='Dati Gen'!G22 -> Importo Complessivo Progetto : | M5: ='Dati Gen'!M22 -> 11266.45
C7: INTERVENTI TRAINANTI | Q7: =CONCATENATE("Verifica Massimali di Spesa ",C7) -> Verifica Massimali di Spesa INTERVENTI TRAINANTI
C8: Interventi | F8: Importo Lavori | G8: Incidenza Sicurezza | H8: Imponibile | I8: Iva | J8: Importo c.iva | K8: Spese tecniche | L8: Totale | M8: Detrazione Spettante | N8: %SAL | R8: Massimale spesa | S8: Verifica Max | U8: Spesa Ammessa | W8: Quota Eccedente Massimale Spesa | Y8: Cessione Credito
C9: ='Computo-Massimali'!C9 -> PV) Isolamento pareti perimetrali | E9: ='Computo-Massimali'!E9 -> Esterno | F9: 1000 | G9: =IF('Computo-Massimali'!F9<>0,'Computo-Massimali'!G9*F9/'Computo-Massimali'!F9,0) -> 0 | H9: =SUM(F9:G9) -> 1000 | I9: =F9*'Dati Gen'!$J$20+G9*'Dati Gen'!$J$19 -> 100 | J9: =H9+I9 -> 1100 | K9: =IF('Computo-Massimali'!F9<>0,'Computo-Massimali'!K9*F9/'Computo-Massimali'!F9,0) -> 0 | L9: =SUM(J9:K9) -> 1100 | M9: =IF(L9<=R9,L9*1.1,R9*1.1) -> 1210 | N9: =IF('Computo-Massimali'!L9>0,L9/'Computo-Massimali'!L9,0) -> 1 | Q9: =C9 -> PV) Isolamento pareti perimetrali | R9: ='Computo-Massimali'!R9 -> 50000 | S9: =IF(L9>M9,"KO Tot.>Detr.",IF(L9>R9,"ok< Tot.>Max.","ok")) -> ok | U9: =IF($L$13<>0,(L9/$L$13)*$U$13,0) -> 1100 | Y9: Quota Impresa | AA9: Quota Tecnici
C10: ='Computo-Massimali'!C10 -> PO) Isolamento coperture | E10: ='Computo-Massimali'!E10 -> Esterno | F10: 0 | G10: =IF('Computo-Massimali'!F10<>0,'Computo-Massimali'!G10*F10/'Computo-Massimali'!F10,0) -> 0 | H10: =SUM(F10:G10) -> 0 | I10: =F10*'Dati Gen'!$J$20+G10*'Dati Gen'!$J$19 -> 0 | J10: =H10+I10 -> 0 | K10: =IF('Computo-Massimali'!F10<>0,'Computo-Massimali'!K10*F10/'Computo-Massimali'!F10,0) -> 0 | L10: =SUM(J10:K10) -> 0 | M10: 0 | N10: =IF('Computo-Massimali'!L10>0,L10/'Computo-Massimali'!L10,0) -> 0 | Q10: PO) Isolamento coperture | R10: ='Computo-Massimali'!R10 -> 50000 | S10: =IF(L10>M10,"KO Tot.>Detr.",IF(L10>R10,"ok< Tot.>Max.","ok")) -> ok | U10: =IF($L$13<>0,(L10/$L$13)*$U$13,0) -> 0
C11: ='Computo-Massimali'!C11 -> POND) Isol. coperture non disperdenti | E11: ='Computo-Massimali'!E11 -> Esterno | F11: 0 | G11: =IF('Computo-Massimali'!F11<>0,'Computo-Massimali'!G11*F11/'Computo-Massimali'!F11,0) -> 0 | H11: =SUM(F11:G11) -> 0 | I11: =F11*'Dati Gen'!$J$20+G11*'Dati Gen'!$J$19 -> 0 | J11: =H11+I11 -> 0 | K11: =IF('Computo-Massimali'!F11<>0,'Computo-Massimali'!K11*F11/'Computo-Massimali'!F11,0) -> 0 | L11: =SUM(J11:K11) -> 0 | M11: 0 | N11: =IF('Computo-Massimali'!L11>0,L11/'Computo-Massimali'!L11,0) -> 0 | Q11: POND) Isol. coperture non disperdenti | R11: ='Computo-Massimali'!R11 -> 50000 | S11: ok | U11: =IF($L$13<>0,(L11/$L$13)*$U$13,0) -> 0
C12: ='Computo-Massimali'!C12 -> PS) Isolamento Pavimenti | E12: ='Computo-Massimali'!E12 -> Esterno | F12: 0 | G12: =IF('Computo-Massimali'!F12<>0,'Computo-Massimali'!G12*F12/'Computo-Massimali'!F12,0) -> 0 | H12: =SUM(F12:G12) -> 0 | I12: =F12*'Dati Gen'!$J$20+G12*'Dati Gen'!$J$19 -> 0 | J12: =H12+I12 -> 0 | K12: =IF('Computo-Massimali'!F12<>0,'Computo-Massimali'!K12*F12/'Computo-Massimali'!F12,0) -> 0 | L12: =SUM(J12:K12) -> 0 | M12: 0 | N12: =IF('Computo-Massimali'!L12>0,L12/'Computo-Massimali'!L12,0) -> 0 | Q12: PS) Isolamento Pavimenti | R12: ='Computo-Massimali'!R12 -> 50000 | S12: =IF(L12>M12,"KO Tot.>Detr.",IF(L12>R12,"ok< Tot.>Max.","ok")) -> ok | U12: =IF($L$13<>0,(L12/$L$13)*$U$13,0) -> 0
C13: ='Computo-Massimali'!C13 -> TOT.Isolamento sup.verticali/orizzontali | F13: =SUM(F9:F12) -> 1000 | G13: 0 | H13: 1000 | I13: 1 | J13: 1100 | K13: 0 | L13: 1100 | M13: 1210 | N13: =IF('Computo-Massimali'!L13>0,L13/'Computo-Massimali'!L13,0) -> 1 | Q13: 501 | R13: ='Computo-Massimali'!R13 -> 50000 | S13: 0 | U13: =IF(L13<R13,L13,R13) -> 1100 | W13: =IF(L13>R13,L13-R13,0) -> 0 | Y13: =IF(M13<>0,J13*M13/L13,0) -> 1210 | AA13: =IF(M13<>0,K13*M13/L13,0) -> 0
C14: ='Computo-Massimali'!C14 -> Impianti climatizzazione e ACS | F14: 0 | G14: =IF('Computo-Massimali'!F14<>0,'Computo-Massimali'!G14*F14/'Computo-Massimali'!F14,0) -> 0 | H14: =SUM(F14:G14) -> 0 | I14: =F14*'Dati Gen'!$J$20+G14*'Dati Gen'!$J$19 -> 0 | J14: =H14+I14 -> 0 | K14: =IF('Computo-Massimali'!F14<>0,'Computo-Massimali'!K14*F14/'Computo-Massimali'!F14,0) -> 0 | L14: =SUM(J14:K14) -> 0 | M14: 0 | N14: =IF('Computo-Massimali'!L14>0,L14/'Computo-Massimali'!L14,0) -> 0 | Q14: Impianti climatizzazione e ACS | R14: ='Computo-Massimali'!R14 -> 30000 | S14: ok | U14: =IF(L14<R14,L14,R14) -> 0 | W14: =IF(L14>R14,L14-R14,0) -> 0 | Y14: =IF(M14<>0,J14*M14/L14,0) -> 0 | AA14: =IF(M14<>0,K14*M14/L14,0) -> 0
C15: ='Computo-Massimali'!C15 -> SismaBonus | F15: 0 | G15: =IF('Computo-Massimali'!F15<>0,'Computo-Massimali'!G15*F15/'Computo-Massimali'!F15,0) -> 0 | H15: =SUM(F15:G15) -> 0 | I15: =F15*'Dati Gen'!$J$20+G15*'Dati Gen'!$J$19 -> 0 | J15: =H15+I15 -> 0 | K15: =IF('Computo-Massimali'!F15<>0,'Computo-Massimali'!K15*F15/'Computo-Massimali'!F15,0) -> 0 | L15: =SUM(J15:K15) -> 0 | M15: 0 | N15: =IF('Computo-Massimali'!L15>0,L15/'Computo-Massimali'!L15,0) -> 0 | Q15: SismaBonus | R15: ='Computo-Massimali'!R15 -> 96000 | S15: ok | U15: =IF(L15<R15,L15,R15) -> 0 | W15: =IF(L15>R15,L15-R15,0) -> 0 | Y15: =IF(M15<>0,J15*M15/L15,0) -> 0 | AA15: =IF(M15<>0,K15*M15/L15,0) -> 0
C16: ='Computo-Massimali'!C16 -> Totale interventi Trainanti : | F16: =SUM(F13:F15) -> 1000 | G16: =SUM(G13:G15) -> 0 | H16: 1000 | I16: 1 | J16: 1100 | K16: 0 | L16: 1100 | M16: 1210 | N16: =IF('Computo-Massimali'!L16>0,L16/'Computo-Massimali'!L16,0) -> 0 | R16: =C16 -> Totale interventi Trainanti : | U16: =SUM(U13:V15) -> 1100 | W16: =SUM(W13:X15) -> 0 | Y16: =SUM(Y13:Z15) -> 1210 | AA16: =SUM(AA13:AB15) -> 0
C18: INTERVENTI TRAINATI PARTI COMUNI CONDOMINIALI | Q18: =CONCATENATE("Verifica Massimali di Spesa ",C18) -> Verifica Massimali di Spesa INTERVENTI TRAINATI PARTI COMUNI CONDOMINIALI
C19: Interventi | F19: Importo Lavori | G19: Incidenza Sicurezza | H19: Imponibile | I19: Iva | J19: Importo c.iva | K19: Spese tecniche | L19: Totale | M19: Detrazione Spettante | N19: %SAL | R19: Massimale spesa | S19: Verifica Max | U19: Spesa Ammessa | W19: Quota Eccedente Massimale Spesa | Y19: Cessione Credito
C20: ='Computo-Massimali'!C20 -> PV) Isolamento pareti perimetrali | E20: ='Computo-Massimali'!E20 -> Esterno | F20: 0 | G20: =IF('Computo-Massimali'!F20<>0,'Computo-Massimali'!G20*F20/'Computo-Massimali'!F20,0) -> 0 | H20: =SUM(F20:G20) -> 0 | I20: =F20*'Dati Gen'!$J$20+G20*'Dati Gen'!$J$19 -> 0 | J20: =H20+I20 -> 0 | K20: =IF('Computo-Massimali'!F20<>0,'Computo-Massimali'!K20*F20/'Computo-Massimali'!F20,0) -> 0 | L20: =SUM(J20:K20) -> 0 | M20: =IF(L20<=R20,L20*1.1,R20*1.1) -> 0 | N20: =IF('Computo-Massimali'!L20>0,L20/'Computo-Massimali'!L20,0) -> 0 | Q20: =C20 -> PV) Isolamento pareti perimetrali | R20: ='Computo-Massimali'!R20 -> 50000 | S20: =IF(L20>M20,"KO Tot.>Detr.",IF(L20>R20,"ok< Tot.>Max.","ok")) -> ok | U20: =IF($L$24<>0,(L20/$L$24)*$U$24,0) -> 0 | Y20: Quota Impresa | AA20: Quota Tecnici
C21: ='Computo-Massimali'!C21 -> PO) Isolamento coperture | E21: ='Computo-Massimali'!E21 -> Esterno | F21: 0 | G21: =IF('Computo-Massimali'!F21<>0,'Computo-Massimali'!G21*F21/'Computo-Massimali'!F21,0) -> 0 | H21: =SUM(F21:G21) -> 0 | I21: =F21*'Dati Gen'!$J$20+G21*'Dati Gen'!$J$19 -> 0 | J21: =H21+I21 -> 0 | K21: =IF('Computo-Massimali'!F21<>0,'Computo-Massimali'!K21*F21/'Computo-Massimali'!F21,0) -> 0 | L21: =SUM(J21:K21) -> 0 | M21: =IF(L21<=R21,L21*1.1,R21*1.1) -> 0 | N21: =IF('Computo-Massimali'!L21>0,L21/'Computo-Massimali'!L21,0) -> 0 | Q21: PO) Isolamento coperture | R21: ='Computo-Massimali'!R21 -> 50000 | S21: ok | U21: =IF($L$24<>0,(L21/$L$24)*$U$24,0) -> 0
C22: ='Computo-Massimali'!C22 -> PS) Isolamento Pavimenti | E22: ='Computo-Massimali'!E22 -> Esterno | F22: 0 | G22: =IF('Computo-Massimali'!F22<>0,'Computo-Massimali'!G22*F22/'Computo-Massimali'!F22,0) -> 0 | H22: =SUM(F22:G22) -> 0 | I22: =F22*'Dati Gen'!$J$20+G22*'Dati Gen'!$J$19 -> 0 | J22: =H22+I22 -> 0 | K22: =IF('Computo-Massimali'!F22<>0,'Computo-Massimali'!K22*F22/'Computo-Massimali'!F22,0) -> 0 | L22: =SUM(J22:K22) -> 0 | M22: =IF(L22<=R22,L22*1.1,R22*1.1) -> 0 | N22: =IF('Computo-Massimali'!L22>0,L22/'Computo-Massimali'!L22,0) -> 0 | Q22: PS) Isolamento Pavimenti | R22: ='Computo-Massimali'!R22 -> 50000 | S22: ok | U22: =IF($L$24<>0,(L22/$L$24)*$U$24,0) -> 0
C23: ='Computo-Massimali'!C23 -> IN) Serramenti con chiusure oscuranti | E23: ='Computo-Massimali'!E23 -> Zone D, E ed F | F23: 0 | G23: =IF('Computo-Massimali'!F23<>0,'Computo-Massimali'!G23*F23/'Computo-Massimali'!F23,0) -> 0 | H23: =SUM(F23:G23) -> 0 | I23: =F23*'Dati Gen'!$J$20+G23*'Dati Gen'!$J$19 -> 0 | J23: =H23+I23 -> 0 | K23: =IF('Computo-Massimali'!F23<>0,'Computo-Massimali'!K23*F23/'Computo-Massimali'!F23,0) -> 0 | L23: =SUM(J23:K23) -> 0 | M23: =IF(L23<=R23,L23*1.1,R23*1.1) -> 0 | N23: =IF('Computo-Massimali'!L23>0,L23/'Computo-Massimali'!L23,0) -> 0 | Q23: IN) Serramenti con chiusure oscuranti | R23: ='Computo-Massimali'!R23 -> 54545 | S23: ok | U23: =IF($L$24<>0,(L23/$L$24)*$U$24,0) -> 0
C24: ='Computo-Massimali'!C24 -> Totali Isolamenti e Serramenti | F24: =SUM(F20:F23) -> 0 | G24: =SUM(G20:G23) -> 0 | H24: 0 | I24: 0 | J24: 0 | K24: =SUM(K20:K23) -> 0 | L24: 0 | M24: 0 | N24: =IF('Computo-Massimali'!L24>0,L24/'Computo-Massimali'!L24,0) -> 0 | Q24: Totali Isolamenti e Serramenti | R24: ='Computo-Massimali'!R24 -> 54545 | S24: ok | U24: =IF(L24<R24,L24,R24) -> 0 | W24: =IF(L24>R24,L24-R24,0) -> 0 | Y24: =IF(M24<>0,J24*M24/L24,0) -> 0 | AA24: =IF(M24<>0,K24*M24/L24,0) -> 0
C25: ='Computo-Massimali'!C25 -> SS) Schermature solari e chiusure oscur. | F25: 0 | G25: =IF('Computo-Massimali'!F25<>0,'Computo-Massimali'!G25*F25/'Computo-Massimali'!F25,0) -> 0 | H25: =SUM(F25:G25) -> 0 | I25: =F25*'Dati Gen'!$J$20+G25*'Dati Gen'!$J$19 -> 0 | J25: 0 | K25: =IF('Computo-Massimali'!F25<>0,'Computo-Massimali'!K25*F25/'Computo-Massimali'!F25,0) -> 0 | L25: =SUM(J25:K25) -> 0 | M25: =IF(L25<=R25,L25*1.1,R25*1.1) -> 0 | N25: =IF('Computo-Massimali'!L25>0,L25/'Computo-Massimali'!L25,0) -> 0 | Q25: SS) Schermature solari e chiusure oscur. | R25: ='Computo-Massimali'!R25 -> 54545 | S25: ok | U25: =IF(L25<R25,L25,R25) -> 0 | W25: =IF(L25>R25,L25-R25,0) -> 0 | Y25: =IF(M25<>0,J25*M25/L25,0) -> 0 | AA25: =IF(M25<>0,K25*M25/L25,0) -> 0
C26: ='Computo-Massimali'!C26 -> Impianti climatizzazione con CC) PC) PCA) o SI) | F26: 0 | G26: =IF('Computo-Massimali'!F26<>0,'Computo-Massimali'!G26*F26/'Computo-Massimali'!F26,0) -> 0 | H26: =SUM(F26:G26) -> 0 | I26: =F26*'Dati Gen'!$J$20+G26*'Dati Gen'!$J$19 -> 0 | J26: 0 | K26: =IF('Computo-Massimali'!F26<>0,'Computo-Massimali'!K26*F26/'Computo-Massimali'!F26,0) -> 0 | L26: 0 | M26: =IF(L26<=R26,L26*1.1,R26*1.1) -> 0 | N26: =IF('Computo-Massimali'!L26>0,L26/'Computo-Massimali'!L26,0) -> 0 | Q26: Impianti climatizzazione con CC) PC) PCA) o SI) | R26: ='Computo-Massimali'!R26 -> 27272 | S26: ok | U26: =IF(L26<R26,L26,R26) -> 0 | W26: =IF(L26>R26,L26-R26,0) -> 0 | Y26: =IF(M26<>0,J26*M26/L26,0) -> 0 | AA26: =IF(M26<>0,K26*M26/L26,0) -> 0
C27: ='Computo-Massimali'!C27 -> GA) Generatori aria calda Condensazione | F27: 0 | G27: =IF('Computo-Massimali'!F27<>0,'Computo-Massimali'!G27*F27/'Computo-Massimali'!F27,0) -> 0 | H27: =SUM(F27:G27) -> 0 | I27: =F27*'Dati Gen'!$J$20+G27*'Dati Gen'!$J$19 -> 0 | J27: 0 | K27: =IF('Computo-Massimali'!F27<>0,'Computo-Massimali'!K27*F27/'Computo-Massimali'!F27,0) -> 0 | L27: 0 | M27: =IF(L27<=R27,L27*1.1,R27*1.1) -> 0 | N27: =IF('Computo-Massimali'!L27>0,L27/'Computo-Massimali'!L27,0) -> 0 | Q27: GA) Generatori aria calda Condensazione | R27: ='Computo-Massimali'!R27 -> 27272 | S27: ok | U27: =IF($L$30<>0,(L27/$L$30)*$U$30,0) -> 0 | Y27: Quota Impresa | AA27: Quota Tecnici
C28: ='Computo-Massimali'!C28 -> IB) Impianti Biomassa | F28: 0 | G28: =IF('Computo-Massimali'!F28<>0,'Computo-Massimali'!G28*F28/'Computo-Massimali'!F28,0) -> 0 | H28: =SUM(F28:G28) -> 0 | I28: =F28*'Dati Gen'!$J$20+G28*'Dati Gen'!$J$19 -> 0 | J28: 0 | K28: =IF('Computo-Massimali'!F28<>0,'Computo-Massimali'!K28*F28/'Computo-Massimali'!F28,0) -> 0 | L28: 0 | M28: =IF(L28<=R28,L28*1.1,R28*1.1) -> 0 | N28: =IF('Computo-Massimali'!L28>0,L28/'Computo-Massimali'!L28,0) -> 0 | Q28: IB) Impianti Biomassa | R28: ='Computo-Massimali'!R28 -> 27272 | S28: ok | U28: =IF($L$30<>0,(L28/$L$30)*$U$30,0) -> 0
C29: ='Computo-Massimali'!C29 -> SA) Scaldacqua a pompa di calore | F29: 0 | G29: =IF('Computo-Massimali'!F29<>0,'Computo-Massimali'!G29*F29/'Computo-Massimali'!F29,0) -> 0 | H29: =SUM(F29:G29) -> 0 | I29: =F29*'Dati Gen'!$J$20+G29*'Dati Gen'!$J$19 -> 0 | J29: 0 | K29: =IF('Computo-Massimali'!F29<>0,'Computo-Massimali'!K29*F29/'Computo-Massimali'!F29,0) -> 0 | L29: 0 | M29: =IF(L29<=R29,L29*1.1,R29*1.1) -> 0 | N29: =IF('Computo-Massimali'!L29>0,L29/'Computo-Massimali'!L29,0) -> 0 | Q29: SA) Scaldacqua a pompa di calore | R29: ='Computo-Massimali'!R29 -> 27272 | S29: ok | U29: =IF($L$30<>0,(L29/$L$30)*$U$30,0) -> 0
C30: ='Computo-Massimali'!C30 -> Totali GA) IB) SA) | F30: =SUM(F27:F29) -> 0 | G30: =SUM(G27:G29) -> 0 | H30: =SUM(H27:H29) -> 0 | I30: 0 | J30: 0 | K30: =SUM(K27:K29) -> 0 | L30: 0 | M30: 0 | N30: =IF('Computo-Massimali'!L30>0,L30/'Computo-Massimali'!L30,0) -> 0 | Q30: Totali GA) IB) SA) | R30: ='Computo-Massimali'!R30 -> 27272 | S30: ok | U30: =IF(L30<R30,L30,R30) -> 0
C31: ='Computo-Massimali'!C31 -> CO) Sistemi di Microgenerazione | F31: 0 | G31: =IF('Computo-Massimali'!F31<>0,'Computo-Massimali'!G31*F31/'Computo-Massimali'!F31,0) -> 0 | H31: =SUM(F31:G31) -> 0 | I31: =F31*'Dati Gen'!$J$20+G31*'Dati Gen'!$J$19 -> 0 | J31: =H31+I31 -> 0 | K31: =IF('Computo-Massimali'!F31<>0,'Computo-Massimali'!K31*F31/'Computo-Massimali'!F31,0) -> 0 | L31: =SUM(J31:K31) -> 0 | M31: =IF(L31<=R31,L31*1.1,R31*1.1) -> 0 | N31: =IF('Computo-Massimali'!L31>0,L31/'Computo-Massimali'!L31,0) -> 0 | Q31: =C31 -> CO) Sistemi di Microgenerazione | R31: ='Computo-Massimali'!R31 -> 90909 | S31: ok | U31: 0 | W31: =IF(L31>R31,L31-R31,0) -> 0 | Y31: =IF(M31<>0,J31*M31/L31,0) -> 0 | AA31: =IF(M31<>0,K31*M31/L31,0) -> 0
C32: ='Computo-Massimali'!C32 -> ST) Collettori Solari | E32: ='Computo-Massimali'!E32 -> Piani Vetrati | F32: 0 | G32: =IF('Computo-Massimali'!F32<>0,'Computo-Massimali'!G32*F32/'Computo-Massimali'!F32,0) -> 0 | H32: 0 | I32: =F32*'Dati Gen'!$J$20+G32*'Dati Gen'!$J$19 -> 0 | J32: =H32+I32 -> 0 | K32: =IF('Computo-Massimali'!F32<>0,'Computo-Massimali'!K32*F32/'Computo-Massimali'!F32,0) -> 0 | L32: =SUM(J32:K32) -> 0 | M32: 0 | N32: =IF('Computo-Massimali'!L32>0,L32/'Computo-Massimali'!L32,0) -> 0 | Q32: ST) Collettori Solari | R32: ='Computo-Massimali'!R32 -> 54545 | S32: ok | U32: 0 | W32: 0 | Y32: 0 | AA32: 0
C33: ='Computo-Massimali'!C33 -> FV) Solare Fotovoltaico ristr. kWp | E33: ='Computo-Massimali'!E33 -> 6 | F33: 0 | G33: =IF('Computo-Massimali'!F33<>0,'Computo-Massimali'!G33*F33/'Computo-Massimali'!F33,0) -> 0 | H33: 0 | I33: =F33*'Dati Gen'!$J$20+G33*'Dati Gen'!$J$19 -> 0 | J33: =H33+I33 -> 0 | K33: =IF('Computo-Massimali'!F33<>0,'Computo-Massimali'!K33*F33/'Computo-Massimali'!F33,0) -> 0 | L33: =SUM(J33:K33) -> 0 | M33: 0 | N33: =IF('Computo-Massimali'!L33>0,L33/'Computo-Massimali'!L33,0) -> 0 | Q33: FV) Solare Fotovoltaico ristr. kWp | R33: ='Computo-Massimali'!R33 -> 9600 | S33: ok | U33: 0 | W33: 0 | Y33: 0 | AA33: 0
C34: ='Computo-Massimali'!C34 -> AC) Sistema di Accumulo kWh | E34: ='Computo-Massimali'!E34 -> 10 | F34: 0 | G34: =IF('Computo-Massimali'!F34<>0,'Computo-Massimali'!G34*F34/'Computo-Massimali'!F34,0) -> 0 | H34: 0 | I34: =F34*'Dati Gen'!$J$20+G34*'Dati Gen'!$J$19 -> 0 | J34: =H34+I34 -> 0 | K34: =IF('Computo-Massimali'!F34<>0,'Computo-Massimali'!K34*F34/'Computo-Massimali'!F34,0) -> 0 | L34: =SUM(J34:K34) -> 0 | M34: 0 | N34: =IF('Computo-Massimali'!L34>0,L34/'Computo-Massimali'!L34,0) -> 0 | Q34: AC) Sistema di Accumulo kWh | R34: ='Computo-Massimali'!R34 -> 10000 | S34: ok | U34: 0 | W34: 0 | Y34: 0 | AA34: 0
C35: ='Computo-Massimali'!C35 -> CR) Colonnine di Ricarica N. | F35: 0 | G35: =IF('Computo-Massimali'!F35<>0,'Computo-Massimali'!G35*F35/'Computo-Massimali'!F35,0) -> 0 | H35: 0 | I35: =F35*'Dati Gen'!$J$20+G35*'Dati Gen'!$J$19 -> 0 | J35: 0 | K35: =IF('Computo-Massimali'!F35<>0,'Computo-Massimali'!K35*F35/'Computo-Massimali'!F35,0) -> 0 | L35: 0 | M35: 0 | N35: =IF('Computo-Massimali'!L35>0,L35/'Computo-Massimali'!L35,0) -> 0 | Q35: CR) Colonnine di Ricarica N. | R35: ='Computo-Massimali'!R35 -> 1500 | S35: ok | U35: 0 | W35: 0 | Y35: 0 | AA35: 0
C36: ='Computo-Massimali'!C36 -> EBA) Eliminazione Barriere architettoniche | F36: 0 | G36: =IF('Computo-Massimali'!F36<>0,'Computo-Massimali'!G36*F36/'Computo-Massimali'!F36,0) -> 0 | H36: 0 | I36: =F36*'Dati Gen'!$J$20+G36*'Dati Gen'!$J$19 -> 0 | J36: 0 | K36: =IF('Computo-Massimali'!F36<>0,'Computo-Massimali'!K36*F36/'Computo-Massimali'!F36,0) -> 0 | L36: 0 | M36: 0 | N36: =IF('Computo-Massimali'!L36>0,L36/'Computo-Massimali'!L36,0) -> 0 | Q36: EBA) Eliminazione Barriere architettoniche | R36: ='Computo-Massimali'!R36 -> 96000 | S36: ok | U36: 0 | W36: 0 | Y36: 0 | AA36: 0
C37: ='Computo-Massimali'!C37 -> Totale Interventi Trainati Parti Comuni: | F37: =SUM(F24:F26)+SUM(F30:F36) -> 0 | G37: =SUM(G24:G26)+SUM(G30:G36) -> 0 | H37: =SUM(H24:H26)+SUM(H30:H36) -> 0 | I37: 0 | J37: 0 | K37: 0 | L37: 0 | M37: 0 | N37: =IF('Computo-Massimali'!L37>0,L37/'Computo-Massimali'!L37,0) -> 0 | R37: =C37 -> Totale Interventi Trainati Parti Comuni: | U37: =SUM(U24:V36) -> 0 | W37: =SUM(W24:X36) -> 0 | Y37: =SUM(Y23:Z36) -> 0 | AA37: =SUM(AA24:AB36) -> 0
C40: INTERVENTI TRAINATI | Q40: =CONCATENATE("Verifica Massimali di Spesa ",C40) -> Verifica Massimali di Spesa INTERVENTI TRAINATI
C41: Interventi | F41: Importo Lavori | G41: Incidenza Sicurezza | H41: Imponibile | I41: Iva | J41: Importo c.iva | K41: Spese tecniche | L41: Totale | M41: Detrazione Spettante | N41: %SAL | R41: Massimale spesa | S41: Verifica Max | U41: Spesa Ammessa | W41: Quota Eccedente Massimale Spesa | Y41: Cessione Credito
C42: ='Computo-Massimali'!C42:D42 -> PV) Isolamento pareti perimetrali | E42: ='Computo-Massimali'!E42 -> Esterno | F42: 0 | G42: =IF('Computo-Massimali'!F42<>0,'Computo-Massimali'!G42*F42/'Computo-Massimali'!F42,0) -> 0 | H42: =SUM(F42:G42) -> 0 | I42: =F42*'Dati Gen'!$J$20+G42*'Dati Gen'!$J$19 -> 0 | J42: =H42+I42 -> 0 | K42: =IF('Computo-Massimali'!F42<>0,'Computo-Massimali'!K42*F42/'Computo-Massimali'!F42,0) -> 0 | L42: =SUM(J42:K42) -> 0 | M42: =IF(L42<=R42,L42*1.1,R42*1.1) -> 0 | N42: =IF('Computo-Massimali'!L42>0,L42/'Computo-Massimali'!L42,0) -> 0 | Q42: =C42 -> PV) Isolamento pareti perimetrali | R42: ='Computo-Massimali'!R42 -> 54545 | S42: =IF(L42>M42,"KO Tot.>Detr.",IF(L42>R42,"ok< Tot.>Max.","ok")) -> ok | U42: =IF($L$46<>0,(L42/$L$46)*$U$46,0) -> 0 | Y42: Quota Impresa | AA42: Quota Tecnici
C43: ='Computo-Massimali'!C43:D43 -> PO) Isolamento coperture | E43: Esterno | F43: 0 | G43: =IF('Computo-Massimali'!F43<>0,'Computo-Massimali'!G43*F43/'Computo-Massimali'!F43,0) -> 0 | H43: =SUM(F43:G43) -> 0 | I43: =F43*'Dati Gen'!$J$20+G43*'Dati Gen'!$J$19 -> 0 | J43: =H43+I43 -> 0 | K43: =IF('Computo-Massimali'!F43<>0,'Computo-Massimali'!K43*F43/'Computo-Massimali'!F43,0) -> 0 | L43: =SUM(J43:K43) -> 0 | M43: =IF(L43<=R43,L43*1.1,R43*1.1) -> 0 | N43: =IF('Computo-Massimali'!L43>0,L43/'Computo-Massimali'!L43,0) -> 0 | Q43: PO) Isolamento coperture | R43: ='Computo-Massimali'!R43 -> 54545 | S43: ok | U43: =IF($L$46<>0,(L43/$L$46)*$U$46,0) -> 0
C44: ='Computo-Massimali'!C44:D44 -> PS) Isolamento Pavimenti | E44: Esterno | F44: 0 | G44: =IF('Computo-Massimali'!F44<>0,'Computo-Massimali'!G44*F44/'Computo-Massimali'!F44,0) -> 0 | H44: =SUM(F44:G44) -> 0 | I44: =F44*'Dati Gen'!$J$20+G44*'Dati Gen'!$J$19 -> 0 | J44: =H44+I44 -> 0 | K44: =IF('Computo-Massimali'!F44<>0,'Computo-Massimali'!K44*F44/'Computo-Massimali'!F44,0) -> 0 | L44: =SUM(J44:K44) -> 0 | M44: =IF(L44<=R44,L44*1.1,R44*1.1) -> 0 | N44: =IF('Computo-Massimali'!L44>0,L44/'Computo-Massimali'!L44,0) -> 0 | Q44: PS) Isolamento Pavimenti | R44: ='Computo-Massimali'!R44 -> 54545 | S44: ok | U44: =IF($L$46<>0,(L44/$L$46)*$U$46,0) -> 0
C45: ='Computo-Massimali'!C45:D45 -> IN) Serramenti con chiusure oscuranti | E45: Zone D, E ed F | F45: 0 | G45: =IF('Computo-Massimali'!F45<>0,'Computo-Massimali'!G45*F45/'Computo-Massimali'!F45,0) -> 0 | H45: =SUM(F45:G45) -> 0 | I45: =F45*'Dati Gen'!$J$20+G45*'Dati Gen'!$J$19 -> 0 | J45: =H45+I45 -> 0 | K45: =IF('Computo-Massimali'!F45<>0,'Computo-Massimali'!K45*F45/'Computo-Massimali'!F45,0) -> 0 | L45: =SUM(J45:K45) -> 0 | M45: =IF(L45<=R45,L45*1.1,R45*1.1) -> 0 | N45: =IF('Computo-Massimali'!L45>0,L45/'Computo-Massimali'!L45,0) -> 0 | Q45: IN) Serramenti con chiusure oscuranti | R45: ='Computo-Massimali'!R45 -> 54545 | S45: ok | U45: =IF($L$46<>0,(L45/$L$46)*$U$46,0) -> 0
C46: ='Computo-Massimali'!C46:D46 -> Totali Isolamenti e Serramenti | F46: =SUM(F42:F45) -> 0 | G46: =SUM(G42:G45) -> 0 | H46: =SUM(H42:H45) -> 0 | I46: 0 | J46: 0 | K46: 0 | L46: 0 | M46: 0 | N46: =IF('Computo-Massimali'!L46>0,L46/'Computo-Massimali'!L46,0) -> 0 | Q46: Totali Isolamenti e Serramenti | R46: ='Computo-Massimali'!R46 -> 54545 | S46: ok | U46: =IF(L46<R46,L46,R46) -> 0 | W46: =IF(L46>R46,L46-R46,0) -> 0 | Y46: =IF(M46<>0,J46*M46/L46,0) -> 0 | AA46: =IF(M46<>0,K46*M46/L46,0) -> 0
C47: ='Computo-Massimali'!C47:D47 -> SS) Schermature solari e chiusure oscur. | F47: 0 | G47: =IF('Computo-Massimali'!F47<>0,'Computo-Massimali'!G47*F47/'Computo-Massimali'!F47,0) -> 0 | H47: =SUM(F47:G47) -> 0 | I47: =F47*'Dati Gen'!$J$20+G47*'Dati Gen'!$J$19 -> 0 | J47: =H47+I47 -> 0 | K47: =IF('Computo-Massimali'!F47<>0,'Computo-Massimali'!K47*F47/'Computo-Massimali'!F47,0) -> 0 | L47: =SUM(J47:K47) -> 0 | M47: =IF(L47<=R47,L47*1.1,R47*1.1) -> 0 | N47: =IF('Computo-Massimali'!L47>0,L47/'Computo-Massimali'!L47,0) -> 0 | Q47: SS) Schermature solari e chiusure oscur. | R47: ='Computo-Massimali'!R47 -> 54545 | S47: ok | U47: =IF(L47<R47,L47,R47) -> 0 | W47: =IF(L47>R47,L47-R47,0) -> 0 | Y47: =IF(M47<>0,J47*M47/L47,0) -> 0 | AA47: =IF(M47<>0,K47*M47/L47,0) -> 0
C48: ='Computo-Massimali'!C48:D48 -> Impianti climatizzazione e ACS | F48: 0 | G48: =IF('Computo-Massimali'!F48<>0,'Computo-Massimali'!G48*F48/'Computo-Massimali'!F48,0) -> 0 | H48: =SUM(F48:G48) -> 0 | I48: =F48*'Dati Gen'!$J$20+G48*'Dati Gen'!$J$19 -> 0 | J48: =H48+I48 -> 0 | K48: =IF('Computo-Massimali'!F48<>0,'Computo-Massimali'!K48*F48/'Computo-Massimali'!F48,0) -> 0 | L48: =SUM(J48:K48) -> 0 | M48: =IF(L48<=R48,L48*1.1,R48*1.1) -> 0 | N48: =IF('Computo-Massimali'!L48>0,L48/'Computo-Massimali'!L48,0) -> 0 | Q48: Impianti climatizzazione e ACS | R48: ='Computo-Massimali'!R48 -> 27272 | S48: ok | U48: =IF($L$50<>0,(L48/$L$50)*$U$50,0) -> 0
C49: ='Computo-Massimali'!C49:D49 -> SA) Scaldacqua a pompa di calore | F49: 0 | G49: =IF('Computo-Massimali'!F49<>0,'Computo-Massimali'!G49*F49/'Computo-Massimali'!F49,0) -> 0 | H49: =SUM(F49:G49) -> 0 | I49: =F49*'Dati Gen'!$J$20+G49*'Dati Gen'!$J$19 -> 0 | J49: =H49+I49 -> 0 | K49: =IF('Computo-Massimali'!F49<>0,'Computo-Massimali'!K49*F49/'Computo-Massimali'!F49,0) -> 0 | L49: =SUM(J49:K49) -> 0 | M49: =IF(L49<=R49,L49*1.1,R49*1.1) -> 0 | N49: =IF('Computo-Massimali'!L49>0,L49/'Computo-Massimali'!L49,0) -> 0 | Q49: SA) Scaldacqua a pompa di calore | R49: ='Computo-Massimali'!R49 -> 27272 | S49: ok | U49: =IF($L$50<>0,(L49/$L$50)*$U$50,0) -> 0
C50: ='Computo-Massimali'!C50:D50 -> Totali Impianti ed SA) | F50: =SUM(F48:F49) -> 0 | G50: =SUM(G48:G49) -> 0 | H50: =SUM(H48:H49) -> 0 | I50: 0 | J50: 0 | K50: 0 | L50: 0 | M50: 0 | N50: =IF('Computo-Massimali'!L50>0,L50/'Computo-Massimali'!L50,0) -> 0 | Q50: Totali Impianti ed SA) | R50: ='Computo-Massimali'!R50 -> 27272 | S50: ok | U50: =IF(L50<R50,L50,R50) -> 0 | W50: =IF(L50>R50,L50-R50,0) -> 0 | Y50: =IF(M50<>0,J50*M50/L50,0) -> 0 | AA50: =IF(M50<>0,K50*M50/L50,0) -> 0
C51: ='Computo-Massimali'!C51:D51 -> CO) Sistemi di Microgenerazione | F51: 0 | G51: =IF('Computo-Massimali'!F51<>0,'Computo-Massimali'!G51*F51/'Computo-Massimali'!F51,0) -> 0 | H51: =SUM(F51:G51) -> 0 | I51: =F51*'Dati Gen'!$J$20+G51*'Dati Gen'!$J$19 -> 0 | J51: =H51+I51 -> 0 | K51: =IF('Computo-Massimali'!F51<>0,'Computo-Massimali'!K51*F51/'Computo-Massimali'!F51,0) -> 0 | L51: =SUM(J51:K51) -> 0 | M51: =IF(L51<=R51,L51*1.1,R51*1.1) -> 0 | N51: =IF('Computo-Massimali'!L51>0,L51/'Computo-Massimali'!L51,0) -> 0 | Q51: =C51 -> CO) Sistemi di Microgenerazione | R51: ='Computo-Massimali'!R51 -> 90909 | S51: ok | U51: 0 | W51: 0 | Y51: 0 | AA51: 0
C52: ='Computo-Massimali'!C52:D52 -> IB) Generatori a Biomassa | F52: 0 | G52: =IF('Computo-Massimali'!F52<>0,'Computo-Massimali'!G52*F52/'Computo-Massimali'!F52,0) -> 0 | H52: 0 | I52: =F52*'Dati Gen'!$J$20+G52*'Dati Gen'!$J$19 -> 0 | J52: 0 | K52: =IF('Computo-Massimali'!F52<>0,'Computo-Massimali'!K52*F52/'Computo-Massimali'!F52,0) -> 0 | L52: 0 | M52: 0 | N52: =IF('Computo-Massimali'!L52>0,L52/'Computo-Massimali'!L52,0) -> 0 | Q52: IB) Generatori a Biomassa | R52: ='Computo-Massimali'!R52 -> 27272 | S52: ok | U52: 0 | W52: 0 | Y52: 0 | AA52: 0
C53: ='Computo-Massimali'!C53:D53 -> BA) Building Automation | F53: 0 | G53: =IF('Computo-Massimali'!F53<>0,'Computo-Massimali'!G53*F53/'Computo-Massimali'!F53,0) -> 0 | H53: 0 | I53: =F53*'Dati Gen'!$J$20+G53*'Dati Gen'!$J$19 -> 0 | J53: 0 | K53: =IF('Computo-Massimali'!F53<>0,'Computo-Massimali'!K53*F53/'Computo-Massimali'!F53,0) -> 0 | L53: 0 | M53: 0 | N53: =IF('Computo-Massimali'!L53>0,L53/'Computo-Massimali'!L53,0) -> 0 | Q53: BA) Building Automation | R53: ='Computo-Massimali'!R53 -> 13636.36364 | S53: ok | U53: 0 | W53: 0 | Y53: 0 | AA53: 0
C54: ='Computo-Massimali'!C54:D54 -> ST) Collettori Solari | E54: Piani Vetrati | F54: 0 | G54: =IF('Computo-Massimali'!F54<>0,'Computo-Massimali'!G54*F54/'Computo-Massimali'!F54,0) -> 0 | H54: 0 | I54: =F54*'Dati Gen'!$J$20+G54*'Dati Gen'!$J$19 -> 0 | J54: 0 | K54: =IF('Computo-Massimali'!F54<>0,'Computo-Massimali'!K54*F54/'Computo-Massimali'!F54,0) -> 0 | L54: 0 | M54: 0 | N54: =IF('Computo-Massimali'!L54>0,L54/'Computo-Massimali'!L54,0) -> 0 | Q54: ST) Collettori Solari | R54: ='Computo-Massimali'!R54 -> 54545 | S54: ok | U54: 0 | W54: 0 | Y54: 0 | AA54: 0
C55: ='Computo-Massimali'!C55:D55 -> FV) Solare Fotovoltaico kWp | E55: 6 | F55: 0 | G55: =IF('Computo-Massimali'!F55<>0,'Computo-Massimali'!G55*F55/'Computo-Massimali'!F55,0) -> 0 | H55: 0 | I55: =F55*'Dati Gen'!$J$20+G55*'Dati Gen'!$J$19 -> 0 | J55: 0 | K55: =IF('Computo-Massimali'!F55<>0,'Computo-Massimali'!K55*F55/'Computo-Massimali'!F55,0) -> 0 | L55: 0 | M55: 0 | N55: =IF('Computo-Massimali'!L55>0,L55/'Computo-Massimali'!L55,0) -> 0 | Q55: FV) Solare Fotovoltaico kWp | R55: ='Computo-Massimali'!R55 -> 14400 | S55: ok | U55: 0 | W55: 0 | Y55: 0 | AA55: 0
C56: ='Computo-Massimali'!C56:D56 -> AC) Sistema di Accumulo kWh | E56: 10 | F56: 0 | G56: =IF('Computo-Massimali'!F56<>0,'Computo-Massimali'!G56*F56/'Computo-Massimali'!F56,0) -> 0 | H56: 0 | I56: =F56*'Dati Gen'!$J$20+G56*'Dati Gen'!$J$19 -> 0 | J56: 0 | K56: =IF('Computo-Massimali'!F56<>0,'Computo-Massimali'!K56*F56/'Computo-Massimali'!F56,0) -> 0 | L56: 0 | M56: 0 | N56: =IF('Computo-Massimali'!L56>0,L56/'Computo-Massimali'!L56,0) -> 0 | Q56: AC) Sistema di Accumulo kWh | R56: ='Computo-Massimali'!R56 -> 10000 | S56: ok | U56: 0 | W56: 0 | Y56: 0 | AA56: 0
C57: ='Computo-Massimali'!C57:D57 -> CR) Colonnine di Ricarica | F57: 0 | G57: =IF('Computo-Massimali'!F57<>0,'Computo-Massimali'!G57*F57/'Computo-Massimali'!F57,0) -> 0 | H57: 0 | I57: =F57*'Dati Gen'!$J$20+G57*'Dati Gen'!$J$19 -> 0 | J57: 0 | K57: =IF('Computo-Massimali'!F57<>0,'Computo-Massimali'!K57*F57/'Computo-Massimali'!F57,0) -> 0 | L57: 0 | M57: 0 | N57: =IF('Computo-Massimali'!L57>0,L57/'Computo-Massimali'!L57,0) -> 0 | Q57: CR) Colonnine di Ricarica | R57: ='Computo-Massimali'!R57 -> 1500 | S57: ok | U57: 0 | W57: 0 | Y57: 0 | AA57: 0
C58: Totale Interventi trainati | F58: =F46+F47+SUM(F50:F57) -> 0 | G58: =G46+G47+SUM(G50:G57) -> 0 | H58: =H46+H47+SUM(H50:H57) -> 0 | I58: 0 | J58: 0 | K58: 0 | L58: 0 | M58: 0 | N58: =IF('Computo-Massimali'!L58>0,L58/'Computo-Massimali'!L58,0) -> 0 | R58: =C58 -> Totale Interventi trainati | U58: =SUM(U46:V57) -> 0 | W58: =SUM(W46:X57) -> 0 | Y58: =SUM(Y46:Z57) -> 0 | AA58: =SUM(AA46:AB57) -> 0
C78: SimMZ
C80: TOTALI SAL N.1 - INTERVENTI 110 | F80: Importo Lavori | G80: Incidenza Sicurezza | H80: Imponibile | I80: Iva | J80: Importo c.iva | K80: Spese tecniche | L80: Totale | M80: Credito Spettante 110% Spesa Ammessa | N80: %SAL | Q80: =C80 -> TOTALI SAL N.1 - INTERVENTI 110 | U80: Spesa Ammessa | W80: Quota Eccedente Massimale Spesa | Y80: Cessione Credito Quota Impresa | Quota Tecnici
F81: =F16+F58 -> 1000 | G81: 0 | H81: 1000 | I81: 1 | J81: 1100 | K81: 0 | L81: 1100 | M81: 1210 | N81: =IF('Computo-Massimali'!L81>0,L81/'Computo-Massimali'!L81,0) -> 0 | U81: =U16+U37+U58 -> 1100 | W81: =T16+T58 -> 0 | Y81: =V16+V58 -> 0 | AA81: =X16+X58 -> 0
C83: =IF(N81>=29.999%,"","Attenzione! SAL Superbonus 110 inferiore 30%") -> Attenzione! SAL Superbonus 110 inferiore 30%
C87: ALTRI INTERVENTI | Q87: =CONCATENATE("Verifica Massimali di Spesa ",C87) -> Verifica Massimali di Spesa ALTRI INTERVENTI
C88: Interventi | E88: x% Credito ceduto | F88: Importo Lavori | G88: Incidenza Sicurezza | H88: Imponibile | I88: Iva | J88: Importo c.iva | K88: Spese tecniche | L88: Totale | M88: Credito Spettante x% Spesa Ammessa | N88: %SAL | R88: Massimale spesa | S88: Verifica Max | U88: Spesa Ammessa | W88: Quota Eccedente Massimale Spesa | Y88: Cessione Credito Quota Impresa | Quota Tecnici
C89: =IF('Computo-Massimali'!C89<>"",'Computo-Massimali'!C89,"") -> Lavori Ristrutturazione | E89: =IF('Computo-Massimali'!E89<>0,'Computo-Massimali'!E89,"") -> 0.5 | F89: 0 | G89: =IF('Computo-Massimali'!F89<>0,'Computo-Massimali'!G89*F89/'Computo-Massimali'!F89,0) -> 0 | H89: =SUM(F89:G89) -> 0 | I89: =F89*'Dati Gen'!$J$20+G89*'Dati Gen'!$J$19 -> 0 | J89: =H89+I89 -> 0 | K89: =IF('Computo-Massimali'!F89<>0,'Computo-Massimali'!K89*F89/'Computo-Massimali'!F89,0) -> 0 | L89: =SUM(J89:K89) -> 0 | M89: =IF(L89<=R89,L89*E89,R89*E89) -> 0 | N89: =IF('Computo-Massimali'!L89>0,L89/'Computo-Massimali'!L89,0) -> 0 | Q89: =IF(C89<>"",C89,"") -> Lavori Ristrutturazione | R89: =96000*N_Uimm -> 96000 | S89: =IF(R89<>0,IF(L89>R89,"KO","ok"),"ok") -> ok | U89: =IF(L89<R89,L89,R89) -> 0 | W89: =IF(L89>R89,L89-R89,0) -> 0 | Y89: =IF(M89<>0,J89*M89/L89,0) -> 0 | AA89: =IF(M89<>0,K89*M89/L89,0) -> 0
C90: =IF('Computo-Massimali'!C90<>"",'Computo-Massimali'!C90,"") -> Ecobonus | E90: =IF('Computo-Massimali'!E90<>0,'Computo-Massimali'!E90,"") -> 0.65 | F90: 0 | G90: =IF('Computo-Massimali'!F90<>0,'Computo-Massimali'!G90*F90/'Computo-Massimali'!F90,0) -> 0 | H90: =SUM(F90:G90) -> 0 | I90: =F90*'Dati Gen'!$J$20+G90*'Dati Gen'!$J$19 -> 0 | J90: =H90+I90 -> 0 | K90: =IF('Computo-Massimali'!F90<>0,'Computo-Massimali'!K90*F90/'Computo-Massimali'!F90,0) -> 0 | L90: 0 | M90: =IF(L90<=R90,L90*E90,R90*E90) -> 0 | N90: =IF('Computo-Massimali'!L90>0,L90/'Computo-Massimali'!L90,0) -> 0 | Q90: =IF(C90<>"",C90,"") -> Ecobonus | R90: =96000*N_Uimm -> 96000 | S90: =IF(R90<>0,IF(L90>R90,"KO","ok"),"ok") -> ok | U90: =IF(L90<R90,L90,R90) -> 0 | W90: =IF(L90>R90,L90-R90,0) -> 0 | Y90: =IF(M90<>0,J90*M90/L90,0) -> 0 | AA90: =IF(M90<>0,K90*M90/L90,0) -> 0
C91: =IF('Computo-Massimali'!C91<>"",'Computo-Massimali'!C91,"") -> Bonus Facciata | E91: =IF('Computo-Massimali'!E91<>0,'Computo-Massimali'!E91,"") -> 0.9 | F91: 0 | G91: =IF('Computo-Massimali'!F91<>0,'Computo-Massimali'!G91*F91/'Computo-Massimali'!F91,0) -> 0 | H91: =SUM(F91:G91) -> 0 | I91: =F91*'Dati Gen'!$J$20+G91*'Dati Gen'!$J$19 -> 0 | J91: =H91+I91 -> 0 | K91: =IF('Computo-Massimali'!F91<>0,'Computo-Massimali'!K91*F91/'Computo-Massimali'!F91,0) -> 0 | L91: 0 | M91: =IF(L91<=R91,L91*E91,R91*E91) -> 0 | N91: =IF('Computo-Massimali'!L91>0,L91/'Computo-Massimali'!L91,0) -> 0 | Q91: =IF(C91<>"",C91,"") -> Bonus Facciata | R91: =96000*N_Uimm -> 96000 | S91: =IF(R91<>0,IF(L91>R91,"KO","ok"),"ok") -> ok | U91: =IF(L91<R91,L91,R91) -> 0 | W91: =IF(L91>R91,L91-R91,0) -> 0 | Y91: =IF(M91<>0,J91*M91/L91,0) -> 0 | AA91: =IF(M91<>0,K91*M91/L91,0) -> 0
C92: =IF('Computo-Massimali'!C92<>"",'Computo-Massimali'!C92,"") ->  | E92: =IF('Computo-Massimali'!E92<>0,'Computo-Massimali'!E92,"") ->  | F92: 0 | G92: =IF('Computo-Massimali'!F92<>0,'Computo-Massimali'!G92*F92/'Computo-Massimali'!F92,0) -> 0 | H92: 0 | I92: 0 | J92: 0 | K92: =IF('Computo-Massimali'!F92<>0,'Computo-Massimali'!K92*F92/'Computo-Massimali'!F92,0) -> 0 | L92: 0 | M92: 0 | N92: =IF('Computo-Massimali'!L92>0,L92/'Computo-Massimali'!L92,0) -> 0 | Q92: =IF(C92<>"",C92,"") ->  | R92: =96000*N_Uimm -> 96000 | S92: =IF(R92<>0,IF(L92>R92,"KO","ok"),"ok") -> ok | U92: =IF(L92<R92,L92,R92) -> 0 | W92: =IF(L92>R92,L92-R92,0) -> 0 | Y92: =IF(M92<>0,J92*M92/L92,0) -> 0 | AA92: =IF(M92<>0,K92*M92/L92,0) -> 0
C93: TotalI SAL N.1 - Altri Interventi : | F93: =SUM(F89:F92) -> 0 | G93: 0 | H93: 0 | I93: 0 | J93: 0 | K93: 0 | L93: 0 | M93: 0 | N93: =IF('Computo-Massimali'!L93>0,L93/'Computo-Massimali'!L93,0) -> 0 | R93: =C93 -> TotalI SAL N.1 - Altri Interventi : | U93: =SUM(U89:V92) -> 0 | W93: =SUM(W89:X92) -> 0 | Y93: =SUM(Y89:Z92) -> 0 | AA93: =SUM(AA89:AB92) -> 0
C96: TOTALI SAL N.1 | F96: Importo Lavori Eseguiti | G96: Incidenza Sicurezza | H96: Imponibile | I96: Iva | J96: Importo c.iva | K96: Spese tecniche | L96: Totale | M96: Credito Spettante | N96: %SAL | Q96: =C96 -> TOTALI SAL N.1 | U96: Spesa Ammessa | W96: Quota Eccedente Massimale Spesa | Y96: Cessione Credito Quota Impresa | Quota Tecnici
F97: =F81+F93 -> 1000 | G97: 0 | H97: 1000 | I97: 1 | J97: 1100 | K97: 0 | L97: 1100 | M97: 1210 | N97: =IF('Computo-Massimali'!L100>0,L97/'Computo-Massimali'!L100,0) -> 0 | U97: =U81+U93 -> 1100 | W97: =W81+W93 -> 0 | Y97: =Y81+Y93 -> 0 | AA97: =AA81+AA93 -> 0
C100: =IF(ABS(D5-G97)>0.01,"Importo Effettivo Lavori Eseguiti","") ->  | F100: =IF($C$100<>"",F97,"") ->  | G100: =IF($C$100<>"",D5,"") ->  | H100: =IF($C$100<>"",F100+G100,"") ->  | I100: =IF($C$100<>"",H100*AliqIva,"") ->  | J100: =IF($C$100<>"",H100+I100,"") ->  | K100: =IF($C$100<>"",K97,"") ->  | L100: =IF($C$100<>"",J100+K100,"") ->  | M100: =IF($C$100<>"",L100*1.1,"") ->  | N100: =IF($C$100<>"",L100/'Computo-Massimali'!L100,"") -> 
C101: =IF($C$100<>"","Oneri/Lavori Sicurezza non imputabili al SAL, per lavori non eseguiti","") ->  | G101: =IF($C$101<>"",D5-G97,"") -> 
Q116: Ripartizione Spese Tecniche SAL. N.1 - INTERVENTI 110 | AC116: Applica Sconto in Fattura
Q117: Lavoro | R117: Tecnico | S117: Onorario | U117: C.Cassa | W117: Imponibile | Y117: IVA | AA117: Totale | AF117: ='Dati Gen'!B44 -> Ingegnere 1 | AG117: ='Dati Gen'!B45 -> Dott. Igor | AH117: ='Dati Gen'!B46 -> 0 | AI117: ='Dati Gen'!B47 -> 0 | AJ117: ='Dati Gen'!B48 -> 0 | AK117: ='Dati Gen'!B49 -> 0 | AL117: ='Dati Gen'!B50 -> 0 | AM117: ='Dati Gen'!B51 -> 0
Q118: =IF('Dati Gen'!B25<>"",'Dati Gen'!B25,"") -> Incarico 1 | R118: =IF('Dati Gen'!C25<>"",'Dati Gen'!C25,"") -> Ingegnere 1 | S118: =W118/(1+U118) -> 0 | U118: ='Dati Gen'!G25 -> 0.04 | V118: =S118*U118 -> 0 | W118: =AA118/(1+Y118) -> 0 | Y118: 0.22 | Z118: =Y118*(S118+V118) -> 0 | AA118: =IF('Dati Gen'!$M$36<>"",$AA$127*'Dati Gen'!M25/'Dati Gen'!$M$36,0) -> 0 | AC118: =IF(R118<>"",VLOOKUP('SAL.30%'!R118,'Dati Gen'!$B$44:$D$51,3,0),"") -> SI | AF118: =IF($R118=AF$117,$AA118,0) -> 0 | AG118: =IF($R118=AG$117,$AA118,0) -> 0 | AH118: 0 | AI118: 0 | AJ118: 0 | AK118: 0 | AL118: 0 | AM118: 0 | AN118: 0
Q119: =IF('Dati Gen'!B26<>"",'Dati Gen'!B26,"") -> Calcoli e Deposito G.C. | R119: =IF('Dati Gen'!C26<>"",'Dati Gen'!C26,"") -> Ingegnere 1 | S119: =W119/(1+U119) -> 0 | U119: ='Dati Gen'!G26 -> 0.04 | V119: 0 | W119: =AA119/(1+Y119) -> 0 | Y119: 0.22 | Z119: =(S119+V119)*Y119 -> 0 | AA119: =IF('Dati Gen'!$M$36<>"",$AA$127*'Dati Gen'!M26/'Dati Gen'!$M$36,0) -> 0 | AC119: =IF(R119<>"",VLOOKUP('SAL.30%'!R119,'Dati Gen'!$B$44:$D$51,3,0),"") -> SI | AF119: =IF($R119=AF$117,$AA119,0) -> 0 | AG119: 0 | AH119: 0 | AI119: 0 | AJ119: 0 | AK119: 0 | AL119: 0 | AM119: 0 | AN119: 0
Q120: =IF('Dati Gen'!B27<>"",'Dati Gen'!B27,"") -> Congruità | R120: =IF('Dati Gen'!C27<>"",'Dati Gen'!C27,"") -> Ingegnere 1 | S120: 0 | U120: ='Dati Gen'!G27 -> 0.04 | V120: 0 | W120: 0 | Y120: 0.22 | Z120: =(S120+V120)*Y120 -> 0 | AA120: =IF('Dati Gen'!$M$36<>"",$AA$127*'Dati Gen'!M27/'Dati Gen'!$M$36,0) -> 0 | AC120: =IF(R120<>"",VLOOKUP('SAL.30%'!R120,'Dati Gen'!$B$44:$D$51,3,0),"") -> SI | AF120: 0 | AG120: 0 | AH120: 0 | AI120: 0 | AJ120: 0 | AK120: 0 | AL120: 0 | AM120: 0 | AN120: 0
Q121: =IF('Dati Gen'!B28<>"",'Dati Gen'!B28,"") ->  | R121: =IF('Dati Gen'!C28<>"",'Dati Gen'!C28,"") ->  | S121: 0 | U121: ='Dati Gen'!G28 -> 0.04 | V121: 0 | W121: 0 | Y121: 0.22 | Z121: =(S121+V121)*Y121 -> 0 | AA121: =IF('Dati Gen'!$M$36<>"",$AA$127*'Dati Gen'!M28/'Dati Gen'!$M$36,0) -> 0 | AC121: =IF(R121<>"",VLOOKUP('SAL.30%'!R121,'Dati Gen'!$B$44:$D$51,3,0),"") ->  | AF121: 0 | AG121: 0 | AH121: 0 | AI121: 0 | AJ121: 0 | AK121: 0 | AL121: 0 | AM121: 0 | AN121: 0
Q122: =IF('Dati Gen'!B29<>"",'Dati Gen'!B29,"") ->  | R122: =IF('Dati Gen'!C29<>"",'Dati Gen'!C29,"") ->  | S122: =W122/(1+U122) -> 0 | U122: ='Dati Gen'!G29 -> 0.04 | V122: 0 | W122: 0 | Y122: 0.22 | Z122: =(T122+V122)*Y122 -> 0 | AA122: =IF('Dati Gen'!$M$36<>"",$AA$127*'Dati Gen'!M29/'Dati Gen'!$M$36,0) -> 0 | AC122: =IF(R122<>"",VLOOKUP('SAL.30%'!R122,'Dati Gen'!$B$44:$D$51,3,0),"") ->  | AF122: 0 | AG122: 0 | AH122: 0 | AI122: 0 | AJ122: 0 | AK122: 0 | AL122: 0 | AM122: 0 | AN122: 0
Q123: =IF('Dati Gen'!B30<>"",'Dati Gen'!B30,"") ->  | R123: =IF('Dati Gen'!C30<>"",'Dati Gen'!C30,"") ->  | S123: =W123/(1+U123) -> 0 | U123: ='Dati Gen'!G30 -> 0.04 | V123: 0 | W123: 0 | Y123: 0.22 | Z123: =(T123+V123)*Y123 -> 0 | AA123: =IF('Dati Gen'!$M$36<>"",$AA$127*'Dati Gen'!M30/'Dati Gen'!$M$36,0) -> 0 | AC123: =IF(R123<>"",VLOOKUP('SAL.30%'!R123,'Dati Gen'!$B$44:$D$51,3,0),"") ->  | AF123: 0 | AG123: 0 | AH123: 0 | AI123: 0 | AJ123: 0 | AK123: 0 | AL123: 0 | AM123: 0 | AN123: 0
Q124: =IF('Dati Gen'!B31<>"",'Dati Gen'!B31,"") ->  | R124: =IF('Dati Gen'!C31<>"",'Dati Gen'!C31,"") ->  | S124: 0 | U124: ='Dati Gen'!G31 -> 0.04 | V124: 0 | W124: 0 | Y124: 0.22 | Z124: =(T124+V124)*Y124 -> 0 | AA124: =IF('Dati Gen'!$M$36<>"",$AA$127*'Dati Gen'!M31/'Dati Gen'!$M$36,0) -> 0 | AC124: =IF(R124<>"",VLOOKUP('SAL.30%'!R124,'Dati Gen'!$B$44:$D$51,3,0),"") ->  | AF124: 0 | AG124: 0 | AH124: 0 | AI124: 0 | AJ124: 0 | AK124: 0 | AL124: 0 | AM124: 0 | AN124: 0
Q125: =IF('Dati Gen'!B32<>"",'Dati Gen'!B32,"") ->  | R125: =IF('Dati Gen'!C32<>"",'Dati Gen'!C32,"") ->  | S125: 0 | U125: ='Dati Gen'!G32 -> 0.04 | V125: 0 | W125: 0 | Y125: 0.22 | Z125: =(T125+V125)*Y125 -> 0 | AA125: =IF('Dati Gen'!$M$36<>"",$AA$127*'Dati Gen'!M32/'Dati Gen'!$M$36,0) -> 0 | AC125: =IF(R125<>"",VLOOKUP('SAL.30%'!R125,'Dati Gen'!$B$44:$D$51,3,0),"") ->  | AF125: 0 | AG125: 0 | AH125: 0 | AI125: 0 | AJ125: 0 | AK125: 0 | AL125: 0 | AM125: 0 | AN125: 0
Q126: =IF('Dati Gen'!B35<>"",'Dati Gen'!B35,"") -> Visto Conformità | R126: =IF('Dati Gen'!C35<>"",'Dati Gen'!C35,"") -> Dott. Igor | S126: 0 | U126: ='Dati Gen'!G35 -> 0.04 | V126: 0 | W126: 0 | Y126: 0.22 | Z126: =(S126+V126)*Y126 -> 0 | AA126: =IF('Dati Gen'!$M$36<>"",$AA$127*'Dati Gen'!M35/'Dati Gen'!$M$36,0) -> 0 | AC126: =IF(R126<>"",VLOOKUP('SAL.30%'!R126,'Dati Gen'!$B$44:$D$51,3,0),"") -> NO | AF126: 0 | AG126: 0 | AH126: 0 | AI126: 0 | AJ126: 0 | AK126: 0 | AL126: 0 | AM126: 0 | AN126: 0
S127: =SUM(S118:T126) -> 0 | U127: =SUM(V118:V126) -> 0 | W127: =SUM(W118:X126) -> 0 | Z127: =SUM(Z118:Z126) -> 0 | AA127: =SpeseTec30 -> 0 | AF127: =SUM(AF118:AF126) -> 0 | AG127: =SUM(AG118:AG126) -> 0 | AH127: 0 | AI127: 0 | AJ127: 0 | AK127: 0 | AL127: 0 | AM127: 0 | AN127: 0 | AO127: =SUM(AF127:AN127) -> 0
AF128: =IF($AO$127<>0,AF127/$AO$127,0) -> 0 | AG128: =IF($AO$127<>0,AG127/$AO$127,0) -> 0 | AH128: 0 | AI128: 0 | AJ128: 0 | AK128: 0 | AL128: 0 | AM128: 0 | AN128: 0
Q130: Ripartizione Spese Tecniche SAL. N.1 - ALTRI INTERVENTI | AC130: Applica Sconto in Fattura
Q131: Lavoro | R131: Tecnico | S131: Onorario | U131: C.Cassa | W131: Imponibile | Y131: IVA | AA131: Totale | AF131: =AF117 -> Ingegnere 1 | AG131: =AG117 -> Dott. Igor | AH131: 0 | AI131: 0 | AJ131: 0 | AK131: 0 | AL131: 0 | AM131: 0
Q132: =IF('Dati Gen'!B25<>"",'Dati Gen'!B25,"") -> Incarico 1 | R132: =IF('Dati Gen'!C25<>"",'Dati Gen'!C25,"") -> Ingegnere 1 | S132: =W132/(1+U132) -> 0 | U132: ='Dati Gen'!G25 -> 0.04 | V132: =S132*U132 -> 0 | W132: =AA132/(1+Y132) -> 0 | Y132: 0.22 | Z132: =Y132*(S132+V132) -> 0 | AA132: =IF('Dati Gen'!$M$36<>"",$AA$141*'Dati Gen'!M25/'Dati Gen'!$M$36,0) -> 0 | AC132: =IF(R132<>"",VLOOKUP('SAL.30%'!R132,'Dati Gen'!$B$44:$D$51,3,0),"") -> SI | AF132: =IF($R132=AF$117,$AA132,0) -> 0 | AG132: =IF($R132=AG$117,$AA132,0) -> 0 | AH132: 0 | AI132: 0 | AJ132: 0 | AK132: 0 | AL132: 0 | AM132: 0 | AN132: 0
Q133: =IF('Dati Gen'!B26<>"",'Dati Gen'!B26,"") -> Calcoli e Deposito G.C. | R133: =IF('Dati Gen'!C26<>"",'Dati Gen'!C26,"") -> Ingegnere 1 | S133: =W133/(1+U133) -> 0 | U133: ='Dati Gen'!G26 -> 0.04 | V133: 0 | W133: =AA133/(1+Y133) -> 0 | Y133: 0.22 | Z133: =(S133+V133)*Y133 -> 0 | AA133: =IF('Dati Gen'!$M$36<>"",$AA$141*'Dati Gen'!M26/'Dati Gen'!$M$36,0) -> 0 | AC133: =IF(R133<>"",VLOOKUP('SAL.30%'!R133,'Dati Gen'!$B$44:$D$51,3,0),"") -> SI | AF133: =IF($R133=AF$117,$AA133,0) -> 0 | AG133: 0 | AH133: 0 | AI133: 0 | AJ133: 0 | AK133: 0 | AL133: 0 | AM133: 0 | AN133: 0
Q134: =IF('Dati Gen'!B27<>"",'Dati Gen'!B27,"") -> Congruità | R134: =IF('Dati Gen'!C27<>"",'Dati Gen'!C27,"") -> Ingegnere 1 | S134: 0 | U134: ='Dati Gen'!G27 -> 0.04 | V134: 0 | W134: 0 | Y134: 0.22 | Z134: =(S134+V134)*Y134 -> 0 | AA134: =IF('Dati Gen'!$M$36<>"",$AA$141*'Dati Gen'!M27/'Dati Gen'!$M$36,0) -> 0 | AC134: =IF(R134<>"",VLOOKUP('SAL.30%'!R134,'Dati Gen'!$B$44:$D$51,3,0),"") -> SI | AF134: 0 | AG134: 0 | AH134: 0 | AI134: 0 | AJ134: 0 | AK134: 0 | AL134: 0 | AM134: 0 | AN134: 0
Q135: =IF('Dati Gen'!B28<>"",'Dati Gen'!B28,"") ->  | R135: =IF('Dati Gen'!C28<>"",'Dati Gen'!C28,"") ->  | S135: 0 | U135: ='Dati Gen'!G28 -> 0.04 | V135: 0 | W135: 0 | Y135: 0.22 | Z135: =(S135+V135)*Y135 -> 0 | AA135: =IF('Dati Gen'!$M$36<>"",$AA$141*'Dati Gen'!M28/'Dati Gen'!$M$36,0) -> 0 | AC135: =IF(R135<>"",VLOOKUP('SAL.30%'!R135,'Dati Gen'!$B$44:$D$51,3,0),"") ->  | AF135: 0 | AG135: 0 | AH135: 0 | AI135: 0 | AJ135: 0 | AK135: 0 | AL135: 0 | AM135: 0 | AN135: 0
Q136: =IF('Dati Gen'!B29<>"",'Dati Gen'!B29,"") ->  | R136: =IF('Dati Gen'!C29<>"",'Dati Gen'!C29,"") ->  | S136: 0 | U136: ='Dati Gen'!G29 -> 0.04 | V136: 0 | W136: 0 | Y136: 0.22 | Z136: =(T136+V136)*Y136 -> 0 | AA136: =IF('Dati Gen'!$M$36<>"",$AA$141*'Dati Gen'!M29/'Dati Gen'!$M$36,0) -> 0 | AC136: =IF(R136<>"",VLOOKUP('SAL.30%'!R136,'Dati Gen'!$B$44:$D$51,3,0),"") ->  | AF136: 0 | AG136: 0 | AH136: 0 | AI136: 0 | AJ136: 0 | AK136: 0 | AL136: 0 | AM136: 0 | AN136: 0
Q137: =IF('Dati Gen'!B30<>"",'Dati Gen'!B30,"") ->  | R137: =IF('Dati Gen'!C30<>"",'Dati Gen'!C30,"") ->  | S137: 0 | U137: ='Dati Gen'!G30 -> 0.04 | V137: 0 | W137: 0 | Y137: 0.22 | Z137: =(T137+V137)*Y137 -> 0 | AA137: =IF('Dati Gen'!$M$36<>"",$AA$141*'Dati Gen'!M30/'Dati Gen'!$M$36,0) -> 0 | AC137: =IF(R137<>"",VLOOKUP('SAL.30%'!R137,'Dati Gen'!$B$44:$D$51,3,0),"") ->  | AF137: 0 | AG137: 0 | AH137: 0 | AI137: 0 | AJ137: 0 | AK137: 0 | AL137: 0 | AM137: 0 | AN137: 0
Q138: =IF('Dati Gen'!B31<>"",'Dati Gen'!B31,"") ->  | R138: =IF('Dati Gen'!C31<>"",'Dati Gen'!C31,"") ->  | S138: 0 | U138: ='Dati Gen'!G31 -> 0.04 | V138: 0 | W138: 0 | Y138: 0.22 | Z138: =(T138+V138)*Y138 -> 0 | AA138: =IF('Dati Gen'!$M$36<>"",$AA$141*'Dati Gen'!M31/'Dati Gen'!$M$36,0) -> 0 | AC138: =IF(R138<>"",VLOOKUP('SAL.30%'!R138,'Dati Gen'!$B$44:$D$51,3,0),"") ->  | AF138: 0 | AG138: 0 | AH138: 0 | AI138: 0 | AJ138: 0 | AK138: 0 | AL138: 0 | AM138: 0 | AN138: 0
Q139: =IF('Dati Gen'!B32<>"",'Dati Gen'!B32,"") ->  | R139: =IF('Dati Gen'!C32<>"",'Dati Gen'!C32,"") ->  | S139: 0 | U139: ='Dati Gen'!G32 -> 0.04 | V139: 0 | W139: 0 | Y139: 0.22 | Z139: =(T139+V139)*Y139 -> 0 | AA139: =IF('Dati Gen'!$M$36<>"",$AA$141*'Dati Gen'!M32/'Dati Gen'!$M$36,0) -> 0 | AC139: =IF(R139<>"",VLOOKUP('SAL.30%'!R139,'Dati Gen'!$B$44:$D$51,3,0),"") ->  | AF139: 0 | AG139: 0 | AH139: 0 | AI139: 0 | AJ139: 0 | AK139: 0 | AL139: 0 | AM139: 0 | AN139: 0
Q140: =IF('Dati Gen'!B35<>"",'Dati Gen'!B35,"") -> Visto Conformità | R140: =IF('Dati Gen'!C35<>"",'Dati Gen'!C35,"") -> Dott. Igor | S140: 0 | U140: ='Dati Gen'!G35 -> 0.04 | V140: 0 | W140: 0 | Y140: 0.22 | Z140: =(S140+V140)*Y140 -> 0 | AA140: =IF('Dati Gen'!$M$36<>"",$AA$141*'Dati Gen'!M35/'Dati Gen'!$M$36,0) -> 0 | AC140: =IF(R140<>"",VLOOKUP('SAL.30%'!R140,'Dati Gen'!$B$44:$D$51,3,0),"") -> NO | AF140: 0 | AG140: 0 | AH140: 0 | AI140: 0 | AJ140: 0 | AK140: 0 | AL140: 0 | AM140: 0 | AN140: 0
S141: =SUM(S132:T140) -> 0 | U141: =SUM(V132:V140) -> 0 | W141: =SUM(W132:X140) -> 0 | Z141: =SUM(Z132:Z140) -> 0 | AA141: =K93 -> 0 | AF141: =SUM(AF132:AF140) -> 0 | AG141: 0 | AH141: 0 | AI141: 0 | AJ141: 0 | AK141: 0 | AL141: 0 | AM141: 0 | AN141: 0 | AO141: =SUM(AF141:AN141) -> 0
AF142: =IF($AO$141<>0,AF141/$AO$141,0) -> 0 | AG142: =IF($AO$141<>0,AG141/$AO$141,0) -> 0 | AH142: 0 | AI142: 0 | AJ142: 0 | AK142: 0 | AL142: 0 | AM142: 0 | AN142: 0

Sheet SAL.60%
P1: =MATCH("SimMZ",C:C,0) -> 78
F2: DATI DI PROGETTO : | G2: IMPONIBILE | H2: IVA | I2: IMPORTO | K2: IMPONIBILE | L2: IVA | M2: IMPORTO | N2: =CONCATENATE('Dati Gen'!K2," SIM.srl") -> Pratica.110plus SIM.srl
C3: STATO AVANZAMENTO LAVORI N.2 | F3: Importo Lavori | G3: ='Dati Gen'!G18 -> 10000 | H3: ='Dati Gen'!K18 -> 1000 | I3: ='Dati Gen'!M18 -> 11000 | J3: Importo Netto | K3: ='Dati Gen'!G20 -> 10000 | L3: ='Dati Gen'!K20 -> 1000 | M3: ='Dati Gen'!M20 -> 11000 | Q3: =IF('Computo-Massimali'!C6<>"","Attenzione! Tabella Computo-Massimali non completa. Si consiglia di completare, prima di registrare Voci di SAL","") -> Attenzione! Tabella Computo-Massimali non completa. Si consiglia di completare, prima di registrare Voci di SAL
C4: 12/11/2021 | F4: Oneri Sicurezza | G4: ='Dati Gen'!G19 -> 0 | H4: ='Dati Gen'!K19 -> 0 | I4: ='Dati Gen'!M19 -> 0 | J4: Spese Tecniche | K4: ='Dati Gen'!G21 -> 266.45 | L4: ='Dati Gen'!K21 -> 0 | M4: ='Dati Gen'!M21 -> 266.45
C5: Oneri/Lavori x Sicurezza | D5: 0 | K5: ='Dati Gen'!G22 -> Importo Complessivo Progetto : | M5: ='Dati Gen'!M22 -> 11266.45
C7: INTERVENTI TRAINANTI | Q7: =CONCATENATE("Verifica Massimali di Spesa ",C7) -> Verifica Massimali di Spesa INTERVENTI TRAINANTI
C8: Interventi | F8: Importo Lavori | G8: Incidenza Sicurezza | H8: Imponibile | I8: Iva | J8: Importo c.iva | K8: Spese tecniche | L8: Totale | M8: Detrazione Spettante | N8: %SAL | R8: Massimale spesa | S8: Verifica Max | U8: Spesa Ammessa | W8: Quota Eccedente Massimale Spesa | Y8: Cessione Credito
C9: ='Computo-Massimali'!C9 -> PV) Isolamento pareti perimetrali | E9: ='Computo-Massimali'!E9 -> Esterno | F9: 0 | G9: =IF('Computo-Massimali'!F9<>0,'Computo-Massimali'!G9*F9/'Computo-Massimali'!F9,0) -> 0 | H9: =SUM(F9:G9) -> 0 | I9: =F9*'Dati Gen'!$J$20+G9*'Dati Gen'!$J$19 -> 0 | J9: =H9+I9 -> 0 | K9: =IF('Computo-Massimali'!F9<>0,'Computo-Massimali'!K9*F9/'Computo-Massimali'!F9,0) -> 0 | L9: =SUM(J9:K9) -> 0 | M9: =IF(L9<=R9,L9*1.1,R9*1.1) -> 0 | N9: =IF('Computo-Massimali'!L9>0,L9/'Computo-Massimali'!L9,0) -> 0 | Q9: =C9 -> PV) Isolamento pareti perimetrali | R9: ='Computo-Massimali'!R9 -> 50000 | S9: =IF(L9>M9,"KO Tot.>Detr.",IF(L9>R9,"ok< Tot.>Max.","ok")) -> ok | U9: =IF($L$13<>0,(L9/$L$13)*$U$13,0) -> 0 | Y9: Quota Impresa | AA9: Quota Tecnici
C10: ='Computo-Massimali'!C10 -> PO) Isolamento coperture | E10: ='Computo-Massimali'!E10 -> Esterno | F10: 0 | G10: =IF('Computo-Massimali'!F10<>0,'Computo-Massimali'!G10*F10/'Computo-Massimali'!F10,0) -> 0 | H10: =SUM(F10:G10) -> 0 | I10: =F10*'Dati Gen'!$J$20+G10*'Dati Gen'!$J$19 -> 0 | J10: =H10+I10 -> 0 | K10: =IF('Computo-Massimali'!F10<>0,'Computo-Massimali'!K10*F10/'Computo-Massimali'!F10,0) -> 0 | L10: =SUM(J10:K10) -> 0 | M10: 0 | N10: =IF('Computo-Massimali'!L10>0,L10/'Computo-Massimali'!L10,0) -> 0 | Q10: PO) Isolamento coperture | R10: ='Computo-Massimali'!R10 -> 50000 | S10: =IF(L10>M10,"KO Tot.>Detr.",IF(L10>R10,"ok< Tot.>Max.","ok")) -> ok | U10: =IF($L$13<>0,(L10/$L$13)*$U$13,0) -> 0
C11: ='Computo-Massimali'!C11 -> POND) Isol. coperture non disperdenti | E11: ='Computo-Massimali'!E11 -> Esterno | F11: 0 | G11: =IF('Computo-Massimali'!F11<>0,'Computo-Massimali'!G11*F11/'Computo-Massimali'!F11,0) -> 0 | H11: =SUM(F11:G11) -> 0 | I11: =F11*'Dati Gen'!$J$20+G11*'Dati Gen'!$J$19 -> 0 | J11: =H11+I11 -> 0 | K11: =IF('Computo-Massimali'!F11<>0,'Computo-Massimali'!K11*F11/'Computo-Massimali'!F11,0) -> 0 | L11: =SUM(J11:K11) -> 0 | M11: 0 | N11: =IF('Computo-Massimali'!L11>0,L11/'Computo-Massimali'!L11,0) -> 0 | Q11: POND) Isol. coperture non disperdenti | R11: ='Computo-Massimali'!R11 -> 50000 | S11: ok | U11: =IF($L$13<>0,(L11/$L$13)*$U$13,0) -> 0
C12: ='Computo-Massimali'!C12 -> PS) Isolamento Pavimenti | E12: ='Computo-Massimali'!E12 -> Esterno | F12: 0 | G12: =IF('Computo-Massimali'!F12<>0,'Computo-Massimali'!G12*F12/'Computo-Massimali'!F12,0) -> 0 | H12: =SUM(F12:G12) -> 0 | I12: =F12*'Dati Gen'!$J$20+G12*'Dati Gen'!$J$19 -> 0 | J12: =H12+I12 -> 0 | K12: =IF('Computo-Massimali'!F12<>0,'Computo-Massimali'!K12*F12/'Computo-Massimali'!F12,0) -> 0 | L12: =SUM(J12:K12) -> 0 | M12: 0 | N12: =IF('Computo-Massimali'!L12>0,L12/'Computo-Massimali'!L12,0) -> 0 | Q12: PS) Isolamento Pavimenti | R12: ='Computo-Massimali'!R12 -> 50000 | S12: ok | U12: =IF($L$13<>0,(L12/$L$13)*$U$13,0) -> 0
C13: ='Computo-Massimali'!C13 -> TOT.Isolamento sup.verticali/orizzontali | F13: =SUM(F9:F12) -> 0 | G13: =SUM(G9:G12) -> 0 | H13: =SUM(H9:H12) -> 0 | I13: 0 | J13: 0 | K13: 0 | L13: 0 | M13: 0 | N13: =IF('Computo-Massimali'!L13>0,L13/'Computo-Massimali'!L13,0) -> 0 | Q13: TOT.Isolamento sup.verticali/orizzontali | R13: ='Computo-Massimali'!R13 -> 50000 | S13: ok | U13: =IF(L13<R13,L13,R13) -> 0 | W13: =IF(L13>R13,L13-R13,0) -> 0 | Y13: =IF(M13<>0,J13*M13/L13,0) -> 0 | AA13: =IF(M13<>0,K13*M13/L13,0) -> 0
C14: ='Computo-Massimali'!C14 -> Impianti climatizzazione e ACS | F14: 0 | G14: =IF('Computo-Massimali'!F14<>0,'Computo-Massimali'!G14*F14/'Computo-Massimali'!F14,0) -> 0 | H14: =SUM(F14:G14) -> 0 | I14: =F14*'Dati Gen'!$J$20+G14*'Dati Gen'!$J$19 -> 0 | J14: =H14+I14 -> 0 | K14: =IF('Computo-Massimali'!F14<>0,'Computo-Massimali'!K14*F14/'Computo-Massimali'!F14,0) -> 0 | L14: =SUM(J14:K14) -> 0 | M14: 0 | N14: =IF('Computo-Massimali'!L14>0,L14/'Computo-Massimali'!L14,0) -> 0 | Q14: Impianti climatizzazione e ACS | R14: ='Computo-Massimali'!R14 -> 30000 | S14: ok | U14: =IF(L14<R14,L14,R14) -> 0 | W14: =IF(L14>R14,L14-R14,0) -> 0 | Y14: =IF(M14<>0,J14*M14/L14,0) -> 0 | AA14: =IF(M14<>0,K14*M14/L14,0) -> 0
C15: ='Computo-Massimali'!C15 -> SismaBonus | F15: 0 | G15: =IF('Computo-Massimali'!F15<>0,'Computo-Massimali'!G15*F15/'Computo-Massimali'!F15,0) -> 0 | H15: =SUM(F15:G15) -> 0 | I15: =F15*'Dati Gen'!$J$20+G15*'Dati Gen'!$J$19 -> 0 | J15: =H15+I15 -> 0 | K15: =IF('Computo-Massimali'!F15<>0,'Computo-Massimali'!K15*F15/'Computo-Massimali'!F15,0) -> 0 | L15: =SUM(J15:K15) -> 0 | M15: 0 | N15: =IF('Computo-Massimali'!L15>0,L15/'Computo-Massimali'!L15,0) -> 0 | Q15: SismaBonus | R15: ='Computo-Massimali'!R15 -> 96000 | S15: ok | U15: =IF(L15<R15,L15,R15) -> 0 | W15: =IF(L15>R15,L15-R15,0) -> 0 | Y15: =IF(M15<>0,J15*M15/L15,0) -> 0 | AA15: =IF(M15<>0,K15*M15/L15,0) -> 0
C16: ='Computo-Massimali'!C16 -> Totale interventi Trainanti : | F16: =SUM(F13:F15) -> 0 | G16: =SUM(G13:G15) -> 0 | H16: 0 | I16: 0 | J16: 0 | K16: 0 | L16: 0 | M16: =SUM(M13:M15) -> 0 | N16: =IF('Computo-Massimali'!L16>0,L16/'Computo-Massimali'!L16,0) -> 0 | R16: =C16 -> Totale interventi Trainanti : | U16: =SUM(U13:V15) -> 0 | W16: =SUM(W13:X15) -> 0 | Y16: =SUM(Y13:Z15) -> 0 | AA16: =SUM(AA13:AB15) -> 0
C18: INTERVENTI TRAINATI PARTI COMUNI CONDOMINIALI | Q18: =CONCATENATE("Verifica Massimali di Spesa ",C18) -> Verifica Massimali di Spesa INTERVENTI TRAINATI PARTI COMUNI CONDOMINIALI
C19: Interventi | F19: Importo Lavori | G19: Incidenza Sicurezza | H19: Imponibile | I19: Iva | J19: Importo c.iva | K19: Spese tecniche | L19: Totale | M19: Detrazione Spettante | N19: %SAL | R19: Massimale spesa | S19: Verifica Max | U19: Spesa Ammessa | W19: Quota Eccedente Massimale Spesa | Y19: Cessione Credito
C20: ='Computo-Massimali'!C20 -> PV) Isolamento pareti perimetrali | E20: ='Computo-Massimali'!E20 -> Esterno | F20: 0 | G20: =IF('Computo-Massimali'!F20<>0,'Computo-Massimali'!G20*F20/'Computo-Massimali'!F20,0) -> 0 | H20: =SUM(F20:G20) -> 0 | I20: =F20*'Dati Gen'!$J$20+G20*'Dati Gen'!$J$19 -> 0 | J20: =H20+I20 -> 0 | K20: =IF('Computo-Massimali'!F20<>0,'Computo-Massimali'!K20*F20/'Computo-Massimali'!F20,0) -> 0 | L20: =SUM(J20:K20) -> 0 | M20: =IF(L20<=R20,L20*1.1,R20*1.1) -> 0 | N20: =IF('Computo-Massimali'!L20>0,L20/'Computo-Massimali'!L20,0) -> 0 | Q20: =C20 -> PV) Isolamento pareti perimetrali | R20: ='Computo-Massimali'!R20 -> 50000 | S20: =IF(L20>M20,"KO Tot.>Detr.",IF(L20>R20,"ok< Tot.>Max.","ok")) -> ok | U20: =IF($L$24<>0,(L20/$L$24)*$U$24,0) -> 0 | Y20: Quota Impresa | AA20: Quota Tecnici
C21: ='Computo-Massimali'!C21 -> PO) Isolamento coperture | E21: ='Computo-Massimali'!E21 -> Esterno | F21: 0 | G21: =IF('Computo-Massimali'!F21<>0,'Computo-Massimali'!G21*F21/'Computo-Massimali'!F21,0) -> 0 | H21: =SUM(F21:G21) -> 0 | I21: =F21*'Dati Gen'!$J$20+G21*'Dati Gen'!$J$19 -> 0 | J21: =H21+I21 -> 0 | K21: =IF('Computo-Massimali'!F21<>0,'Computo-Massimali'!K21*F21/'Computo-Massimali'!F21,0) -> 0 | L21: =SUM(J21:K21) -> 0 | M21: =IF(L21<=R21,L21*1.1,R21*1.1) -> 0 | N21: =IF('Computo-Massimali'!L21>0,L21/'Computo-Massimali'!L21,0) -> 0 | Q21: PO) Isolamento coperture | R21: ='Computo-Massimali'!R21 -> 50000 | S21: ok | U21: =IF($L$24<>0,(L21/$L$24)*$U$24,0) -> 0
C22: ='Computo-Massimali'!C22 -> PS) Isolamento Pavimenti | E22: ='Computo-Massimali'!E22 -> Esterno | F22: 0 | G22: =IF('Computo-Massimali'!F22<>0,'Computo-Massimali'!G22*F22/'Computo-Massimali'!F22,0) -> 0 | H22: =SUM(F22:G22) -> 0 | I22: =F22*'Dati Gen'!$J$20+G22*'Dati Gen'!$J$19 -> 0 | J22: =H22+I22 -> 0 | K22: =IF('Computo-Massimali'!F22<>0,'Computo-Massimali'!K22*F22/'Computo-Massimali'!F22,0) -> 0 | L22: =SUM(J22:K22) -> 0 | M22: =IF(L22<=R22,L22*1.1,R22*1.1) -> 0 | N22: =IF('Computo-Massimali'!L22>0,L22/'Computo-Massimali'!L22,0) -> 0 | Q22: PS) Isolamento Pavimenti | R22: ='Computo-Massimali'!R22 -> 50000 | S22: ok | U22: =IF($L$24<>0,(L22/$L$24)*$U$24,0) -> 0
C23: ='Computo-Massimali'!C23 -> IN) Serramenti con chiusure oscuranti | E23: ='Computo-Massimali'!E23 -> Zone D, E ed F | F23: 0 | G23: =IF('Computo-Massimali'!F23<>0,'Computo-Massimali'!G23*F23/'Computo-Massimali'!F23,0) -> 0 | H23: =SUM(F23:G23) -> 0 | I23: =F23*'Dati Gen'!$J$20+G23*'Dati Gen'!$J$19 -> 0 | J23: =H23+I23 -> 0 | K23: =IF('Computo-Massimali'!F23<>0,'Computo-Massimali'!K23*F23/'Computo-Massimali'!F23,0) -> 0 | L23: =SUM(J23:K23) -> 0 | M23: =IF(L23<=R23,L23*1.1,R23*1.1) -> 0 | N23: =IF('Computo-Massimali'!L23>0,L23/'Computo-Massimali'!L23,0) -> 0 | Q23: IN) Serramenti con chiusure oscuranti | R23: ='Computo-Massimali'!R23 -> 54545 | S23: ok | U23: =IF($L$24<>0,(L23/$L$24)*$U$24,0) -> 0
C24: ='Computo-Massimali'!C24 -> Totali Isolamenti e Serramenti | F24: =SUM(F20:F23) -> 0 | G24: =SUM(G20:G23) -> 0 | H24: =SUM(H20:H23) -> 0 | I24: 0 | J24: 0 | K24: =SUM(K20:K23) -> 0 | L24: 0 | M24: 0 | N24: =IF('Computo-Massimali'!L24>0,L24/'Computo-Massimali'!L24,0) -> 0 | Q24: Totali Isolamenti e Serramenti | R24: ='Computo-Massimali'!R24 -> 54545 | S24: ok | U24: =IF(L24<R24,L24,R24) -> 0 | W24: =IF(L24>R24,L24-R24,0) -> 0 | Y24: =IF(M24<>0,J24*M24/L24,0) -> 0 | AA24: =IF(M24<>0,K24*M24/L24,0) -> 0
C25: ='Computo-Massimali'!C25 -> SS) Schermature solari e chiusure oscur. | F25: 0 | G25: =IF('Computo-Massimali'!F25<>0,'Computo-Massimali'!G25*F25/'Computo-Massimali'!F25,0) -> 0 | H25: =SUM(F25:G25) -> 0 | I25: =F25*'Dati Gen'!$J$20+G25*'Dati Gen'!$J$19 -> 0 | J25: 0 | K25: =IF('Computo-Massimali'!F25<>0,'Computo-Massimali'!K25*F25/'Computo-Massimali'!F25,0) -> 0 | L25: =SUM(J25:K25) -> 0 | M25: =IF(L25<=R25,L25*1.1,R25*1.1) -> 0 | N25: =IF('Computo-Massimali'!L25>0,L25/'Computo-Massimali'!L25,0) -> 0 | Q25: SS) Schermature solari e chiusure oscur. | R25: ='Computo-Massimali'!R25 -> 54545 | S25: ok | U25: =IF(L25<R25,L25,R25) -> 0 | W25: =IF(L25>R25,L25-R25,0) -> 0 | Y25: =IF(M25<>0,J25*M25/L25,0) -> 0 | AA25: =IF(M25<>0,K25*M25/L25,0) -> 0
C26: ='Computo-Massimali'!C26 -> Impianti climatizzazione con CC) PC) PCA) o SI) | F26: 0 | G26: =IF('Computo-Massimali'!F26<>0,'Computo-Massimali'!G26*F26/'Computo-Massimali'!F26,0) -> 0 | H26: =SUM(F26:G26) -> 0 | I26: =F26*'Dati Gen'!$J$20+G26*'Dati Gen'!$J$19 -> 0 | J26: 0 | K26: =IF('Computo-Massimali'!F26<>0,'Computo-Massimali'!K26*F26/'Computo-Massimali'!F26,0) -> 0 | L26: 0 | M26: =IF(L26<=R26,L26*1.1,R26*1.1) -> 0 | N26: =IF('Computo-Massimali'!L26>0,L26/'Computo-Massimali'!L26,0) -> 0 | Q26: Impianti climatizzazione con CC) PC) PCA) o SI) | R26: ='Computo-Massimali'!R26 -> 27272 | S26: ok | U26: =IF(L26<R26,L26,R26) -> 0 | W26: =IF(L26>R26,L26-R26,0) -> 0 | Y26: =IF(M26<>0,J26*M26/L26,0) -> 0 | AA26: =IF(M26<>0,K26*M26/L26,0) -> 0
C27: ='Computo-Massimali'!C27 -> GA) Generatori aria calda Condensazione | F27: 0 | G27: =IF('Computo-Massimali'!F27<>0,'Computo-Massimali'!G27*F27/'Computo-Massimali'!F27,0) -> 0 | H27: =SUM(F27:G27) -> 0 | I27: =F27*'Dati Gen'!$J$20+G27*'Dati Gen'!$J$19 -> 0 | J27: 0 | K27: =IF('Computo-Massimali'!F27<>0,'Computo-Massimali'!K27*F27/'Computo-Massimali'!F27,0) -> 0 | L27: 0 | M27: =IF(L27<=R27,L27*1.1,R27*1.1) -> 0 | N27: =IF('Computo-Massimali'!L27>0,L27/'Computo-Massimali'!L27,0) -> 0 | Q27: GA) Generatori aria calda Condensazione | R27: ='Computo-Massimali'!R27 -> 27272 | S27: ok | U27: =IF($L$30<>0,(L27/$L$30)*$U$30,0) -> 0 | Y27: Quota Impresa | AA27: Quota Tecnici
C28: ='Computo-Massimali'!C28 -> IB) Impianti Biomassa | F28: 0 | G28: =IF('Computo-Massimali'!F28<>0,'Computo-Massimali'!G28*F28/'Computo-Massimali'!F28,0) -> 0 | H28: =SUM(F28:G28) -> 0 | I28: =F28*'Dati Gen'!$J$20+G28*'Dati Gen'!$J$19 -> 0 | J28: 0 | K28: =IF('Computo-Massimali'!F28<>0,'Computo-Massimali'!K28*F28/'Computo-Massimali'!F28,0) -> 0 | L28: 0 | M28: =IF(L28<=R28,L28*1.1,R28*1.1) -> 0 | N28: =IF('Computo-Massimali'!L28>0,L28/'Computo-Massimali'!L28,0) -> 0 | Q28: IB) Impianti Biomassa | R28: ='Computo-Massimali'!R28 -> 27272 | S28: ok | U28: =IF($L$30<>0,(L28/$L$30)*$U$30,0) -> 0
C29: ='Computo-Massimali'!C29 -> SA) Scaldacqua a pompa di calore | F29: 0 | G29: =IF('Computo-Massimali'!F29<>0,'Computo-Massimali'!G29*F29/'Computo-Massimali'!F29,0) -> 0 | H29: =SUM(F29:G29) -> 0 | I29: =F29*'Dati Gen'!$J$20+G29*'Dati Gen'!$J$19 -> 0 | J29: 0 | K29: =IF('Computo-Massimali'!F29<>0,'Computo-Massimali'!K29*F29/'Computo-Massimali'!F29,0) -> 0 | L29: 0 | M29: =IF(L29<=R29,L29*1.1,R29*1.1) -> 0 | N29: =IF('Computo-Massimali'!L29>0,L29/'Computo-Massimali'!L29,0) -> 0 | Q29: SA) Scaldacqua a pompa di calore | R29: ='Computo-Massimali'!R29 -> 27272 | S29: ok | U29: =IF($L$30<>0,(L29/$L$30)*$U$30,0) -> 0
C30: ='Computo-Massimali'!C30 -> Totali GA) IB) SA) | F30: =SUM(F27:F29) -> 0 | G30: =SUM(G27:G29) -> 0 | H30: =SUM(H27:H29) -> 0 | I30: 0 | J30: 0 | K30: =SUM(K27:K29) -> 0 | L30: 0 | M30: 0 | N30: =IF('Computo-Massimali'!L30>0,L30/'Computo-Massimali'!L30,0) -> 0 | Q30: Totali GA) IB) SA) | R30: ='Computo-Massimali'!R30 -> 27272 | S30: ok | U30: =IF(L30<R30,L30,R30) -> 0
C31: ='Computo-Massimali'!C31 -> CO) Sistemi di Microgenerazione | F31: 0 | G31: =IF('Computo-Massimali'!F31<>0,'Computo-Massimali'!G31*F31/'Computo-Massimali'!F31,0) -> 0 | H31: =SUM(F31:G31) -> 0 | I31: =F31*'Dati Gen'!$J$20+G31*'Dati Gen'!$J$19 -> 0 | J31: =H31+I31 -> 0 | K31: =IF('Computo-Massimali'!F31<>0,'Computo-Massimali'!K31*F31/'Computo-Massimali'!F31,0) -> 0 | L31: =SUM(J31:K31) -> 0 | M31: =IF(L31<=R31,L31*1.1,R31*1.1) -> 0 | N31: =IF('Computo-Massimali'!L31>0,L31/'Computo-Massimali'!L31,0) -> 0 | Q31: CO) Sistemi di Microgenerazione | R31: ='Computo-Massimali'!R31 -> 90909 | S31: ok | U31: 0 | W31: =IF(L31>R31,L31-R31,0) -> 0 | Y31: =IF(M31<>0,J31*M31/L31,0) -> 0 | AA31: =IF(M31<>0,K31*M31/L31,0) -> 0
C32: ='Computo-Massimali'!C32 -> ST) Collettori Solari | E32: ='Computo-Massimali'!E32 -> Piani Vetrati | F32: 0 | G32: =IF('Computo-Massimali'!F32<>0,'Computo-Massimali'!G32*F32/'Computo-Massimali'!F32,0) -> 0 | H32: 0 | I32: =F32*'Dati Gen'!$J$20+G32*'Dati Gen'!$J$19 -> 0 | J32: =H32+I32 -> 0 | K32: =IF('Computo-Massimali'!F32<>0,'Computo-Massimali'!K32*F32/'Computo-Massimali'!F32,0) -> 0 | L32: =SUM(J32:K32) -> 0 | M32: 0 | N32: =IF('Computo-Massimali'!L32>0,L32/'Computo-Massimali'!L32,0) -> 0 | Q32: ST) Collettori Solari | R32: ='Computo-Massimali'!R32 -> 54545 | S32: ok | U32: 0 | W32: 0 | Y32: 0 | AA32: 0
C33: ='Computo-Massimali'!C33 -> FV) Solare Fotovoltaico ristr. kWp | E33: ='Computo-Massimali'!E33 -> 6 | F33: 0 | G33: =IF('Computo-Massimali'!F33<>0,'Computo-Massimali'!G33*F33/'Computo-Massimali'!F33,0) -> 0 | H33: 0 | I33: =F33*'Dati Gen'!$J$20+G33*'Dati Gen'!$J$19 -> 0 | J33: =H33+I33 -> 0 | K33: =IF('Computo-Massimali'!F33<>0,'Computo-Massimali'!K33*F33/'Computo-Massimali'!F33,0) -> 0 | L33: =SUM(J33:K33) -> 0 | M33: 0 | N33: =IF('Computo-Massimali'!L33>0,L33/'Computo-Massimali'!L33,0) -> 0 | Q33: FV) Solare Fotovoltaico ristr. kWp | R33: ='Computo-Massimali'!R33 -> 9600 | S33: ok | U33: 0 | W33: 0 | Y33: 0 | AA33: 0
C34: ='Computo-Massimali'!C34 -> AC) Sistema di Accumulo kWh | E34: ='Computo-Massimali'!E34 -> 10 | F34: 0 | G34: =IF('Computo-Massimali'!F34<>0,'Computo-Massimali'!G34*F34/'Computo-Massimali'!F34,0) -> 0 | H34: 0 | I34: =F34*'Dati Gen'!$J$20+G34*'Dati Gen'!$J$19 -> 0 | J34: =H34+I34 -> 0 | K34: =IF('Computo-Massimali'!F34<>0,'Computo-Massimali'!K34*F34/'Computo-Massimali'!F34,0) -> 0 | L34: =SUM(J34:K34) -> 0 | M34: 0 | N34: =IF('Computo-Massimali'!L34>0,L34/'Computo-Massimali'!L34,0) -> 0 | Q34: AC) Sistema di Accumulo kWh | R34: ='Computo-Massimali'!R34 -> 10000 | S34: ok | U34: 0 | W34: 0 | Y34: 0 | AA34: 0
C35: ='Computo-Massimali'!C35 -> CR) Colonnine di Ricarica N. | F35: 0 | G35: =IF('Computo-Massimali'!F35<>0,'Computo-Massimali'!G35*F35/'Computo-Massimali'!F35,0) -> 0 | H35: 0 | I35: =F35*'Dati Gen'!$J$20+G35*'Dati Gen'!$J$19 -> 0 | J35: 0 | K35: =IF('Computo-Massimali'!F35<>0,'Computo-Massimali'!K35*F35/'Computo-Massimali'!F35,0) -> 0 | L35: 0 | M35: 0 | N35: =IF('Computo-Massimali'!L35>0,L35/'Computo-Massimali'!L35,0) -> 0 | Q35: CR) Colonnine di Ricarica N. | R35: ='Computo-Massimali'!R35 -> 1500 | S35: ok | U35: 0 | W35: 0 | Y35: 0 | AA35: 0
C36: ='Computo-Massimali'!C36 -> EBA) Eliminazione Barriere architettoniche | F36: 0 | G36: =IF('Computo-Massimali'!F36<>0,'Computo-Massimali'!G36*F36/'Computo-Massimali'!F36,0) -> 0 | H36: 0 | I36: =F36*'Dati Gen'!$J$20+G36*'Dati Gen'!$J$19 -> 0 | J36: 0 | K36: =IF('Computo-Massimali'!F36<>0,'Computo-Massimali'!K36*F36/'Computo-Massimali'!F36,0) -> 0 | L36: 0 | M36: 0 | N36: =IF('Computo-Massimali'!L36>0,L36/'Computo-Massimali'!L36,0) -> 0 | Q36: EBA) Eliminazione Barriere architettoniche | R36: ='Computo-Massimali'!R36 -> 96000 | S36: ok | U36: 0 | W36: 0 | Y36: 0 | AA36: 0
C37: ='Computo-Massimali'!C37 -> Totale Interventi Trainati Parti Comuni: | F37: =SUM(F24:F26)+SUM(F30:F36) -> 0 | G37: =SUM(G24:G26)+SUM(G30:G36) -> 0 | H37: 0 | I37: 0 | J37: 0 | K37: 0 | L37: 0 | M37: 0 | N37: =IF('Computo-Massimali'!L37>0,L37/'Computo-Massimali'!L37,0) -> 0 | R37: =C37 -> Totale Interventi Trainati Parti Comuni: | U37: =SUM(U24:V36) -> 0 | W37: =SUM(W24:X36) -> 0 | Y37: =SUM(Y23:Z36) -> 0 | AA37: =SUM(AA24:AB36) -> 0
C40: INTERVENTI TRAINATI | Q40: =CONCATENATE("Verifica Massimali di Spesa ",C40) -> Verifica Massimali di Spesa INTERVENTI TRAINATI
C41: Interventi | F41: Importo Lavori | G41: Incidenza Sicurezza | H41: Imponibile | I41: Iva | J41: Importo c.iva | K41: Spese tecniche | L41: Totale | M41: Detrazione Spettante | N41: %SAL | R41: Massimale spesa | S41: Verifica Max | U41: Spesa Ammessa | W41: Quota Eccedente Massimale Spesa | Y41: Cessione Credito
C42: ='Computo-Massimali'!C42:D42 -> PV) Isolamento pareti perimetrali | E42: ='Computo-Massimali'!E42 -> Esterno | F42: 0 | G42: 0 | H42: =SUM(F42:G42) -> 0 | I42: =F42*'Dati Gen'!$J$20+G42*'Dati Gen'!$J$19 -> 0 | J42: =H42+I42 -> 0 | K42: =IF('Computo-Massimali'!F42<>0,'Computo-Massimali'!K42*F42/'Computo-Massimali'!F42,0) -> 0 | L42: =SUM(J42:K42) -> 0 | M42: =IF(L42<=R42,L42*1.1,R42*1.1) -> 0 | N42: =IF('Computo-Massimali'!L42>0,L42/'Computo-Massimali'!L42,0) -> 0 | Q42: =C42 -> PV) Isolamento pareti perimetrali | R42: ='Computo-Massimali'!R42 -> 54545 | S42: =IF(L42>M42,"KO Tot.>Detr.",IF(L42>R42,"ok< Tot.>Max.","ok")) -> ok | U42: =IF($L$46<>0,(L42/$L$46)*$U$46,0) -> 0 | Y42: Quota Impresa | AA42: Quota Tecnici
C43: ='Computo-Massimali'!C43:D43 -> PO) Isolamento coperture | E43: Esterno | F43: 0 | G43: 0 | H43: =SUM(F43:G43) -> 0 | I43: =F43*'Dati Gen'!$J$20+G43*'Dati Gen'!$J$19 -> 0 | J43: =H43+I43 -> 0 | K43: =IF('Computo-Massimali'!F43<>0,'Computo-Massimali'!K43*F43/'Computo-Massimali'!F43,0) -> 0 | L43: =SUM(J43:K43) -> 0 | M43: =IF(L43<=R43,L43*1.1,R43*1.1) -> 0 | N43: =IF('Computo-Massimali'!L43>0,L43/'Computo-Massimali'!L43,0) -> 0 | Q43: PO) Isolamento coperture | R43: ='Computo-Massimali'!R43 -> 54545 | S43: ok | U43: =IF($L$46<>0,(L43/$L$46)*$U$46,0) -> 0
C44: ='Computo-Massimali'!C44:D44 -> PS) Isolamento Pavimenti | E44: Esterno | F44: 0 | G44: 0 | H44: =SUM(F44:G44) -> 0 | I44: =F44*'Dati Gen'!$J$20+G44*'Dati Gen'!$J$19 -> 0 | J44: =H44+I44 -> 0 | K44: =IF('Computo-Massimali'!F44<>0,'Computo-Massimali'!K44*F44/'Computo-Massimali'!F44,0) -> 0 | L44: =SUM(J44:K44) -> 0 | M44: =IF(L44<=R44,L44*1.1,R44*1.1) -> 0 | N44: =IF('Computo-Massimali'!L44>0,L44/'Computo-Massimali'!L44,0) -> 0 | Q44: PS) Isolamento Pavimenti | R44: ='Computo-Massimali'!R44 -> 54545 | S44: ok | U44: =IF($L$46<>0,(L44/$L$46)*$U$46,0) -> 0
C45: ='Computo-Massimali'!C45:D45 -> IN) Serramenti con chiusure oscuranti | E45: Zone D, E ed F | F45: 0 | G45: 0 | H45: =SUM(F45:G45) -> 0 | I45: =F45*'Dati Gen'!$J$20+G45*'Dati Gen'!$J$19 -> 0 | J45: =H45+I45 -> 0 | K45: =IF('Computo-Massimali'!F45<>0,'Computo-Massimali'!K45*F45/'Computo-Massimali'!F45,0) -> 0 | L45: =SUM(J45:K45) -> 0 | M45: =IF(L45<=R45,L45*1.1,R45*1.1) -> 0 | N45: =IF('Computo-Massimali'!L45>0,L45/'Computo-Massimali'!L45,0) -> 0 | Q45: IN) Serramenti con chiusure oscuranti | R45: ='Computo-Massimali'!R45 -> 54545 | S45: ok | U45: =IF($L$46<>0,(L45/$L$46)*$U$46,0) -> 0
C46: ='Computo-Massimali'!C46:D46 -> Totali Isolamenti e Serramenti | F46: =SUM(F42:F45) -> 0 | G46: =SUM(G42:G45) -> 0 | H46: 0 | I46: 0 | J46: 0 | K46: =SUM(K42:K45) -> 0 | L46: 0 | M46: 0 | N46: =IF('Computo-Massimali'!L46>0,L46/'Computo-Massimali'!L46,0) -> 0 | Q46: Totali Isolamenti e Serramenti | R46: ='Computo-Massimali'!R46 -> 54545 | S46: ok | U46: =IF(L46<R46,L46,R46) -> 0 | W46: =IF(L46>R46,L46-R46,0) -> 0 | Y46: =IF(M46<>0,J46*M46/L46,0) -> 0 | AA46: =IF(M46<>0,K46*M46/L46,0) -> 0
C47: ='Computo-Massimali'!C47:D47 -> SS) Schermature solari e chiusure oscur. | F47: 0 | G47: 0 | H47: =SUM(F47:G47) -> 0 | I47: =F47*'Dati Gen'!$J$20+G47*'Dati Gen'!$J$19 -> 0 | J47: =H47+I47 -> 0 | K47: =IF('Computo-Massimali'!F47<>0,'Computo-Massimali'!K47*F47/'Computo-Massimali'!F47,0) -> 0 | L47: =SUM(J47:K47) -> 0 | M47: =IF(L47<=R47,L47*1.1,R47*1.1) -> 0 | N47: =IF('Computo-Massimali'!L47>0,L47/'Computo-Massimali'!L47,0) -> 0 | Q47: SS) Schermature solari e chiusure oscur. | R47: ='Computo-Massimali'!R47 -> 54545 | S47: ok | U47: =IF(L47<R47,L47,R47) -> 0 | W47: =IF(L47>R47,L47-R47,0) -> 0 | Y47: =IF(M47<>0,J47*M47/L47,0) -> 0 | AA47: =IF(M47<>0,K47*M47/L47,0) -> 0
C48: ='Computo-Massimali'!C48:D48 -> Impianti climatizzazione e ACS | F48: 0 | G48: 0 | H48: =SUM(F48:G48) -> 0 | I48: =F48*'Dati Gen'!$J$20+G48*'Dati Gen'!$J$19 -> 0 | J48: =H48+I48 -> 0 | K48: =IF('Computo-Massimali'!F48<>0,'Computo-Massimali'!K48*F48/'Computo-Massimali'!F48,0) -> 0 | L48: =SUM(J48:K48) -> 0 | M48: =IF(L48<=R48,L48*1.1,R48*1.1) -> 0 | N48: =IF('Computo-Massimali'!L48>0,L48/'Computo-Massimali'!L48,0) -> 0 | Q48: Impianti climatizzazione e ACS | R48: ='Computo-Massimali'!R48 -> 27272 | S48: ok | U48: =IF($L$50<>0,(L48/$L$50)*$U$50,0) -> 0
C49: ='Computo-Massimali'!C49:D49 -> SA) Scaldacqua a pompa di calore | F49: 0 | G49: 0 | H49: =SUM(F49:G49) -> 0 | I49: =F49*'Dati Gen'!$J$20+G49*'Dati Gen'!$J$19 -> 0 | J49: =H49+I49 -> 0 | K49: =IF('Computo-Massimali'!F49<>0,'Computo-Massimali'!K49*F49/'Computo-Massimali'!F49,0) -> 0 | L49: =SUM(J49:K49) -> 0 | M49: =IF(L49<=R49,L49*1.1,R49*1.1) -> 0 | N49: =IF('Computo-Massimali'!L49>0,L49/'Computo-Massimali'!L49,0) -> 0 | Q49: SA) Scaldacqua a pompa di calore | R49: ='Computo-Massimali'!R49 -> 27272 | S49: ok | U49: =IF($L$50<>0,(L49/$L$50)*$U$50,0) -> 0
C50: ='Computo-Massimali'!C50:D50 -> Totali Impianti ed SA) | F50: =SUM(F48:F49) -> 0 | G50: =SUM(G48:G49) -> 0 | H50: 0 | I50: 0 | J50: 0 | K50: =SUM(K48:K49) -> 0 | L50: 0 | M50: 0 | N50: =IF('Computo-Massimali'!L50>0,L50/'Computo-Massimali'!L50,0) -> 0 | Q50: Totali Impianti ed SA) | R50: ='Computo-Massimali'!R50 -> 27272 | S50: ok | U50: =IF(L50<R50,L50,R50) -> 0 | W50: =IF(L50>R50,L50-R50,0) -> 0 | Y50: =IF(M50<>0,J50*M50/L50,0) -> 0 | AA50: =IF(M50<>0,K50*M50/L50,0) -> 0
C51: ='Computo-Massimali'!C51:D51 -> CO) Sistemi di Microgenerazione | F51: 0 | G51: 0 | H51: =SUM(F51:G51) -> 0 | I51: =F51*'Dati Gen'!$J$20+G51*'Dati Gen'!$J$19 -> 0 | J51: =H51+I51 -> 0 | K51: =IF('Computo-Massimali'!F51<>0,'Computo-Massimali'!K51*F51/'Computo-Massimali'!F51,0) -> 0 | L51: =SUM(J51:K51) -> 0 | M51: =IF(L51<=R51,L51*1.1,R51*1.1) -> 0 | N51: =IF('Computo-Massimali'!L51>0,L51/'Computo-Massimali'!L51,0) -> 0 | Q51: CO) Sistemi di Microgenerazione | R51: ='Computo-Massimali'!R51 -> 90909 | S51: ok | U51: 0 | W51: 0 | Y51: 0 | AA51: 0
C52: ='Computo-Massimali'!C52:D52 -> IB) Generatori a Biomassa | F52: 0 | G52: 0 | H52: 0 | I52: =F52*'Dati Gen'!$J$20+G52*'Dati Gen'!$J$19 -> 0 | J52: 0 | K52: =IF('Computo-Massimali'!F52<>0,'Computo-Massimali'!K52*F52/'Computo-Massimali'!F52,0) -> 0 | L52: 0 | M52: 0 | N52: =IF('Computo-Massimali'!L52>0,L52/'Computo-Massimali'!L52,0) -> 0 | Q52: IB) Generatori a Biomassa | R52: ='Computo-Massimali'!R52 -> 27272 | S52: ok | U52: 0 | W52: 0 | Y52: 0 | AA52: 0
C53: ='Computo-Massimali'!C53:D53 -> BA) Building Automation | F53: 0 | G53: 0 | H53: 0 | I53: =F53*'Dati Gen'!$J$20+G53*'Dati Gen'!$J$19 -> 0 | J53: 0 | K53: =IF('Computo-Massimali'!F53<>0,'Computo-Massimali'!K53*F53/'Computo-Massimali'!F53,0) -> 0 | L53: 0 | M53: 0 | N53: =IF('Computo-Massimali'!L53>0,L53/'Computo-Massimali'!L53,0) -> 0 | Q53: BA) Building Automation | R53: ='Computo-Massimali'!R53 -> 13636.36364 | S53: ok | U53: 0 | W53: 0 | Y53: 0 | AA53: 0
C54: ='Computo-Massimali'!C54:D54 -> ST) Collettori Solari | E54: Piani Vetrati | F54: 0 | G54: 0 | H54: 0 | I54: =F54*'Dati Gen'!$J$20+G54*'Dati Gen'!$J$19 -> 0 | J54: 0 | K54: =IF('Computo-Massimali'!F54<>0,'Computo-Massimali'!K54*F54/'Computo-Massimali'!F54,0) -> 0 | L54: 0 | M54: 0 | N54: =IF('Computo-Massimali'!L54>0,L54/'Computo-Massimali'!L54,0) -> 0 | Q54: ST) Collettori Solari | R54: ='Computo-Massimali'!R54 -> 54545 | S54: ok | U54: 0 | W54: 0 | Y54: 0 | AA54: 0
C55: ='Computo-Massimali'!C55:D55 -> FV) Solare Fotovoltaico kWp | E55: 6 | F55: 0 | G55: 0 | H55: 0 | I55: =F55*'Dati Gen'!$J$20+G55*'Dati Gen'!$J$19 -> 0 | J55: 0 | K55: =IF('Computo-Massimali'!F55<>0,'Computo-Massimali'!K55*F55/'Computo-Massimali'!F55,0) -> 0 | L55: 0 | M55: 0 | N55: =IF('Computo-Massimali'!L55>0,L55/'Computo-Massimali'!L55,0) -> 0 | Q55: FV) Solare Fotovoltaico kWp | R55: ='Computo-Massimali'!R55 -> 14400 | S55: ok | U55: 0 | W55: 0 | Y55: 0 | AA55: 0
C56: ='Computo-Massimali'!C56:D56 -> AC) Sistema di Accumulo kWh | E56: 10 | F56: 0 | G56: 0 | H56: 0 | I56: =F56*'Dati Gen'!$J$20+G56*'Dati Gen'!$J$19 -> 0 | J56: 0 | K56: =IF('Computo-Massimali'!F56<>0,'Computo-Massimali'!K56*F56/'Computo-Massimali'!F56,0) -> 0 | L56: 0 | M56: 0 | N56: =IF('Computo-Massimali'!L56>0,L56/'Computo-Massimali'!L56,0) -> 0 | Q56: AC) Sistema di Accumulo kWh | R56: ='Computo-Massimali'!R56 -> 10000 | S56: ok | U56: 0 | W56: 0 | Y56: 0 | AA56: 0
C57: ='Computo-Massimali'!C57:D57 -> CR) Colonnine di Ricarica | F57: 0 | G57: 0 | H57: 0 | I57: =F57*'Dati Gen'!$J$20+G57*'Dati Gen'!$J$19 -> 0 | J57: 0 | K57: =IF('Computo-Massimali'!F57<>0,'Computo-Massimali'!K57*F57/'Computo-Massimali'!F57,0) -> 0 | L57: 0 | M57: 0 | N57: =IF('Computo-Massimali'!L57>0,L57/'Computo-Massimali'!L57,0) -> 0 | Q57: CR) Colonnine di Ricarica | R57: ='Computo-Massimali'!R57 -> 1500 | S57: ok | U57: 0 | W57: 0 | Y57: 0 | AA57: 0
C58: Totale Interventi trainati | F58: =F46+F47+SUM(F50:F57) -> 0 | G58: =G46+G47+SUM(G50:G57) -> 0 | H58: 0 | I58: 0 | J58: 0 | K58: =K46+K47+SUM(K50:K57) -> 0 | L58: 0 | M58: 0 | N58: =IF('Computo-Massimali'!L58>0,L58/'Computo-Massimali'!L58,0) -> 0 | R58: =C58 -> Totale Interventi trainati | U58: =SUM(U46:V57) -> 0 | W58: =SUM(W46:X57) -> 0 | Y58: =SUM(Y46:Z57) -> 0 | AA58: =SUM(AA46:AB57) -> 0
C78: SimMZ
C80: TOTALI SAL N.2 - INTERVENTI 110 | F80: Importo Lavori | G80: Incidenza Sicurezza | H80: Imponibile | I80: Iva | J80: Importo c.iva | K80: Spese tecniche | L80: Totale | M80: Credito Spettante 110% Spesa Ammessa | N80: %SAL | Q80: =C80 -> TOTALI SAL N.2 - INTERVENTI 110 | U80: Spesa Ammessa | W80: Quota Eccedente Massimale Spesa | Y80: Cessione Credito Quota Impresa | Quota Tecnici
F81: =F16+F58 -> 0 | G81: 0 | H81: 0 | I81: 0 | J81: 0 | K81: 0 | L81: 0 | M81: 0 | N81: =IF('Computo-Massimali'!L81>0,L81/'Computo-Massimali'!L81,0) -> 0 | U81: =U16+U37+U58 -> 0 | W81: =T16+T58 -> 0 | Y81: =V16+V58 -> 0 | AA81: =X16+X58 -> 0
C83: =IF(N81>=59.999%,"","Attenzione! SAL Superbonus 110 inferiore 60%") -> Attenzione! SAL Superbonus 110 inferiore 60%
C87: ALTRI INTERVENTI | Q87: =CONCATENATE("Verifica Massimali di Spesa ",C87) -> Verifica Massimali di Spesa ALTRI INTERVENTI
C88: Interventi | E88: x% Credito ceduto | F88: Importo Lavori | G88: Incidenza Sicurezza | H88: Imponibile | I88: Iva | J88: Importo c.iva | K88: Spese tecniche | L88: Totale | M88: Credito Spettante x% Spesa Ammessa | N88: %SAL | R88: Massimale spesa | S88: Verifica Max | U88: Spesa Ammessa | W88: Quota Eccedente Massimale Spesa | Y88: Cessione Credito Quota Impresa | Quota Tecnici
C89: =IF('Computo-Massimali'!C89<>"",'Computo-Massimali'!C89,"") -> Lavori Ristrutturazione | E89: =IF('Computo-Massimali'!E89<>0,'Computo-Massimali'!E89,"") -> 0.5 | F89: 0 | G89: =IF('Computo-Massimali'!F89<>0,'Computo-Massimali'!G89*F89/'Computo-Massimali'!F89,0) -> 0 | H89: =SUM(F89:G89) -> 0 | I89: =F89*'Dati Gen'!$J$20+G89*'Dati Gen'!$J$19 -> 0 | J89: =H89+I89 -> 0 | K89: =IF('Computo-Massimali'!F89<>0,'Computo-Massimali'!K89*F89/'Computo-Massimali'!F89,0) -> 0 | L89: =SUM(J89:K89) -> 0 | M89: =IF(L89<=R89,L89*E89,R89*E89) -> 0 | N89: =IF('Computo-Massimali'!L89>0,L89/'Computo-Massimali'!L89,0) -> 0 | Q89: =IF(C89<>"",C89,"") -> Lavori Ristrutturazione | R89: =96000*N_Uimm -> 96000 | S89: =IF(R89<>0,IF(L89>R89,"KO","ok"),"ok") -> ok | U89: =IF(L89<R89,L89,R89) -> 0 | W89: =IF(L89>R89,L89-R89,0) -> 0 | Y89: =IF(M89<>0,J89*M89/L89,0) -> 0 | AA89: =IF(M89<>0,K89*M89/L89,0) -> 0
C90: =IF('Computo-Massimali'!C90<>"",'Computo-Massimali'!C90,"") -> Ecobonus | E90: =IF('Computo-Massimali'!E90<>0,'Computo-Massimali'!E90,"") -> 0.65 | F90: 0 | G90: =IF('Computo-Massimali'!F90<>0,'Computo-Massimali'!G90*F90/'Computo-Massimali'!F90,0) -> 0 | H90: =SUM(F90:G90) -> 0 | I90: =F90*'Dati Gen'!$J$20+G90*'Dati Gen'!$J$19 -> 0 | J90: =H90+I90 -> 0 | K90: =IF('Computo-Massimali'!F90<>0,'Computo-Massimali'!K90*F90/'Computo-Massimali'!F90,0) -> 0 | L90: =SUM(J90:K90) -> 0 | M90: =IF(L90<=R90,L90*E90,R90*E90) -> 0 | N90: =IF('Computo-Massimali'!L90>0,L90/'Computo-Massimali'!L90,0) -> 0 | Q90: =IF(C90<>"",C90,"") -> Ecobonus | R90: =96000*N_Uimm -> 96000 | S90: =IF(R90<>0,IF(L90>R90,"KO","ok"),"ok") -> ok | U90: =IF(L90<R90,L90,R90) -> 0 | W90: =IF(L90>R90,L90-R90,0) -> 0 | Y90: =IF(M90<>0,J90*M90/L90,0) -> 0 | AA90: =IF(M90<>0,K90*M90/L90,0) -> 0
C91: =IF('Computo-Massimali'!C91<>"",'Computo-Massimali'!C91,"") -> Bonus Facciata | E91: =IF('Computo-Massimali'!E91<>0,'Computo-Massimali'!E91,"") -> 0.9 | F91: 0 | G91: =IF('Computo-Massimali'!F91<>0,'Computo-Massimali'!G91*F91/'Computo-Massimali'!F91,0) -> 0 | H91: =SUM(F91:G91) -> 0 | I91: =F91*'Dati Gen'!$J$20+G91*'Dati Gen'!$J$19 -> 0 | J91: =H91+I91 -> 0 | K91: =IF('Computo-Massimali'!F91<>0,'Computo-Massimali'!K91*F91/'Computo-Massimali'!F91,0) -> 0 | L91: =SUM(J91:K91) -> 0 | M91: =IF(L91<=R91,L91*E91,R91*E91) -> 0 | N91: =IF('Computo-Massimali'!L91>0,L91/'Computo-Massimali'!L91,0) -> 0 | Q91: =IF(C91<>"",C91,"") -> Bonus Facciata | R91: =96000*N_Uimm -> 96000 | S91: =IF(R91<>0,IF(L91>R91,"KO","ok"),"ok") -> ok | U91: =IF(L91<R91,L91,R91) -> 0 | W91: =IF(L91>R91,L91-R91,0) -> 0 | Y91: =IF(M91<>0,J91*M91/L91,0) -> 0 | AA91: =IF(M91<>0,K91*M91/L91,0) -> 0
C92: =IF('Computo-Massimali'!C92<>"",'Computo-Massimali'!C92,"") ->  | E92: =IF('Computo-Massimali'!E92<>0,'Computo-Massimali'!E92,"") ->  | F92: 0 | G92: =IF('Computo-Massimali'!F92<>0,'Computo-Massimali'!G92*F92/'Computo-Massimali'!F92,0) -> 0 | H92: 0 | I92: 0 | J92: 0 | K92: =IF('Computo-Massimali'!F92<>0,'Computo-Massimali'!K92*F92/'Computo-Massimali'!F92,0) -> 0 | L92: 0 | M92: 0 | N92: =IF('Computo-Massimali'!L92>0,L92/'Computo-Massimali'!L92,0) -> 0 | Q92: =IF(C92<>"",C92,"") ->  | R92: =96000*N_Uimm -> 96000 | S92: =IF(R92<>0,IF(L92>R92,"KO","ok"),"ok") -> ok | U92: =IF(L92<R92,L92,R92) -> 0 | W92: =IF(L92>R92,L92-R92,0) -> 0 | Y92: =IF(M92<>0,J92*M92/L92,0) -> 0 | AA92: =IF(M92<>0,K92*M92/L92,0) -> 0
C93: TotalI SAL N.1 - Altri Interventi : | F93: =SUM(F89:F92) -> 0 | G93: 0 | H93: 0 | I93: 0 | J93: 0 | K93: =SUM(K89:K92) -> 0 | L93: 0 | M93: 0 | N93: =IF('Computo-Massimali'!L93>0,L93/'Computo-Massimali'!L93,0) -> 0 | R93: =C93 -> TotalI SAL N.1 - Altri Interventi : | U93: =SUM(U89:V92) -> 0 | W93: =SUM(W89:X92) -> 0 | Y93: =SUM(Y89:Z92) -> 0 | AA93: =SUM(AA89:AB92) -> 0
C96: TOTALI SAL N.2 | F96: Importo Lavori Eseguiti | G96: Incidenza Sicurezza | H96: Imponibile | I96: Iva | J96: Importo c.iva | K96: Spese tecniche | L96: Totale | M96: Credito Spettante | N96: %SAL | Q96: =C96 -> TOTALI SAL N.2 | U96: Spesa Ammessa | W96: Quota Eccedente Massimale Spesa | Y96: Cessione Credito Quota Impresa | Quota Tecnici
F97: =F81+F93 -> 0 | G97: 0 | H97: 0 | I97: 0 | J97: 0 | K97: =K81+K93 -> 0 | L97: 0 | M97: 0 | N97: =IF('Computo-Massimali'!L100>0,L97/'Computo-Massimali'!L100,0) -> 0 | U97: =U81+U93 -> 0 | W97: =W81+W93 -> 0 | Y97: =Y81+Y93 -> 0 | AA97: =AA81+AA93 -> 0
C100: =IF(ABS(D5-G97)>0.01,"Importo Effettivo Lavori Eseguiti","") ->  | F100: =IF($C$100<>"",F97,"") ->  | G100: =IF($C$100<>"",D5,"") ->  | H100: =IF($C$100<>"",F100+G100,"") ->  | I100: =IF($C$100<>"",H100*AliqIva,"") ->  | J100: =IF($C$100<>"",H100+I100,"") ->  | K100: =IF($C$100<>"",K97,"") ->  | L100: =IF($C$100<>"",J100+K100,"") ->  | M100: =IF($C$100<>"",L100*1.1,"") ->  | N100: =IF($C$100<>"",L100/'Computo-Massimali'!L100,"") -> 
C101: =IF($C$100<>"","Oneri/Lavori Sicurezza non imputabili al SAL, per lavori non eseguiti","") ->  | G101: =IF($C$101<>"",D5-G97,"") -> 
Q116: Ripartizione Spese Tecniche SAL. N.2 - INTERVENTI 110 | AC116: Applica Sconto in Fattura
Q117: Lavoro | R117: Tecnico | S117: Onorario | U117: C.Cassa | W117: Imponibile | Y117: IVA | AA117: Totale | AF117: ='Dati Gen'!B44 -> Ingegnere 1 | AG117: ='Dati Gen'!B45 -> Dott. Igor | AH117: ='Dati Gen'!B46 -> 0 | AI117: ='Dati Gen'!B47 -> 0 | AJ117: ='Dati Gen'!B48 -> 0 | AK117: ='Dati Gen'!B49 -> 0 | AL117: ='Dati Gen'!B50 -> 0 | AM117: ='Dati Gen'!B51 -> 0
Q118: =IF('Dati Gen'!B25<>"",'Dati Gen'!B25,"") -> Incarico 1 | R118: =IF('Dati Gen'!C25<>"",'Dati Gen'!C25,"") -> Ingegnere 1 | S118: =W118/(1+U118) -> 0 | U118: ='Dati Gen'!G25 -> 0.04 | V118: =S118*U118 -> 0 | W118: =AA118/(1+Y118) -> 0 | Y118: 0.22 | Z118: =Y118*(S118+V118) -> 0 | AA118: =IF('Dati Gen'!$M$36<>"",$AA$127*'Dati Gen'!M25/'Dati Gen'!$M$36,0) -> 0 | AC118: =IF(R118<>"",VLOOKUP('SAL.30%'!R118,'Dati Gen'!$B$44:$D$51,3,0),"") -> SI | AF118: =IF($R118=AF$117,$AA118,0) -> 0 | AG118: =IF($R118=AG$117,$AA118,0) -> 0 | AH118: 0 | AI118: 0 | AJ118: 0 | AK118: 0 | AL118: 0 | AM118: 0 | AN118: 0
Q119: =IF('Dati Gen'!B26<>"",'Dati Gen'!B26,"") -> Calcoli e Deposito G.C. | R119: =IF('Dati Gen'!C26<>"",'Dati Gen'!C26,"") -> Ingegnere 1 | S119: =W119/(1+U119) -> 0 | U119: ='Dati Gen'!G26 -> 0.04 | V119: =S119*U119 -> 0 | W119: =AA119/(1+Y119) -> 0 | Y119: 0.22 | Z119: =(S119+V119)*Y119 -> 0 | AA119: =IF('Dati Gen'!$M$36<>"",$AA$127*'Dati Gen'!M26/'Dati Gen'!$M$36,0) -> 0 | AC119: =IF(R119<>"",VLOOKUP('SAL.30%'!R119,'Dati Gen'!$B$44:$D$51,3,0),"") -> SI | AF119: =IF($R119=AF$117,$AA119,0) -> 0 | AG119: 0 | AH119: 0 | AI119: 0 | AJ119: 0 | AK119: 0 | AL119: 0 | AM119: 0 | AN119: 0
Q120: =IF('Dati Gen'!B27<>"",'Dati Gen'!B27,"") -> Congruità | R120: =IF('Dati Gen'!C27<>"",'Dati Gen'!C27,"") -> Ingegnere 1 | S120: 0 | U120: ='Dati Gen'!G27 -> 0.04 | V120: =S120*U120 -> 0 | W120: 0 | Y120: 0.22 | Z120: =(S120+V120)*Y120 -> 0 | AA120: =IF('Dati Gen'!$M$36<>"",$AA$127*'Dati Gen'!M27/'Dati Gen'!$M$36,0) -> 0 | AC120: =IF(R120<>"",VLOOKUP('SAL.30%'!R120,'Dati Gen'!$B$44:$D$51,3,0),"") -> SI | AF120: 0 | AG120: 0 | AH120: 0 | AI120: 0 | AJ120: 0 | AK120: 0 | AL120: 0 | AM120: 0 | AN120: 0
Q121: =IF('Dati Gen'!B28<>"",'Dati Gen'!B28,"") ->  | R121: =IF('Dati Gen'!C28<>"",'Dati Gen'!C28,"") ->  | S121: 0 | U121: ='Dati Gen'!G28 -> 0.04 | V121: =S121*U121 -> 0 | W121: 0 | Y121: 0.22 | Z121: =(S121+V121)*Y121 -> 0 | AA121: =IF('Dati Gen'!$M$36<>"",$AA$127*'Dati Gen'!M28/'Dati Gen'!$M$36,0) -> 0 | AC121: =IF(R121<>"",VLOOKUP('SAL.30%'!R121,'Dati Gen'!$B$44:$D$51,3,0),"") ->  | AF121: 0 | AG121: 0 | AH121: 0 | AI121: 0 | AJ121: 0 | AK121: 0 | AL121: 0 | AM121: 0 | AN121: 0
Q122: =IF('Dati Gen'!B29<>"",'Dati Gen'!B29,"") ->  | R122: =IF('Dati Gen'!C29<>"",'Dati Gen'!C29,"") ->  | S122: 0 | U122: ='Dati Gen'!G29 -> 0.04 | V122: =T122*U122 -> 0 | W122: 0 | Y122: 0.22 | Z122: =(T122+V122)*Y122 -> 0 | AA122: =IF('Dati Gen'!$M$36<>"",$AA$127*'Dati Gen'!M29/'Dati Gen'!$M$36,0) -> 0 | AC122: =IF(R122<>"",VLOOKUP('SAL.30%'!R122,'Dati Gen'!$B$44:$D$51,3,0),"") ->  | AF122: 0 | AG122: 0 | AH122: 0 | AI122: 0 | AJ122: 0 | AK122: 0 | AL122: 0 | AM122: 0 | AN122: 0
Q123: =IF('Dati Gen'!B30<>"",'Dati Gen'!B30,"") ->  | R123: =IF('Dati Gen'!C30<>"",'Dati Gen'!C30,"") ->  | S123: 0 | U123: ='Dati Gen'!G30 -> 0.04 | V123: =T123*U123 -> 0 | W123: 0 | Y123: 0 | Z123: =(T123+V123)*Y123 -> 0 | AA123: =IF('Dati Gen'!$M$36<>"",$AA$127*'Dati Gen'!M30/'Dati Gen'!$M$36,0) -> 0 | AC123: =IF(R123<>"",VLOOKUP('SAL.30%'!R123,'Dati Gen'!$B$44:$D$51,3,0),"") ->  | AF123: 0 | AG123: 0 | AH123: 0 | AI123: 0 | AJ123: 0 | AK123: 0 | AL123: 0 | AM123: 0 | AN123: 0
Q124: =IF('Dati Gen'!B31<>"",'Dati Gen'!B31,"") ->  | R124: =IF('Dati Gen'!C31<>"",'Dati Gen'!C31,"") ->  | S124: 0 | U124: ='Dati Gen'!G31 -> 0.04 | V124: =T124*U124 -> 0 | W124: 0 | Y124: 0 | Z124: =(T124+V124)*Y124 -> 0 | AA124: =IF('Dati Gen'!$M$36<>"",$AA$127*'Dati Gen'!M31/'Dati Gen'!$M$36,0) -> 0 | AC124: =IF(R124<>"",VLOOKUP('SAL.30%'!R124,'Dati Gen'!$B$44:$D$51,3,0),"") ->  | AF124: 0 | AG124: 0 | AH124: 0 | AI124: 0 | AJ124: 0 | AK124: 0 | AL124: 0 | AM124: 0 | AN124: 0
Q125: =IF('Dati Gen'!B32<>"",'Dati Gen'!B32,"") ->  | R125: =IF('Dati Gen'!C32<>"",'Dati Gen'!C32,"") ->  | S125: 0 | U125: ='Dati Gen'!G32 -> 0.04 | V125: =T125*U125 -> 0 | W125: 0 | Y125: 0 | Z125: =(T125+V125)*Y125 -> 0 | AA125: =IF('Dati Gen'!$M$36<>"",$AA$127*'Dati Gen'!M32/'Dati Gen'!$M$36,0) -> 0 | AC125: =IF(R125<>"",VLOOKUP('SAL.30%'!R125,'Dati Gen'!$B$44:$D$51,3,0),"") ->  | AF125: 0 | AG125: 0 | AH125: 0 | AI125: 0 | AJ125: 0 | AK125: 0 | AL125: 0 | AM125: 0 | AN125: 0
Q126: =IF('Dati Gen'!B35<>"",'Dati Gen'!B35,"") -> Visto Conformità | R126: =IF('Dati Gen'!C35<>"",'Dati Gen'!C35,"") -> Dott. Igor | S126: 0 | U126: ='Dati Gen'!G35 -> 0.04 | V126: =S126*U126 -> 0 | W126: 0 | Y126: 0.22 | Z126: =(S126+V126)*Y126 -> 0 | AA126: =IF('Dati Gen'!$M$36<>"",$AA$127*'Dati Gen'!M35/'Dati Gen'!$M$36,0) -> 0 | AC126: =IF(R126<>"",VLOOKUP('SAL.30%'!R126,'Dati Gen'!$B$44:$D$51,3,0),"") -> NO | AF126: 0 | AG126: 0 | AH126: 0 | AI126: 0 | AJ126: 0 | AK126: 0 | AL126: 0 | AM126: 0 | AN126: 0
S127: =SUM(S118:T126) -> 0 | U127: =SUM(V118:V126) -> 0 | W127: =SUM(W118:X126) -> 0 | Z127: =SUM(Z118:Z126) -> 0 | AA127: =SpeseTec60 -> 0 | AF127: =SUM(AF118:AF126) -> 0 | AG127: =SUM(AG118:AG126) -> 0 | AH127: 0 | AI127: 0 | AJ127: 0 | AK127: 0 | AL127: 0 | AM127: 0 | AN127: 0 | AO127: =SUM(AF127:AN127) -> 0
AF128: =IF($AO$127<>0,AF127/$AO$127,0) -> 0 | AG128: =IF($AO$127<>0,AG127/$AO$127,0) -> 0 | AH128: 0 | AI128: 0 | AJ128: 0 | AK128: 0 | AL128: 0 | AM128: 0 | AN128: 0
Q130: Ripartizione Spese Tecniche SAL. N.2 - ALTRI INTERVENTI | AC130: Applica Sconto in Fattura
Q131: Lavoro | R131: Tecnico | S131: Onorario | U131: C.Cassa | W131: Imponibile | Y131: IVA | AA131: Totale | AF131: =AF117 -> Ingegnere 1 | AG131: =AG117 -> Dott. Igor | AH131: 0 | AI131: 0 | AJ131: 0 | AK131: 0 | AL131: 0 | AM131: 0
Q132: =IF('Dati Gen'!B25<>"",'Dati Gen'!B25,"") -> Incarico 1 | R132: =IF('Dati Gen'!C25<>"",'Dati Gen'!C25,"") -> Ingegnere 1 | S132: =W132/(1+U132) -> 0 | U132: ='Dati Gen'!G25 -> 0.04 | V132: =S132*U132 -> 0 | W132: =AA132/(1+Y132) -> 0 | Y132: 0.22 | Z132: =Y132*(S132+V132) -> 0 | AA132: =IF('Dati Gen'!$M$36<>"",$AA$141*'Dati Gen'!M25/'Dati Gen'!$M$36,0) -> 0 | AC132: =IF(R132<>"",VLOOKUP('SAL.30%'!R132,'Dati Gen'!$B$44:$D$51,3,0),"") -> SI | AF132: =IF($R132=AF$117,$AA132,0) -> 0 | AG132: =IF($R132=AG$117,$AA132,0) -> 0 | AH132: 0 | AI132: 0 | AJ132: 0 | AK132: 0 | AL132: 0 | AM132: 0 | AN132: 0
Q133: =IF('Dati Gen'!B26<>"",'Dati Gen'!B26,"") -> Calcoli e Deposito G.C. | R133: =IF('Dati Gen'!C26<>"",'Dati Gen'!C26,"") -> Ingegnere 1 | S133: =W133/(1+U133) -> 0 | U133: ='Dati Gen'!G26 -> 0.04 | V133: =S133*U133 -> 0 | W133: =AA133/(1+Y133) -> 0 | Y133: 0.22 | Z133: =(S133+V133)*Y133 -> 0 | AA133: =IF('Dati Gen'!$M$36<>"",$AA$141*'Dati Gen'!M26/'Dati Gen'!$M$36,0) -> 0 | AC133: =IF(R133<>"",VLOOKUP('SAL.30%'!R133,'Dati Gen'!$B$44:$D$51,3,0),"") -> SI | AF133: =IF($R133=AF$117,$AA133,0) -> 0 | AG133: 0 | AH133: 0 | AI133: 0 | AJ133: 0 | AK133: 0 | AL133: 0 | AM133: 0 | AN133: 0
Q134: =IF('Dati Gen'!B27<>"",'Dati Gen'!B27,"") -> Congruità | R134: =IF('Dati Gen'!C27<>"",'Dati Gen'!C27,"") -> Ingegnere 1 | S134: 0 | U134: ='Dati Gen'!G27 -> 0.04 | V134: =S134*U134 -> 0 | W134: 0 | Y134: 0.22 | Z134: =(S134+V134)*Y134 -> 0 | AA134: =IF('Dati Gen'!$M$36<>"",$AA$141*'Dati Gen'!M27/'Dati Gen'!$M$36,0) -> 0 | AC134: =IF(R134<>"",VLOOKUP('SAL.30%'!R134,'Dati Gen'!$B$44:$D$51,3,0),"") -> SI | AF134: 0 | AG134: 0 | AH134: 0 | AI134: 0 | AJ134: 0 | AK134: 0 | AL134: 0 | AM134: 0 | AN134: 0
Q135: =IF('Dati Gen'!B28<>"",'Dati Gen'!B28,"") ->  | R135: =IF('Dati Gen'!C28<>"",'Dati Gen'!C28,"") ->  | S135: 0 | U135: ='Dati Gen'!G28 -> 0.04 | V135: =S135*U135 -> 0 | W135: 0 | Y135: 0.22 | Z135: =(S135+V135)*Y135 -> 0 | AA135: =IF('Dati Gen'!$M$36<>"",$AA$141*'Dati Gen'!M28/'Dati Gen'!$M$36,0) -> 0 | AC135: =IF(R135<>"",VLOOKUP('SAL.30%'!R135,'Dati Gen'!$B$44:$D$51,3,0),"") ->  | AF135: 0 | AG135: 0 | AH135: 0 | AI135: 0 | AJ135: 0 | AK135: 0 | AL135: 0 | AM135: 0 | AN135: 0
Q136: =IF('Dati Gen'!B29<>"",'Dati Gen'!B29,"") ->  | R136: =IF('Dati Gen'!C29<>"",'Dati Gen'!C29,"") ->  | S136: 0 | U136: ='Dati Gen'!G29 -> 0.04 | V136: =T136*U136 -> 0 | W136: 0 | Y136: 0.22 | Z136: =(T136+V136)*Y136 -> 0 | AA136: =IF('Dati Gen'!$M$36<>"",$AA$141*'Dati Gen'!M29/'Dati Gen'!$M$36,0) -> 0 | AC136: =IF(R136<>"",VLOOKUP('SAL.30%'!R136,'Dati Gen'!$B$44:$D$51,3,0),"") ->  | AF136: 0 | AG136: 0 | AH136: 0 | AI136: 0 | AJ136: 0 | AK136: 0 | AL136: 0 | AM136: 0 | AN136: 0
Q137: =IF('Dati Gen'!B30<>"",'Dati Gen'!B30,"") ->  | R137: =IF('Dati Gen'!C30<>"",'Dati Gen'!C30,"") ->  | S137: 0 | U137: ='Dati Gen'!G30 -> 0.04 | V137: =T137*U137 -> 0 | W137: 0 | Y137: 0 | Z137: =(T137+V137)*Y137 -> 0 | AA137: =IF('Dati Gen'!$M$36<>"",$AA$141*'Dati Gen'!M30/'Dati Gen'!$M$36,0) -> 0 | AC137: =IF(R137<>"",VLOOKUP('SAL.30%'!R137,'Dati Gen'!$B$44:$D$51,3,0),"") ->  | AF137: 0 | AG137: 0 | AH137: 0 | AI137: 0 | AJ137: 0 | AK137: 0 | AL137: 0 | AM137: 0 | AN137: 0
Q138: =IF('Dati Gen'!B31<>"",'Dati Gen'!B31,"") ->  | R138: =IF('Dati Gen'!C31<>"",'Dati Gen'!C31,"") ->  | S138: 0 | U138: ='Dati Gen'!G31 -> 0.04 | V138: =T138*U138 -> 0 | W138: 0 | Y138: 0 | Z138: =(T138+V138)*Y138 -> 0 | AA138: =IF('Dati Gen'!$M$36<>"",$AA$141*'Dati Gen'!M31/'Dati Gen'!$M$36,0) -> 0 | AC138: =IF(R138<>"",VLOOKUP('SAL.30%'!R138,'Dati Gen'!$B$44:$D$51,3,0),"") ->  | AF138: 0 | AG138: 0 | AH138: 0 | AI138: 0 | AJ138: 0 | AK138: 0 | AL138: 0 | AM138: 0 | AN138: 0
Q139: =IF('Dati Gen'!B32<>"",'Dati Gen'!B32,"") ->  | R139: =IF('Dati Gen'!C32<>"",'Dati Gen'!C32,"") ->  | S139: 0 | U139: ='Dati Gen'!G32 -> 0.04 | V139: =T139*U139 -> 0 | W139: 0 | Y139: 0 | Z139: =(T139+V139)*Y139 -> 0 | AA139: =IF('Dati Gen'!$M$36<>"",$AA$141*'Dati Gen'!M32/'Dati Gen'!$M$36,0) -> 0 | AC139: =IF(R139<>"",VLOOKUP('SAL.30%'!R139,'Dati Gen'!$B$44:$D$51,3,0),"") ->  | AF139: 0 | AG139: 0 | AH139: 0 | AI139: 0 | AJ139: 0 | AK139: 0 | AL139: 0 | AM139: 0 | AN139: 0
Q140: =IF('Dati Gen'!B35<>"",'Dati Gen'!B35,"") -> Visto Conformità | R140: =IF('Dati Gen'!C35<>"",'Dati Gen'!C35,"") -> Dott. Igor | S140: 0 | U140: ='Dati Gen'!G35 -> 0.04 | V140: =S140*U140 -> 0 | W140: 0 | Y140: 0.22 | Z140: =(S140+V140)*Y140 -> 0 | AA140: =IF('Dati Gen'!$M$36<>"",$AA$141*'Dati Gen'!M35/'Dati Gen'!$M$36,0) -> 0 | AC140: =IF(R140<>"",VLOOKUP('SAL.30%'!R140,'Dati Gen'!$B$44:$D$51,3,0),"") -> NO | AF140: 0 | AG140: 0 | AH140: 0 | AI140: 0 | AJ140: 0 | AK140: 0 | AL140: 0 | AM140: 0 | AN140: 0
S141: =SUM(S132:T140) -> 0 | U141: =SUM(V132:V140) -> 0 | W141: =SUM(W132:X140) -> 0 | Z141: =SUM(Z132:Z140) -> 0 | AA141: =K93 -> 0 | AF141: =SUM(AF132:AF140) -> 0 | AG141: =SUM(AG132:AG140) -> 0 | AH141: 0 | AI141: 0 | AJ141: 0 | AK141: 0 | AL141: 0 | AM141: 0 | AN141: 0 | AO141: =SUM(AF141:AN141) -> 0
AF142: =IF($AO$141<>0,AF141/$AO$141,0) -> 0 | AG142: =IF($AO$141<>0,AG141/$AO$141,0) -> 0 | AH142: 0 | AI142: 0 | AJ142: 0 | AK142: 0 | AL142: 0 | AM142: 0 | AN142: 0

Sheet SAL.Finale
P1: =MATCH("SimMZ",C:C,0) -> 78
F2: DATI DI PROGETTO : | G2: IMPONIBILE | H2: IVA | I2: IMPORTO | K2: IMPONIBILE | L2: IVA | M2: IMPORTO | N2: =CONCATENATE('Dati Gen'!K2," SIM.srl") -> Pratica.110plus SIM.srl
C3: STATO AVANZAMENTO LAVORI Finale | F3: Importo Lavori | G3: ='Dati Gen'!G18 -> 10000 | H3: ='Dati Gen'!K18 -> 1000 | I3: ='Dati Gen'!M18 -> 11000 | J3: Importo Netto | K3: ='Dati Gen'!G20 -> 10000 | L3: ='Dati Gen'!K20 -> 1000 | M3: ='Dati Gen'!M20 -> 11000 | Q3: =IF('Computo-Massimali'!C6<>"","Attenzione! Tabella Computo-Massimali non completa. Si consiglia di completare, prima di registrare Voci di SAL","") -> Attenzione! Tabella Computo-Massimali non completa. Si consiglia di completare, prima di registrare Voci di SAL
C4: 20/12/2021 | F4: Oneri Sicurezza | G4: ='Dati Gen'!G19 -> 0 | H4: ='Dati Gen'!K19 -> 0 | I4: ='Dati Gen'!M19 -> 0 | J4: Spese Tecniche | K4: ='Dati Gen'!G21 -> 266.45 | L4: ='Dati Gen'!K21 -> 0 | M4: ='Dati Gen'!M21 -> 266.45
C5: Oneri/Lavori x Sicurezza | D5: 0 | K5: ='Dati Gen'!G22 -> Importo Complessivo Progetto : | M5: ='Dati Gen'!M22 -> 11266.45
C7: INTERVENTI TRAINANTI | Q7: =CONCATENATE("Verifica Massimali di Spesa ",C7) -> Verifica Massimali di Spesa INTERVENTI TRAINANTI
C8: Interventi | F8: Importo Lavori | G8: Incidenza Sicurezza | H8: Imponibile | I8: Iva | J8: Importo c.iva | K8: Spese tecniche | L8: Totale | M8: Detrazione Spettante | N8: %SAL | R8: Massimale spesa | S8: Verifica Max | U8: Spesa Ammessa | W8: Quota Eccedente Massimale Spesa | Y8: Cessione Credito
C9: ='Computo-Massimali'!C9 -> PV) Isolamento pareti perimetrali | E9: ='Computo-Massimali'!E9 -> Esterno | F9: 0 | G9: =IF('Computo-Massimali'!F9<>0,'Computo-Massimali'!G9*F9/'Computo-Massimali'!F9,0) -> 0 | H9: =SUM(F9:G9) -> 0 | I9: =F9*'Dati Gen'!$J$20+G9*'Dati Gen'!$J$19 -> 0 | J9: =H9+I9 -> 0 | K9: =IF('Computo-Massimali'!F9<>0,'Computo-Massimali'!K9*F9/'Computo-Massimali'!F9,0) -> 0 | L9: =SUM(J9:K9) -> 0 | M9: =IF(L9<=R9,L9*1.1,R9*1.1) -> 0 | N9: =IF('Computo-Massimali'!L9>0,L9/'Computo-Massimali'!L9,0) -> 0 | Q9: =C9 -> PV) Isolamento pareti perimetrali | R9: ='Computo-Massimali'!R9 -> 50000 | S9: =IF(L9>M9,"KO Tot.>Detr.",IF(L9>R9,"ok< Tot.>Max.","ok")) -> ok | U9: =IF($L$13<>0,(L9/$L$13)*$U$13,0) -> 0 | Y9: Quota Impresa | AA9: Quota Tecnici
C10: ='Computo-Massimali'!C10 -> PO) Isolamento coperture | E10: ='Computo-Massimali'!E10 -> Esterno | F10: 0 | G10: =IF('Computo-Massimali'!F10<>0,'Computo-Massimali'!G10*F10/'Computo-Massimali'!F10,0) -> 0 | H10: =SUM(F10:G10) -> 0 | I10: =F10*'Dati Gen'!$J$20+G10*'Dati Gen'!$J$19 -> 0 | J10: =H10+I10 -> 0 | K10: =IF('Computo-Massimali'!F10<>0,'Computo-Massimali'!K10*F10/'Computo-Massimali'!F10,0) -> 0 | L10: =SUM(J10:K10) -> 0 | M10: 0 | N10: =IF('Computo-Massimali'!L10>0,L10/'Computo-Massimali'!L10,0) -> 0 | Q10: PO) Isolamento coperture | R10: ='Computo-Massimali'!R10 -> 50000 | S10: =IF(L10>M10,"KO Tot.>Detr.",IF(L10>R10,"ok< Tot.>Max.","ok")) -> ok | U10: =IF($L$13<>0,(L10/$L$13)*$U$13,0) -> 0
C11: ='Computo-Massimali'!C11 -> POND) Isol. coperture non disperdenti | E11: ='Computo-Massimali'!E11 -> Esterno | F11: 0 | G11: =IF('Computo-Massimali'!F11<>0,'Computo-Massimali'!G11*F11/'Computo-Massimali'!F11,0) -> 0 | H11: =SUM(F11:G11) -> 0 | I11: =F11*'Dati Gen'!$J$20+G11*'Dati Gen'!$J$19 -> 0 | J11: =H11+I11 -> 0 | K11: =IF('Computo-Massimali'!F11<>0,'Computo-Massimali'!K11*F11/'Computo-Massimali'!F11,0) -> 0 | L11: =SUM(J11:K11) -> 0 | M11: 0 | N11: =IF('Computo-Massimali'!L11>0,L11/'Computo-Massimali'!L11,0) -> 0 | Q11: POND) Isol. coperture non disperdenti | R11: ='Computo-Massimali'!R11 -> 50000 | S11: ok | U11: =IF($L$13<>0,(L11/$L$13)*$U$13,0) -> 0
C12: ='Computo-Massimali'!C12 -> PS) Isolamento Pavimenti | E12: ='Computo-Massimali'!E12 -> Esterno | F12: ='Computo-Massimali'!F12 -> 0 | G12: =IF('Computo-Massimali'!F12<>0,'Computo-Massimali'!G12*F12/'Computo-Massimali'!F12,0) -> 0 | H12: =SUM(F12:G12) -> 0 | I12: =F12*'Dati Gen'!$J$20+G12*'Dati Gen'!$J$19 -> 0 | J12: =H12+I12 -> 0 | K12: =IF('Computo-Massimali'!F12<>0,'Computo-Massimali'!K12*F12/'Computo-Massimali'!F12,0) -> 0 | L12: =SUM(J12:K12) -> 0 | M12: 0 | N12: =IF('Computo-Massimali'!L12>0,L12/'Computo-Massimali'!L12,0) -> 0 | Q12: PS) Isolamento Pavimenti | R12: ='Computo-Massimali'!R12 -> 50000 | S12: ok | U12: =IF($L$13<>0,(L12/$L$13)*$U$13,0) -> 0
C13: ='Computo-Massimali'!C13 -> TOT.Isolamento sup.verticali/orizzontali | F13: =SUM(F9:F12) -> 0 | G13: =SUM(G9:G12) -> 0 | H13: =SUM(H9:H12) -> 0 | I13: 0 | J13: 0 | K13: 0 | L13: 0 | M13: 0 | N13: =IF('Computo-Massimali'!L13>0,L13/'Computo-Massimali'!L13,0) -> 0 | Q13: TOT.Isolamento sup.verticali/orizzontali | R13: ='Computo-Massimali'!R13 -> 50000 | S13: ok | U13: =IF(L13<R13,L13,R13) -> 0 | W13: =IF(L13>R13,L13-R13,0) -> 0 | Y13: =IF(M13<>0,J13*M13/L13,0) -> 0 | AA13: =IF(M13<>0,K13*M13/L13,0) -> 0
C14: ='Computo-Massimali'!C14 -> Impianti climatizzazione e ACS | F14: 0 | G14: =IF('Computo-Massimali'!F14<>0,'Computo-Massimali'!G14*F14/'Computo-Massimali'!F14,0) -> 0 | H14: =SUM(F14:G14) -> 0 | I14: =F14*'Dati Gen'!$J$20+G14*'Dati Gen'!$J$19 -> 0 | J14: =H14+I14 -> 0 | K14: =IF('Computo-Massimali'!F14<>0,'Computo-Massimali'!K14*F14/'Computo-Massimali'!F14,0) -> 0 | L14: =SUM(J14:K14) -> 0 | M14: 0 | N14: =IF('Computo-Massimali'!L14>0,L14/'Computo-Massimali'!L14,0) -> 0 | Q14: Impianti climatizzazione e ACS | R14: ='Computo-Massimali'!R14 -> 30000 | S14: ok | U14: =IF(L14<R14,L14,R14) -> 0 | W14: =IF(L14>R14,L14-R14,0) -> 0 | Y14: =IF(M14<>0,J14*M14/L14,0) -> 0 | AA14: =IF(M14<>0,K14*M14/L14,0) -> 0
C15: ='Computo-Massimali'!C15 -> SismaBonus | F15: 0 | G15: =IF('Computo-Massimali'!F15<>0,'Computo-Massimali'!G15*F15/'Computo-Massimali'!F15,0) -> 0 | H15: =SUM(F15:G15) -> 0 | I15: =F15*'Dati Gen'!$J$20+G15*'Dati Gen'!$J$19 -> 0 | J15: =H15+I15 -> 0 | K15: =IF('Computo-Massimali'!F15<>0,'Computo-Massimali'!K15*F15/'Computo-Massimali'!F15,0) -> 0 | L15: =SUM(J15:K15) -> 0 | M15: 0 | N15: =IF('Computo-Massimali'!L15>0,L15/'Computo-Massimali'!L15,0) -> 0 | Q15: SismaBonus | R15: ='Computo-Massimali'!R15 -> 96000 | S15: ok | U15: =IF(L15<R15,L15,R15) -> 0 | W15: =IF(L15>R15,L15-R15,0) -> 0 | Y15: =IF(M15<>0,J15*M15/L15,0) -> 0 | AA15: =IF(M15<>0,K15*M15/L15,0) -> 0
C16: ='Computo-Massimali'!C16 -> Totale interventi Trainanti : | F16: =SUM(F13:F15) -> 0 | G16: =SUM(G13:G15) -> 0 | H16: 0 | I16: 0 | J16: 0 | K16: 0 | L16: 0 | M16: =SUM(M13:M15) -> 0 | N16: =IF('Computo-Massimali'!L16>0,L16/'Computo-Massimali'!L16,0) -> 0 | R16: =C16 -> Totale interventi Trainanti : | U16: =SUM(U13:V15) -> 0 | W16: =SUM(W13:X15) -> 0 | Y16: =SUM(Y13:Z15) -> 0 | AA16: =SUM(AA13:AB15) -> 0
C18: INTERVENTI TRAINATI PARTI COMUNI CONDOMINIALI | Q18: =CONCATENATE("Verifica Massimali di Spesa ",C18) -> Verifica Massimali di Spesa INTERVENTI TRAINATI PARTI COMUNI CONDOMINIALI
C19: Interventi | F19: Importo Lavori | G19: Incidenza Sicurezza | H19: Imponibile | I19: Iva | J19: Importo c.iva | K19: Spese tecniche | L19: Totale | M19: Detrazione Spettante | N19: %SAL | R19: Massimale spesa | S19: Verifica Max | U19: Spesa Ammessa | W19: Quota Eccedente Massimale Spesa | Y19: Cessione Credito
C20: ='Computo-Massimali'!C20 -> PV) Isolamento pareti perimetrali | E20: ='Computo-Massimali'!E20 -> Esterno | F20: 0 | G20: =IF('Computo-Massimali'!F20<>0,'Computo-Massimali'!G20*F20/'Computo-Massimali'!F20,0) -> 0 | H20: =SUM(F20:G20) -> 0 | I20: =F20*'Dati Gen'!$J$20+G20*'Dati Gen'!$J$19 -> 0 | J20: =H20+I20 -> 0 | K20: =IF('Computo-Massimali'!F20<>0,'Computo-Massimali'!K20*F20/'Computo-Massimali'!F20,0) -> 0 | L20: =SUM(J20:K20) -> 0 | M20: =IF(L20<=R20,L20*1.1,R20*1.1) -> 0 | N20: =IF('Computo-Massimali'!L20>0,L20/'Computo-Massimali'!L20,0) -> 0 | Q20: =C20 -> PV) Isolamento pareti perimetrali | R20: ='Computo-Massimali'!R20 -> 50000 | S20: =IF(L20>M20,"KO Tot.>Detr.",IF(L20>R20,"ok< Tot.>Max.","ok")) -> ok | U20: =IF($L$24<>0,(L20/$L$24)*$U$24,0) -> 0 | Y20: Quota Impresa | AA20: Quota Tecnici
C21: ='Computo-Massimali'!C21 -> PO) Isolamento coperture | E21: ='Computo-Massimali'!E21 -> Esterno | F21: 0 | G21: =IF('Computo-Massimali'!F21<>0,'Computo-Massimali'!G21*F21/'Computo-Massimali'!F21,0) -> 0 | H21: =SUM(F21:G21) -> 0 | I21: =F21*'Dati Gen'!$J$20+G21*'Dati Gen'!$J$19 -> 0 | J21: =H21+I21 -> 0 | K21: =IF('Computo-Massimali'!F21<>0,'Computo-Massimali'!K21*F21/'Computo-Massimali'!F21,0) -> 0 | L21: =SUM(J21:K21) -> 0 | M21: =IF(L21<=R21,L21*1.1,R21*1.1) -> 0 | N21: =IF('Computo-Massimali'!L21>0,L21/'Computo-Massimali'!L21,0) -> 0 | Q21: PO) Isolamento coperture | R21: ='Computo-Massimali'!R21 -> 50000 | S21: ok | U21: =IF($L$24<>0,(L21/$L$24)*$U$24,0) -> 0
C22: ='Computo-Massimali'!C22 -> PS) Isolamento Pavimenti | E22: ='Computo-Massimali'!E22 -> Esterno | F22: 0 | G22: =IF('Computo-Massimali'!F22<>0,'Computo-Massimali'!G22*F22/'Computo-Massimali'!F22,0) -> 0 | H22: =SUM(F22:G22) -> 0 | I22: =F22*'Dati Gen'!$J$20+G22*'Dati Gen'!$J$19 -> 0 | J22: =H22+I22 -> 0 | K22: =IF('Computo-Massimali'!F22<>0,'Computo-Massimali'!K22*F22/'Computo-Massimali'!F22,0) -> 0 | L22: =SUM(J22:K22) -> 0 | M22: =IF(L22<=R22,L22*1.1,R22*1.1) -> 0 | N22: =IF('Computo-Massimali'!L22>0,L22/'Computo-Massimali'!L22,0) -> 0 | Q22: PS) Isolamento Pavimenti | R22: ='Computo-Massimali'!R22 -> 50000 | S22: ok | U22: =IF($L$24<>0,(L22/$L$24)*$U$24,0) -> 0
C23: ='Computo-Massimali'!C23 -> IN) Serramenti con chiusure oscuranti | E23: ='Computo-Massimali'!E23 -> Zone D, E ed F | F23: 0 | G23: =IF('Computo-Massimali'!F23<>0,'Computo-Massimali'!G23*F23/'Computo-Massimali'!F23,0) -> 0 | H23: =SUM(F23:G23) -> 0 | I23: =F23*'Dati Gen'!$J$20+G23*'Dati Gen'!$J$19 -> 0 | J23: =H23+I23 -> 0 | K23: =IF('Computo-Massimali'!F23<>0,'Computo-Massimali'!K23*F23/'Computo-Massimali'!F23,0) -> 0 | L23: =SUM(J23:K23) -> 0 | M23: =IF(L23<=R23,L23*1.1,R23*1.1) -> 0 | N23: =IF('Computo-Massimali'!L23>0,L23/'Computo-Massimali'!L23,0) -> 0 | Q23: IN) Serramenti con chiusure oscuranti | R23: ='Computo-Massimali'!R23 -> 54545 | S23: ok | U23: =IF($L$24<>0,(L23/$L$24)*$U$24,0) -> 0
C24: ='Computo-Massimali'!C24 -> Totali Isolamenti e Serramenti | F24: =SUM(F20:F23) -> 0 | G24: =SUM(G20:G23) -> 0 | H24: 0 | I24: 0 | J24: 0 | K24: =SUM(K20:K23) -> 0 | L24: =SUM(L20:L23) -> 0 | M24: =SUM(M20:M23) -> 0 | N24: =IF('Computo-Massimali'!L24>0,L24/'Computo-Massimali'!L24,0) -> 0 | Q24: Totali Isolamenti e Serramenti | R24: ='Computo-Massimali'!R24 -> 54545 | S24: ok | U24: =IF(L24<R24,L24,R24) -> 0 | W24: =IF(L24>R24,L24-R24,0) -> 0 | Y24: =IF(M24<>0,J24*M24/L24,0) -> 0 | AA24: =IF(M24<>0,K24*M24/L24,0) -> 0
C25: ='Computo-Massimali'!C25 -> SS) Schermature solari e chiusure oscur. | F25: 0 | G25: =IF('Computo-Massimali'!F25<>0,'Computo-Massimali'!G25*F25/'Computo-Massimali'!F25,0) -> 0 | H25: =SUM(F25:G25) -> 0 | I25: =F25*'Dati Gen'!$J$20+G25*'Dati Gen'!$J$19 -> 0 | J25: 0 | K25: =IF('Computo-Massimali'!F25<>0,'Computo-Massimali'!K25*F25/'Computo-Massimali'!F25,0) -> 0 | L25: =SUM(J25:K25) -> 0 | M25: =IF(L25<=R25,L25*1.1,R25*1.1) -> 0 | N25: =IF('Computo-Massimali'!L25>0,L25/'Computo-Massimali'!L25,0) -> 0 | Q25: SS) Schermature solari e chiusure oscur. | R25: ='Computo-Massimali'!R25 -> 54545 | S25: ok | U25: =IF(L25<R25,L25,R25) -> 0 | W25: =IF(L25>R25,L25-R25,0) -> 0 | Y25: =IF(M25<>0,J25*M25/L25,0) -> 0 | AA25: =IF(M25<>0,K25*M25/L25,0) -> 0
C26: ='Computo-Massimali'!C26 -> Impianti climatizzazione con CC) PC) PCA) o SI) | F26: 0 | G26: =IF('Computo-Massimali'!F26<>0,'Computo-Massimali'!G26*F26/'Computo-Massimali'!F26,0) -> 0 | H26: =SUM(F26:G26) -> 0 | I26: =F26*'Dati Gen'!$J$20+G26*'Dati Gen'!$J$19 -> 0 | J26: 0 | K26: =IF('Computo-Massimali'!F26<>0,'Computo-Massimali'!K26*F26/'Computo-Massimali'!F26,0) -> 0 | L26: 0 | M26: =IF(L26<=R26,L26*1.1,R26*1.1) -> 0 | N26: =IF('Computo-Massimali'!L26>0,L26/'Computo-Massimali'!L26,0) -> 0 | Q26: Impianti climatizzazione con CC) PC) PCA) o SI) | R26: ='Computo-Massimali'!R26 -> 27272 | S26: ok | U26: =IF(L26<R26,L26,R26) -> 0 | W26: =IF(L26>R26,L26-R26,0) -> 0 | Y26: =IF(M26<>0,J26*M26/L26,0) -> 0 | AA26: =IF(M26<>0,K26*M26/L26,0) -> 0
C27: ='Computo-Massimali'!C27 -> GA) Generatori aria calda Condensazione | F27: 0 | G27: =IF('Computo-Massimali'!F27<>0,'Computo-Massimali'!G27*F27/'Computo-Massimali'!F27,0) -> 0 | H27: =SUM(F27:G27) -> 0 | I27: =F27*'Dati Gen'!$J$20+G27*'Dati Gen'!$J$19 -> 0 | J27: 0 | K27: =IF('Computo-Massimali'!F27<>0,'Computo-Massimali'!K27*F27/'Computo-Massimali'!F27,0) -> 0 | L27: 0 | M27: =IF(L27<=R27,L27*1.1,R27*1.1) -> 0 | N27: =IF('Computo-Massimali'!L27>0,L27/'Computo-Massimali'!L27,0) -> 0 | Q27: GA) Generatori aria calda Condensazione | R27: ='Computo-Massimali'!R27 -> 27272 | S27: ok | U27: =IF($L$30<>0,(L27/$L$30)*$U$30,0) -> 0 | Y27: Quota Impresa | AA27: Quota Tecnici
C28: ='Computo-Massimali'!C28 -> IB) Impianti Biomassa | F28: 0 | G28: =IF('Computo-Massimali'!F28<>0,'Computo-Massimali'!G28*F28/'Computo-Massimali'!F28,0) -> 0 | H28: =SUM(F28:G28) -> 0 | I28: =F28*'Dati Gen'!$J$20+G28*'Dati Gen'!$J$19 -> 0 | J28: 0 | K28: =IF('Computo-Massimali'!F28<>0,'Computo-Massimali'!K28*F28/'Computo-Massimali'!F28,0) -> 0 | L28: 0 | M28: =IF(L28<=R28,L28*1.1,R28*1.1) -> 0 | N28: =IF('Computo-Massimali'!L28>0,L28/'Computo-Massimali'!L28,0) -> 0 | Q28: IB) Impianti Biomassa | R28: ='Computo-Massimali'!R28 -> 27272 | S28: ok | U28: =IF($L$30<>0,(L28/$L$30)*$U$30,0) -> 0
C29: ='Computo-Massimali'!C29 -> SA) Scaldacqua a pompa di calore | F29: 0 | G29: =IF('Computo-Massimali'!F29<>0,'Computo-Massimali'!G29*F29/'Computo-Massimali'!F29,0) -> 0 | H29: =SUM(F29:G29) -> 0 | I29: =F29*'Dati Gen'!$J$20+G29*'Dati Gen'!$J$19 -> 0 | J29: 0 | K29: =IF('Computo-Massimali'!F29<>0,'Computo-Massimali'!K29*F29/'Computo-Massimali'!F29,0) -> 0 | L29: 0 | M29: =IF(L29<=R29,L29*1.1,R29*1.1) -> 0 | N29: =IF('Computo-Massimali'!L29>0,L29/'Computo-Massimali'!L29,0) -> 0 | Q29: SA) Scaldacqua a pompa di calore | R29: ='Computo-Massimali'!R29 -> 27272 | S29: ok | U29: =IF($L$30<>0,(L29/$L$30)*$U$30,0) -> 0
C30: ='Computo-Massimali'!C30 -> Totali GA) IB) SA) | F30: =SUM(F27:F29) -> 0 | G30: =SUM(G27:G29) -> 0 | H30: 0 | I30: 0 | J30: 0 | K30: =SUM(K27:K29) -> 0 | L30: =SUM(L27:L29) -> 0 | M30: 0 | N30: =IF('Computo-Massimali'!L30>0,L30/'Computo-Massimali'!L30,0) -> 0 | Q30: Totali GA) IB) SA) | R30: ='Computo-Massimali'!R30 -> 27272 | S30: ok | U30: =IF(L30<R30,L30,R30) -> 0
C31: ='Computo-Massimali'!C31 -> CO) Sistemi di Microgenerazione | F31: 0 | G31: =IF('Computo-Massimali'!F31<>0,'Computo-Massimali'!G31*F31/'Computo-Massimali'!F31,0) -> 0 | H31: =SUM(F31:G31) -> 0 | I31: =F31*'Dati Gen'!$J$20+G31*'Dati Gen'!$J$19 -> 0 | J31: =H31+I31 -> 0 | K31: =IF('Computo-Massimali'!F31<>0,'Computo-Massimali'!K31*F31/'Computo-Massimali'!F31,0) -> 0 | L31: =SUM(J31:K31) -> 0 | M31: =IF(L31<=R31,L31*1.1,R31*1.1) -> 0 | N31: =IF('Computo-Massimali'!L31>0,L31/'Computo-Massimali'!L31,0) -> 0 | Q31: CO) Sistemi di Microgenerazione | R31: ='Computo-Massimali'!R31 -> 90909 | S31: ok | U31: 0 | W31: =IF(L31>R31,L31-R31,0) -> 0 | Y31: =IF(M31<>0,J31*M31/L31,0) -> 0 | AA31: =IF(M31<>0,K31*M31/L31,0) -> 0
C32: ='Computo-Massimali'!C32 -> ST) Collettori Solari | E32: ='Computo-Massimali'!E32 -> Piani Vetrati | F32: 0 | G32: =IF('Computo-Massimali'!F32<>0,'Computo-Massimali'!G32*F32/'Computo-Massimali'!F32,0) -> 0 | H32: 0 | I32: =F32*'Dati Gen'!$J$20+G32*'Dati Gen'!$J$19 -> 0 | J32: =H32+I32 -> 0 | K32: =IF('Computo-Massimali'!F32<>0,'Computo-Massimali'!K32*F32/'Computo-Massimali'!F32,0) -> 0 | L32: =SUM(J32:K32) -> 0 | M32: 0 | N32: =IF('Computo-Massimali'!L32>0,L32/'Computo-Massimali'!L32,0) -> 0 | Q32: ST) Collettori Solari | R32: ='Computo-Massimali'!R32 -> 54545 | S32: ok | U32: 0 | W32: 0 | Y32: 0 | AA32: 0
C33: ='Computo-Massimali'!C33 -> FV) Solare Fotovoltaico ristr. kWp | E33: ='Computo-Massimali'!E33 -> 6 | F33: 0 | G33: =IF('Computo-Massimali'!F33<>0,'Computo-Massimali'!G33*F33/'Computo-Massimali'!F33,0) -> 0 | H33: 0 | I33: =F33*'Dati Gen'!$J$20+G33*'Dati Gen'!$J$19 -> 0 | J33: =H33+I33 -> 0 | K33: =IF('Computo-Massimali'!F33<>0,'Computo-Massimali'!K33*F33/'Computo-Massimali'!F33,0) -> 0 | L33: =SUM(J33:K33) -> 0 | M33: 0 | N33: =IF('Computo-Massimali'!L33>0,L33/'Computo-Massimali'!L33,0) -> 0 | Q33: FV) Solare Fotovoltaico ristr. kWp | R33: ='Computo-Massimali'!R33 -> 9600 | S33: ok | U33: 0 | W33: 0 | Y33: 0 | AA33: 0
C34: ='Computo-Massimali'!C34 -> AC) Sistema di Accumulo kWh | E34: ='Computo-Massimali'!E34 -> 10 | F34: 0 | G34: =IF('Computo-Massimali'!F34<>0,'Computo-Massimali'!G34*F34/'Computo-Massimali'!F34,0) -> 0 | H34: 0 | I34: =F34*'Dati Gen'!$J$20+G34*'Dati Gen'!$J$19 -> 0 | J34: =H34+I34 -> 0 | K34: =IF('Computo-Massimali'!F34<>0,'Computo-Massimali'!K34*F34/'Computo-Massimali'!F34,0) -> 0 | L34: =SUM(J34:K34) -> 0 | M34: 0 | N34: =IF('Computo-Massimali'!L34>0,L34/'Computo-Massimali'!L34,0) -> 0 | Q34: AC) Sistema di Accumulo kWh | R34: ='Computo-Massimali'!R34 -> 10000 | S34: ok | U34: 0 | W34: 0 | Y34: 0 | AA34: 0
C35: ='Computo-Massimali'!C35 -> CR) Colonnine di Ricarica N. | F35: 0 | G35: =IF('Computo-Massimali'!F35<>0,'Computo-Massimali'!G35*F35/'Computo-Massimali'!F35,0) -> 0 | H35: 0 | I35: =F35*'Dati Gen'!$J$20+G35*'Dati Gen'!$J$19 -> 0 | J35: 0 | K35: =IF('Computo-Massimali'!F35<>0,'Computo-Massimali'!K35*F35/'Computo-Massimali'!F35,0) -> 0 | L35: 0 | M35: 0 | N35: =IF('Computo-Massimali'!L35>0,L35/'Computo-Massimali'!L35,0) -> 0 | Q35: CR) Colonnine di Ricarica N. | R35: ='Computo-Massimali'!R35 -> 1500 | S35: ok | U35: 0 | W35: 0 | Y35: 0 | AA35: 0
C36: ='Computo-Massimali'!C36 -> EBA) Eliminazione Barriere architettoniche | F36: 0 | G36: =IF('Computo-Massimali'!F36<>0,'Computo-Massimali'!G36*F36/'Computo-Massimali'!F36,0) -> 0 | H36: 0 | I36: =F36*'Dati Gen'!$J$20+G36*'Dati Gen'!$J$19 -> 0 | J36: 0 | K36: =IF('Computo-Massimali'!F36<>0,'Computo-Massimali'!K36*F36/'Computo-Massimali'!F36,0) -> 0 | L36: 0 | M36: 0 | N36: =IF('Computo-Massimali'!L36>0,L36/'Computo-Massimali'!L36,0) -> 0 | Q36: EBA) Eliminazione Barriere architettoniche | R36: ='Computo-Massimali'!R36 -> 96000 | S36: ok | U36: 0 | W36: 0 | Y36: 0 | AA36: 0
C37: ='Computo-Massimali'!C37 -> Totale Interventi Trainati Parti Comuni: | F37: =SUM(F24:F26)+SUM(F30:F36) -> 0 | G37: =SUM(G24:G26)+SUM(G30:G36) -> 0 | H37: 0 | I37: 0 | J37: 0 | K37: 0 | L37: =SUM(L24:L26)+SUM(L30:L36) -> 0 | M37: 0 | N37: =IF('Computo-Massimali'!L37>0,L37/'Computo-Massimali'!L37,0) -> 0 | R37: =C37 -> Totale Interventi Trainati Parti Comuni: | U37: =SUM(U24:V36) -> 0 | W37: =SUM(W24:X36) -> 0 | Y37: =SUM(Y23:Z36) -> 0 | AA37: =SUM(AA24:AB36) -> 0
C40: INTERVENTI TRAINATI | Q40: =CONCATENATE("Verifica Massimali di Spesa ",C40) -> Verifica Massimali di Spesa INTERVENTI TRAINATI
C41: Interventi | F41: Importo Lavori | G41: Incidenza Sicurezza | H41: Imponibile | I41: Iva | J41: Importo c.iva | K41: Spese tecniche | L41: Totale | M41: Detrazione Spettante | N41: %SAL | R41: Massimale spesa | S41: Verifica Max | U41: Spesa Ammessa | W41: Quota Eccedente Massimale Spesa | Y41: Cessione Credito
C42: ='Computo-Massimali'!C42:D42 -> PV) Isolamento pareti perimetrali | E42: ='Computo-Massimali'!E42 -> Esterno | F42: 0 | G42: 0 | H42: =SUM(F42:G42) -> 0 | I42: =F42*'Dati Gen'!$J$20+G42*'Dati Gen'!$J$19 -> 0 | J42: =H42+I42 -> 0 | K42: =IF('Computo-Massimali'!F42<>0,'Computo-Massimali'!K42*F42/'Computo-Massimali'!F42,0) -> 0 | L42: =SUM(J42:K42) -> 0 | M42: =IF(L42<=R42,L42*1.1,R42*1.1) -> 0 | N42: =IF('Computo-Massimali'!L42>0,L42/'Computo-Massimali'!L42,0) -> 0 | Q42: =C42 -> PV) Isolamento pareti perimetrali | R42: ='Computo-Massimali'!R42 -> 54545 | S42: =IF(L42>M42,"KO Tot.>Detr.",IF(L42>R42,"ok< Tot.>Max.","ok")) -> ok | U42: =IF($L$46<>0,(L42/$L$46)*$U$46,0) -> 0 | Y42: Quota Impresa | AA42: Quota Tecnici
C43: ='Computo-Massimali'!C43:D43 -> PO) Isolamento coperture | E43: Esterno | F43: 0 | G43: 0 | H43: =SUM(F43:G43) -> 0 | I43: =F43*'Dati Gen'!$J$20+G43*'Dati Gen'!$J$19 -> 0 | J43: =H43+I43 -> 0 | K43: =IF('Computo-Massimali'!F43<>0,'Computo-Massimali'!K43*F43/'Computo-Massimali'!F43,0) -> 0 | L43: =SUM(J43:K43) -> 0 | M43: =IF(L43<=R43,L43*1.1,R43*1.1) -> 0 | N43: =IF('Computo-Massimali'!L43>0,L43/'Computo-Massimali'!L43,0) -> 0 | Q43: PO) Isolamento coperture | R43: ='Computo-Massimali'!R43 -> 54545 | S43: ok | U43: =IF($L$46<>0,(L43/$L$46)*$U$46,0) -> 0
C44: ='Computo-Massimali'!C44:D44 -> PS) Isolamento Pavimenti | E44: Esterno | F44: 0 | G44: 0 | H44: =SUM(F44:G44) -> 0 | I44: =F44*'Dati Gen'!$J$20+G44*'Dati Gen'!$J$19 -> 0 | J44: =H44+I44 -> 0 | K44: =IF('Computo-Massimali'!F44<>0,'Computo-Massimali'!K44*F44/'Computo-Massimali'!F44,0) -> 0 | L44: =SUM(J44:K44) -> 0 | M44: =IF(L44<=R44,L44*1.1,R44*1.1) -> 0 | N44: =IF('Computo-Massimali'!L44>0,L44/'Computo-Massimali'!L44,0) -> 0 | Q44: PS) Isolamento Pavimenti | R44: ='Computo-Massimali'!R44 -> 54545 | S44: ok | U44: =IF($L$46<>0,(L44/$L$46)*$U$46,0) -> 0
C45: ='Computo-Massimali'!C45:D45 -> IN) Serramenti con chiusure oscuranti | E45: Zone D, E ed F | F45: 0 | G45: 0 | H45: =SUM(F45:G45) -> 0 | I45: =F45*'Dati Gen'!$J$20+G45*'Dati Gen'!$J$19 -> 0 | J45: =H45+I45 -> 0 | K45: =IF('Computo-Massimali'!F45<>0,'Computo-Massimali'!K45*F45/'Computo-Massimali'!F45,0) -> 0 | L45: =SUM(J45:K45) -> 0 | M45: =IF(L45<=R45,L45*1.1,R45*1.1) -> 0 | N45: =IF('Computo-Massimali'!L45>0,L45/'Computo-Massimali'!L45,0) -> 0 | Q45: IN) Serramenti con chiusure oscuranti | R45: ='Computo-Massimali'!R45 -> 54545 | S45: ok | U45: =IF($L$46<>0,(L45/$L$46)*$U$46,0) -> 0
C46: ='Computo-Massimali'!C46:D46 -> Totali Isolamenti e Serramenti | F46: =SUM(F42:F45) -> 0 | G46: =SUM(G42:G45) -> 0 | H46: 0 | I46: 0 | J46: 0 | K46: =SUM(K42:K45) -> 0 | L46: 0 | M46: 0 | N46: =IF('Computo-Massimali'!L46>0,L46/'Computo-Massimali'!L46,0) -> 0 | Q46: Totali Isolamenti e Serramenti | R46: ='Computo-Massimali'!R46 -> 54545 | S46: ok | U46: =IF(L46<R46,L46,R46) -> 0 | W46: =IF(L46>R46,L46-R46,0) -> 0 | Y46: =IF(M46<>0,J46*M46/L46,0) -> 0 | AA46: =IF(M46<>0,K46*M46/L46,0) -> 0
C47: ='Computo-Massimali'!C47:D47 -> SS) Schermature solari e chiusure oscur. | F47: 0 | G47: 0 | H47: =SUM(F47:G47) -> 0 | I47: =F47*'Dati Gen'!$J$20+G47*'Dati Gen'!$J$19 -> 0 | J47: =H47+I47 -> 0 | K47: =IF('Computo-Massimali'!F47<>0,'Computo-Massimali'!K47*F47/'Computo-Massimali'!F47,0) -> 0 | L47: =SUM(J47:K47) -> 0 | M47: =IF(L47<=R47,L47*1.1,R47*1.1) -> 0 | N47: =IF('Computo-Massimali'!L47>0,L47/'Computo-Massimali'!L47,0) -> 0 | Q47: SS) Schermature solari e chiusure oscur. | R47: ='Computo-Massimali'!R47 -> 54545 | S47: ok | U47: =IF(L47<R47,L47,R47) -> 0 | W47: =IF(L47>R47,L47-R47,0) -> 0 | Y47: =IF(M47<>0,J47*M47/L47,0) -> 0 | AA47: =IF(M47<>0,K47*M47/L47,0) -> 0
C48: ='Computo-Massimali'!C48:D48 -> Impianti climatizzazione e ACS | F48: 0 | G48: 0 | H48: =SUM(F48:G48) -> 0 | I48: =F48*'Dati Gen'!$J$20+G48*'Dati Gen'!$J$19 -> 0 | J48: =H48+I48 -> 0 | K48: =IF('Computo-Massimali'!F48<>0,'Computo-Massimali'!K48*F48/'Computo-Massimali'!F48,0) -> 0 | L48: =SUM(J48:K48) -> 0 | M48: =IF(L48<=R48,L48*1.1,R48*1.1) -> 0 | N48: =IF('Computo-Massimali'!L48>0,L48/'Computo-Massimali'!L48,0) -> 0 | Q48: Impianti climatizzazione e ACS | R48: ='Computo-Massimali'!R48 -> 27272 | S48: ok | U48: =IF($L$50<>0,(L48/$L$50)*$U$50,0) -> 0
C49: ='Computo-Massimali'!C49:D49 -> SA) Scaldacqua a pompa di calore | F49: 0 | G49: 0 | H49: =SUM(F49:G49) -> 0 | I49: =F49*'Dati Gen'!$J$20+G49*'Dati Gen'!$J$19 -> 0 | J49: =H49+I49 -> 0 | K49: =IF('Computo-Massimali'!F49<>0,'Computo-Massimali'!K49*F49/'Computo-Massimali'!F49,0) -> 0 | L49: =SUM(J49:K49) -> 0 | M49: =IF(L49<=R49,L49*1.1,R49*1.1) -> 0 | N49: =IF('Computo-Massimali'!L49>0,L49/'Computo-Massimali'!L49,0) -> 0 | Q49: SA) Scaldacqua a pompa di calore | R49: ='Computo-Massimali'!R49 -> 27272 | S49: ok | U49: =IF($L$50<>0,(L49/$L$50)*$U$50,0) -> 0
C50: ='Computo-Massimali'!C50:D50 -> Totali Impianti ed SA) | F50: =SUM(F48:F49) -> 0 | G50: =SUM(G48:G49) -> 0 | H50: 0 | I50: 0 | J50: 0 | K50: =SUM(K48:K49) -> 0 | L50: 0 | M50: 0 | N50: =IF('Computo-Massimali'!L50>0,L50/'Computo-Massimali'!L50,0) -> 0 | Q50: Totali Impianti ed SA) | R50: ='Computo-Massimali'!R50 -> 27272 | S50: ok | U50: =IF(L50<R50,L50,R50) -> 0 | W50: =IF(L50>R50,L50-R50,0) -> 0 | Y50: =IF(M50<>0,J50*M50/L50,0) -> 0 | AA50: =IF(M50<>0,K50*M50/L50,0) -> 0
C51: ='Computo-Massimali'!C51:D51 -> CO) Sistemi di Microgenerazione | F51: 0 | G51: 0 | H51: =SUM(F51:G51) -> 0 | I51: =F51*'Dati Gen'!$J$20+G51*'Dati Gen'!$J$19 -> 0 | J51: =H51+I51 -> 0 | K51: =IF('Computo-Massimali'!F51<>0,'Computo-Massimali'!K51*F51/'Computo-Massimali'!F51,0) -> 0 | L51: =SUM(J51:K51) -> 0 | M51: =IF(L51<=R51,L51*1.1,R51*1.1) -> 0 | N51: =IF('Computo-Massimali'!L51>0,L51/'Computo-Massimali'!L51,0) -> 0 | Q51: CO) Sistemi di Microgenerazione | R51: ='Computo-Massimali'!R51 -> 90909 | S51: ok | U51: 0 | W51: 0 | Y51: 0 | AA51: 0
C52: ='Computo-Massimali'!C52:D52 -> IB) Generatori a Biomassa | F52: 0 | G52: 0 | H52: 0 | I52: =F52*'Dati Gen'!$J$20+G52*'Dati Gen'!$J$19 -> 0 | J52: 0 | K52: =IF('Computo-Massimali'!F52<>0,'Computo-Massimali'!K52*F52/'Computo-Massimali'!F52,0) -> 0 | L52: 0 | M52: 0 | N52: =IF('Computo-Massimali'!L52>0,L52/'Computo-Massimali'!L52,0) -> 0 | Q52: IB) Generatori a Biomassa | R52: ='Computo-Massimali'!R52 -> 27272 | S52: ok | U52: 0 | W52: 0 | Y52: 0 | AA52: 0
C53: ='Computo-Massimali'!C53:D53 -> BA) Building Automation | F53: 0 | G53: 0 | H53: 0 | I53: =F53*'Dati Gen'!$J$20+G53*'Dati Gen'!$J$19 -> 0 | J53: 0 | K53: =IF('Computo-Massimali'!F53<>0,'Computo-Massimali'!K53*F53/'Computo-Massimali'!F53,0) -> 0 | L53: 0 | M53: 0 | N53: =IF('Computo-Massimali'!L53>0,L53/'Computo-Massimali'!L53,0) -> 0 | Q53: BA) Building Automation | R53: ='Computo-Massimali'!R53 -> 13636.36364 | S53: ok | U53: 0 | W53: 0 | Y53: 0 | AA53: 0
C54: ='Computo-Massimali'!C54:D54 -> ST) Collettori Solari | E54: Piani Vetrati | F54: 0 | G54: 0 | H54: 0 | I54: =F54*'Dati Gen'!$J$20+G54*'Dati Gen'!$J$19 -> 0 | J54: 0 | K54: =IF('Computo-Massimali'!F54<>0,'Computo-Massimali'!K54*F54/'Computo-Massimali'!F54,0) -> 0 | L54: 0 | M54: 0 | N54: =IF('Computo-Massimali'!L54>0,L54/'Computo-Massimali'!L54,0) -> 0 | Q54: ST) Collettori Solari | R54: ='Computo-Massimali'!R54 -> 54545 | S54: ok | U54: 0 | W54: 0 | Y54: 0 | AA54: 0
C55: ='Computo-Massimali'!C55:D55 -> FV) Solare Fotovoltaico kWp | E55: 6 | F55: 0 | G55: 0 | H55: 0 | I55: =F55*'Dati Gen'!$J$20+G55*'Dati Gen'!$J$19 -> 0 | J55: 0 | K55: =IF('Computo-Massimali'!F55<>0,'Computo-Massimali'!K55*F55/'Computo-Massimali'!F55,0) -> 0 | L55: 0 | M55: 0 | N55: =IF('Computo-Massimali'!L55>0,L55/'Computo-Massimali'!L55,0) -> 0 | Q55: FV) Solare Fotovoltaico kWp | R55: ='Computo-Massimali'!R55 -> 14400 | S55: ok | U55: 0 | W55: 0 | Y55: 0 | AA55: 0
C56: ='Computo-Massimali'!C56:D56 -> AC) Sistema di Accumulo kWh | E56: 10 | F56: 0 | G56: 0 | H56: 0 | I56: =F56*'Dati Gen'!$J$20+G56*'Dati Gen'!$J$19 -> 0 | J56: 0 | K56: =IF('Computo-Massimali'!F56<>0,'Computo-Massimali'!K56*F56/'Computo-Massimali'!F56,0) -> 0 | L56: 0 | M56: 0 | N56: =IF('Computo-Massimali'!L56>0,L56/'Computo-Massimali'!L56,0) -> 0 | Q56: AC) Sistema di Accumulo kWh | R56: ='Computo-Massimali'!R56 -> 10000 | S56: ok | U56: 0 | W56: 0 | Y56: 0 | AA56: 0
C57: ='Computo-Massimali'!C57:D57 -> CR) Colonnine di Ricarica | F57: 0 | G57: 0 | H57: 0 | I57: =F57*'Dati Gen'!$J$20+G57*'Dati Gen'!$J$19 -> 0 | J57: 0 | K57: =IF('Computo-Massimali'!F57<>0,'Computo-Massimali'!K57*F57/'Computo-Massimali'!F57,0) -> 0 | L57: 0 | M57: 0 | N57: =IF('Computo-Massimali'!L57>0,L57/'Computo-Massimali'!L57,0) -> 0 | Q57: CR) Colonnine di Ricarica | R57: ='Computo-Massimali'!R57 -> 1500 | S57: ok | U57: 0 | W57: 0 | Y57: 0 | AA57: 0
C58: Totale Interventi trainati | F58: =F46+F47+SUM(F50:F57) -> 0 | G58: =G46+G47+SUM(G50:G57) -> 0 | H58: =H46+H47+SUM(H50:H57) -> 0 | I58: 0 | J58: 0 | K58: =K46+K47+SUM(K50:K57) -> 0 | L58: =L46+L47+SUM(L50:L57) -> 0 | M58: 0 | N58: =IF('Computo-Massimali'!L58>0,L58/'Computo-Massimali'!L58,0) -> 0 | R58: =C58 -> Totale Interventi trainati | U58: =SUM(U46:V57) -> 0 | W58: =SUM(W46:X57) -> 0 | Y58: =SUM(Y46:Z57) -> 0 | AA58: =SUM(AA46:AB57) -> 0
C78: SimMZ
C80: TOTALI SAL Finale - INTERVENTI 110 | F80: Importo Lavori | G80: Incidenza Sicurezza | H80: Imponibile | I80: Iva | J80: Importo c.iva | K80: Spese tecniche | L80: Totale | M80: Detrazione Spettante | N80: %SAL | Q80: =C80 -> TOTALI SAL Finale - INTERVENTI 110 | U80: Spesa Ammessa | W80: Quota Eccedente Massimale Spesa | Y80: Cessione Credito Quota Impresa | Quota Tecnici
F81: =F16+F58 -> 0 | G81: 0 | H81: 0 | I81: 0 | J81: 0 | K81: 0 | L81: 0 | M81: 0 | N81: =IF('Computo-Massimali'!L81>0,L81/'Computo-Massimali'!L81,0) -> 0 | U81: =U16+U37+U58 -> 0 | W81: =T16+T58 -> 0 | Y81: =V16+V58 -> 0 | AA81: =X16+X58 -> 0
C83: =IF(N81>=99.999%,"","Attenzione! SAL Superbonus 110 inferiore 100%") -> Attenzione! SAL Superbonus 110 inferiore 100%
C87: ALTRI INTERVENTI | Q87: =CONCATENATE("Verifica Massimali di Spesa ",C87) -> Verifica Massimali di Spesa ALTRI INTERVENTI
C88: Interventi | F88: Importo Lavori | G88: Incidenza Sicurezza | H88: Imponibile | I88: Iva | J88: Importo c.iva | K88: Spese tecniche | L88: Totale | M88: Detrazione Spettante | N88: %SAL | R88: Massimale spesa | S88: Verifica Max | U88: Spesa Ammessa | W88: Quota Eccedente Massimale Spesa | Y88: Cessione Credito Quota Impresa | Quota Tecnici
C89: =IF('Computo-Massimali'!C89<>"",'Computo-Massimali'!C89,"") -> Lavori Ristrutturazione | E89: =IF('Computo-Massimali'!E89<>0,'Computo-Massimali'!E89,"") -> 0.5 | F89: 0 | G89: =IF('Computo-Massimali'!F89<>0,'Computo-Massimali'!G89*F89/'Computo-Massimali'!F89,0) -> 0 | H89: =SUM(F89:G89) -> 0 | I89: =F89*'Dati Gen'!$J$20+G89*'Dati Gen'!$J$19 -> 0 | J89: =H89+I89 -> 0 | K89: =IF('Computo-Massimali'!F89<>0,'Computo-Massimali'!K89*F89/'Computo-Massimali'!F89,0) -> 0 | L89: =SUM(J89:K89) -> 0 | M89: =IF(L89<=R89,L89*E89,R89*E89) -> 0 | N89: =IF('Computo-Massimali'!L89>0,L89/'Computo-Massimali'!L89,0) -> 0 | Q89: =IF(C89<>"",C89,"") -> Lavori Ristrutturazione | R89: =96000*N_Uimm -> 96000 | S89: =IF(R89<>0,IF(L89>R89,"KO","ok"),"ok") -> ok | U89: =IF(L89<R89,L89,R89) -> 0 | W89: =IF(L89>R89,L89-R89,0) -> 0 | Y89: =IF(M89<>0,J89*M89/L89,0) -> 0 | AA89: =IF(M89<>0,K89*M89/L89,0) -> 0
C90: =IF('Computo-Massimali'!C90<>"",'Computo-Massimali'!C90,"") -> Ecobonus | E90: =IF('Computo-Massimali'!E90<>0,'Computo-Massimali'!E90,"") -> 0.65 | F90: 0 | G90: =IF('Computo-Massimali'!F90<>0,'Computo-Massimali'!G90*F90/'Computo-Massimali'!F90,0) -> 0 | H90: =SUM(F90:G90) -> 0 | I90: =F90*'Dati Gen'!$J$20+G90*'Dati Gen'!$J$19 -> 0 | J90: =H90+I90 -> 0 | K90: =IF('Computo-Massimali'!F90<>0,'Computo-Massimali'!K90*F90/'Computo-Massimali'!F90,0) -> 0 | L90: =SUM(J90:K90) -> 0 | M90: =IF(L90<=R90,L90*E90,R90*E90) -> 0 | N90: =IF('Computo-Massimali'!L90>0,L90/'Computo-Massimali'!L90,0) -> 0 | Q90: =IF(C90<>"",C90,"") -> Ecobonus | R90: =96000*N_Uimm -> 96000 | S90: =IF(R90<>0,IF(L90>R90,"KO","ok"),"ok") -> ok | U90: =IF(L90<R90,L90,R90) -> 0 | W90: =IF(L90>R90,L90-R90,0) -> 0 | Y90: =IF(M90<>0,J90*M90/L90,0) -> 0 | AA90: =IF(M90<>0,K90*M90/L90,0) -> 0
C91: =IF('Computo-Massimali'!C91<>"",'Computo-Massimali'!C91,"") -> Bonus Facciata | E91: =IF('Computo-Massimali'!E91<>0,'Computo-Massimali'!E91,"") -> 0.9 | F91: 0 | G91: =IF('Computo-Massimali'!F91<>0,'Computo-Massimali'!G91*F91/'Computo-Massimali'!F91,0) -> 0 | H91: =SUM(F91:G91) -> 0 | I91: =F91*'Dati Gen'!$J$20+G91*'Dati Gen'!$J$19 -> 0 | J91: =H91+I91 -> 0 | K91: =IF('Computo-Massimali'!F91<>0,'Computo-Massimali'!K91*F91/'Computo-Massimali'!F91,0) -> 0 | L91: =SUM(J91:K91) -> 0 | M91: =IF(L91<=R91,L91*E91,R91*E91) -> 0 | N91: =IF('Computo-Massimali'!L91>0,L91/'Computo-Massimali'!L91,0) -> 0 | Q91: =IF(C91<>"",C91,"") -> Bonus Facciata | R91: =96000*N_Uimm -> 96000 | S91: =IF(R91<>0,IF(L91>R91,"KO","ok"),"ok") -> ok | U91: =IF(L91<R91,L91,R91) -> 0 | W91: =IF(L91>R91,L91-R91,0) -> 0 | Y91: =IF(M91<>0,J91*M91/L91,0) -> 0 | AA91: =IF(M91<>0,K91*M91/L91,0) -> 0
C92: =IF('Computo-Massimali'!C92<>"",'Computo-Massimali'!C92,"") ->  | E92: =IF('Computo-Massimali'!E92<>0,'Computo-Massimali'!E92,"") ->  | F92: 0 | G92: =IF('Computo-Massimali'!F92<>0,'Computo-Massimali'!G92*F92/'Computo-Massimali'!F92,0) -> 0 | H92: 0 | I92: 0 | J92: 0 | K92: =IF('Computo-Massimali'!F92<>0,'Computo-Massimali'!K92*F92/'Computo-Massimali'!F92,0) -> 0 | L92: 0 | M92: 0 | N92: =IF('Computo-Massimali'!L92>0,L92/'Computo-Massimali'!L92,0) -> 0 | Q92: =IF(C92<>"",C92,"") ->  | R92: =96000*N_Uimm -> 96000 | S92: =IF(R92<>0,IF(L92>R92,"KO","ok"),"ok") -> ok | U92: =IF(L92<R92,L92,R92) -> 0 | W92: =IF(L92>R92,L92-R92,0) -> 0 | Y92: =IF(M92<>0,J92*M92/L92,0) -> 0 | AA92: =IF(M92<>0,K92*M92/L92,0) -> 0
C93: TotalI SAL Finale - Altri Interventi : | F93: =SUM(F89:F92) -> 0 | G93: 0 | H93: 0 | I93: 0 | J93: 0 | K93: 0 | L93: 0 | M93: 0 | N93: =IF('Computo-Massimali'!L93>0,L93/'Computo-Massimali'!L93,0) -> 0 | R93: =C93 -> TotalI SAL Finale - Altri Interventi : | U93: =SUM(U89:V92) -> 0 | W93: =SUM(W89:X92) -> 0 | Y93: =SUM(Y89:Z92) -> 0 | AA93: =SUM(AA89:AB92) -> 0
F96: Importo Lavori Eseguiti | G96: Incidenza Sicurezza | H96: Imponibile | I96: Iva | J96: Importo c.iva | K96: Spese tecniche | L96: Totale | M96: Detrazione Spettante | N96: %SAL | Q96: =C99 -> TOTALI SAL. Finale del 20/12/2021 : | U96: Spesa Ammessa | W96: Quota Eccedente Massimale Spesa | Y96: Cessione Credito Quota Impresa | Quota Tecnici
C97: =CONCATENATE("TOTALI SAL. N.1 del ",'SAL.30%'!C4, " : ") -> TOTALI SAL. N.1 del 24/04/2021 : | F97: ='SAL.30%'!F97 -> 1000 | G97: ='SAL.30%'!G97 -> 0 | H97: ='SAL.30%'!H97 -> 1000 | I97: ='SAL.30%'!I97 -> 1 | J97: ='SAL.30%'!J97 -> 1100 | K97: ='SAL.30%'!K97 -> 0 | L97: ='SAL.30%'!L97 -> 1100 | M97: ='SAL.30%'!M97 -> 1210 | N97: ='SAL.30%'!N97 -> 0 | U97: =U81+U93 -> 0 | W97: =W81+W93 -> 0 | Y97: =Y81+Y93 -> 0 | AA97: =AA81+AA93 -> 0
C98: =CONCATENATE("TOTALI SAL. N.2 del ",'SAL.60%'!C4, " : ") -> TOTALI SAL. N.2 del 12/11/2021 : | F98: ='SAL.60%'!F97 -> 0 | G98: ='SAL.60%'!G97 -> 0 | H98: ='SAL.60%'!H97 -> 0 | I98: ='SAL.60%'!I97 -> 0 | J98: ='SAL.60%'!J97 -> 0 | K98: ='SAL.60%'!K97 -> 0 | L98: ='SAL.60%'!L97 -> 0 | M98: ='SAL.60%'!M97 -> 0 | N98: ='SAL.60%'!N97 -> 0
C99: =CONCATENATE("TOTALI SAL. Finale del ",C4, " : ") -> TOTALI SAL. Finale del 20/12/2021 : | F99: =ImpLavFinale+F93 -> 0 | G99: 0 | H99: 0 | I99: 0 | J99: 0 | K99: 0 | L99: 0 | M99: 0 | N99: =IF('Computo-Massimali'!L100>0,L99/'Computo-Massimali'!L100,0) -> 0
C102: =IF(ABS(D5-G97)>0.01,"Importo Effettivo Lavori Eseguiti","") ->  | F102: =IF($C$102<>"",F97,"") ->  | G102: =IF($C$102<>"",D5,"") ->  | H102: =IF($C$102<>"",F102+G102,"") ->  | I102: =IF($C$102<>"",H102*AliqIva,"") ->  | J102: =IF($C$102<>"",H102+I102,"") ->  | K102: =IF($C$102<>"",K97,"") ->  | L102: =IF($C$102<>"",J102+K102,"") ->  | M102: =IF($C$102<>"",L102*1.1,"") ->  | N102: =IF($C$102<>"",L102/'Computo-Massimali'!L100,"") -> 
C103: =IF($C$102<>"","Oneri/Lavori Sicurezza non imputabili al SAL, per lavori non eseguiti","") ->  | G103: =IF($C$103<>"",D5-G97,"") -> 
Q116: Ripartizione Spese Tecniche SAL. Finale - INTERVENTI 110 | AC116: Applica Sconto in Fattura
Q117: Lavoro | R117: Tecnico | S117: Onorario | U117: C.Cassa | W117: Imponibile | Y117: IVA | AA117: Totale | AF117: ='Dati Gen'!B44 -> Ingegnere 1 | AG117: ='Dati Gen'!B45 -> Dott. Igor | AH117: ='Dati Gen'!B46 -> 0 | AI117: ='Dati Gen'!B47 -> 0 | AJ117: ='Dati Gen'!B48 -> 0 | AK117: ='Dati Gen'!B49 -> 0 | AL117: ='Dati Gen'!B50 -> 0 | AM117: ='Dati Gen'!B51 -> 0
Q118: =IF('Dati Gen'!B25<>"",'Dati Gen'!B25,"") -> Incarico 1 | R118: =IF('Dati Gen'!C25<>"",'Dati Gen'!C25,"") -> Ingegnere 1 | S118: =W118/(1+U118) -> 0 | U118: ='Dati Gen'!G25 -> 0.04 | V118: =S118*U118 -> 0 | W118: =AA118/(1+Y118) -> 0 | Y118: 0.22 | Z118: =Y118*(S118+V118) -> 0 | AA118: =IF('Dati Gen'!$M$36<>"",$AA$127*'Dati Gen'!M25/'Dati Gen'!$M$36,0) -> 0 | AC118: =IF(R118<>"",VLOOKUP('SAL.30%'!R118,'Dati Gen'!$B$44:$D$51,3,0),"") -> SI | AF118: =IF($R118=AF$117,$AA118,0) -> 0 | AG118: =IF($R118=AG$117,$AA118,0) -> 0 | AH118: 0 | AI118: 0 | AJ118: 0 | AK118: 0 | AL118: 0 | AM118: 0 | AN118: 0
Q119: =IF('Dati Gen'!B26<>"",'Dati Gen'!B26,"") -> Calcoli e Deposito G.C. | R119: =IF('Dati Gen'!C26<>"",'Dati Gen'!C26,"") -> Ingegnere 1 | S119: =W119/(1+U119) -> 0 | U119: ='Dati Gen'!G26 -> 0.04 | V119: =S119*U119 -> 0 | W119: =AA119/(1+Y119) -> 0 | Y119: 0.22 | Z119: =(S119+V119)*Y119 -> 0 | AA119: =IF('Dati Gen'!$M$36<>"",$AA$127*'Dati Gen'!M26/'Dati Gen'!$M$36,0) -> 0 | AC119: =IF(R119<>"",VLOOKUP('SAL.30%'!R119,'Dati Gen'!$B$44:$D$51,3,0),"") -> SI | AF119: =IF($R119=AF$117,$AA119,0) -> 0 | AG119: 0 | AH119: 0 | AI119: 0 | AJ119: 0 | AK119: 0 | AL119: 0 | AM119: 0 | AN119: 0
Q120: =IF('Dati Gen'!B27<>"",'Dati Gen'!B27,"") -> Congruità | R120: =IF('Dati Gen'!C27<>"",'Dati Gen'!C27,"") -> Ingegnere 1 | S120: 0 | U120: ='Dati Gen'!G27 -> 0.04 | V120: =S120*U120 -> 0 | W120: 0 | Y120: 0.22 | Z120: =(S120+V120)*Y120 -> 0 | AA120: =IF('Dati Gen'!$M$36<>"",$AA$127*'Dati Gen'!M27/'Dati Gen'!$M$36,0) -> 0 | AC120: =IF(R120<>"",VLOOKUP('SAL.30%'!R120,'Dati Gen'!$B$44:$D$51,3,0),"") -> SI | AF120: 0 | AG120: 0 | AH120: 0 | AI120: 0 | AJ120: 0 | AK120: 0 | AL120: 0 | AM120: 0 | AN120: 0
Q121: =IF('Dati Gen'!B28<>"",'Dati Gen'!B28,"") ->  | R121: =IF('Dati Gen'!C28<>"",'Dati Gen'!C28,"") ->  | S121: 0 | U121: ='Dati Gen'!G28 -> 0.04 | V121: =S121*U121 -> 0 | W121: 0 | Y121: 0.22 | Z121: =(S121+V121)*Y121 -> 0 | AA121: =IF('Dati Gen'!$M$36<>"",$AA$127*'Dati Gen'!M28/'Dati Gen'!$M$36,0) -> 0 | AC121: =IF(R121<>"",VLOOKUP('SAL.30%'!R121,'Dati Gen'!$B$44:$D$51,3,0),"") ->  | AF121: =IF($R121=AF$117,$AA121,0) -> 0 | AG121: 0 | AH121: 0 | AI121: 0 | AJ121: 0 | AK121: 0 | AL121: 0 | AM121: 0 | AN121: 0
Q122: =IF('Dati Gen'!B29<>"",'Dati Gen'!B29,"") ->  | R122: =IF('Dati Gen'!C29<>"",'Dati Gen'!C29,"") ->  | S122: 0 | U122: ='Dati Gen'!G29 -> 0.04 | V122: =T122*U122 -> 0 | W122: 0 | Y122: 0.22 | Z122: =(T122+V122)*Y122 -> 0 | AA122: =IF('Dati Gen'!$M$36<>"",$AA$127*'Dati Gen'!M29/'Dati Gen'!$M$36,0) -> 0 | AC122: =IF(R122<>"",VLOOKUP('SAL.30%'!R122,'Dati Gen'!$B$44:$D$51,3,0),"") ->  | AF122: 0 | AG122: 0 | AH122: 0 | AI122: 0 | AJ122: 0 | AK122: 0 | AL122: 0 | AM122: 0 | AN122: 0
Q123: =IF('Dati Gen'!B30<>"",'Dati Gen'!B30,"") ->  | R123: =IF('Dati Gen'!C30<>"",'Dati Gen'!C30,"") ->  | S123: 0 | U123: ='Dati Gen'!G30 -> 0.04 | V123: =T123*U123 -> 0 | W123: 0 | Y123: 0 | Z123: =(T123+V123)*Y123 -> 0 | AA123: =IF('Dati Gen'!$M$36<>"",$AA$127*'Dati Gen'!M30/'Dati Gen'!$M$36,0) -> 0 | AC123: =IF(R123<>"",VLOOKUP('SAL.30%'!R123,'Dati Gen'!$B$44:$D$51,3,0),"") ->  | AF123: 0 | AG123: 0 | AH123: 0 | AI123: 0 | AJ123: 0 | AK123: 0 | AL123: 0 | AM123: 0 | AN123: 0
Q124: =IF('Dati Gen'!B31<>"",'Dati Gen'!B31,"") ->  | R124: =IF('Dati Gen'!C31<>"",'Dati Gen'!C31,"") ->  | S124: 0 | U124: ='Dati Gen'!G31 -> 0.04 | V124: =T124*U124 -> 0 | W124: 0 | Y124: 0 | Z124: =(T124+V124)*Y124 -> 0 | AA124: =IF('Dati Gen'!$M$36<>"",$AA$127*'Dati Gen'!M31/'Dati Gen'!$M$36,0) -> 0 | AC124: =IF(R124<>"",VLOOKUP('SAL.30%'!R124,'Dati Gen'!$B$44:$D$51,3,0),"") ->  | AF124: 0 | AG124: 0 | AH124: 0 | AI124: 0 | AJ124: 0 | AK124: 0 | AL124: 0 | AM124: 0 | AN124: 0
Q125: =IF('Dati Gen'!B32<>"",'Dati Gen'!B32,"") ->  | R125: =IF('Dati Gen'!C32<>"",'Dati Gen'!C32,"") ->  | S125: 0 | U125: ='Dati Gen'!G32 -> 0.04 | V125: =T125*U125 -> 0 | W125: 0 | Y125: 0 | Z125: =(T125+V125)*Y125 -> 0 | AA125: =IF('Dati Gen'!$M$36<>"",$AA$127*'Dati Gen'!M32/'Dati Gen'!$M$36,0) -> 0 | AC125: =IF(R125<>"",VLOOKUP('SAL.30%'!R125,'Dati Gen'!$B$44:$D$51,3,0),"") ->  | AF125: 0 | AG125: 0 | AH125: 0 | AI125: 0 | AJ125: 0 | AK125: 0 | AL125: 0 | AM125: 0 | AN125: 0
Q126: =IF('Dati Gen'!B35<>"",'Dati Gen'!B35,"") -> Visto Conformità | R126: =IF('Dati Gen'!C35<>"",'Dati Gen'!C35,"") -> Dott. Igor | S126: 0 | U126: ='Dati Gen'!G35 -> 0.04 | V126: =S126*U126 -> 0 | W126: 0 | Y126: 0.22 | Z126: =(S126+V126)*Y126 -> 0 | AA126: =IF('Dati Gen'!$M$36<>"",$AA$127*'Dati Gen'!M35/'Dati Gen'!$M$36,0) -> 0 | AC126: =IF(R126<>"",VLOOKUP('SAL.30%'!R126,'Dati Gen'!$B$44:$D$51,3,0),"") -> NO | AF126: 0 | AG126: 0 | AH126: 0 | AI126: 0 | AJ126: 0 | AK126: 0 | AL126: 0 | AM126: 0 | AN126: 0
S127: =SUM(S118:T126) -> 0 | U127: =SUM(V118:V126) -> 0 | W127: =SUM(W118:X126) -> 0 | Z127: =SUM(Z118:Z126) -> 0 | AA127: =SpeseTecFinale -> 0 | AF127: =SUM(AF118:AF126) -> 0 | AG127: =SUM(AG118:AG126) -> 0 | AH127: 0 | AI127: 0 | AJ127: 0 | AK127: 0 | AL127: 0 | AM127: 0 | AN127: 0 | AO127: =SUM(AF127:AN127) -> 0
AF128: =IF($AO$127<>0,AF127/$AO$127,0) -> 0 | AG128: =IF($AO$127<>0,AG127/$AO$127,0) -> 0 | AH128: 0 | AI128: 0 | AJ128: 0 | AK128: 0 | AL128: 0 | AM128: 0 | AN128: 0
Q130: Ripartizione Spese Tecniche SAL. Finale1 - ALTRI INTERVENTI | AC130: Applica Sconto in Fattura
Q131: Lavoro | R131: Tecnico | S131: Onorario | U131: C.Cassa | W131: Imponibile | Y131: IVA | AA131: Totale | AF131: =AF117 -> Ingegnere 1 | AG131: =AG117 -> Dott. Igor | AH131: 0 | AI131: 0 | AJ131: 0 | AK131: 0 | AL131: 0 | AM131: 0
Q132: =IF('Dati Gen'!B25<>"",'Dati Gen'!B25,"") -> Incarico 1 | R132: =IF('Dati Gen'!C25<>"",'Dati Gen'!C25,"") -> Ingegnere 1 | S132: =W132/(1+U132) -> 0 | U132: ='Dati Gen'!G25 -> 0.04 | V132: =S132*U132 -> 0 | W132: =AA132/(1+Y132) -> 0 | Y132: 0.22 | Z132: =Y132*(S132+V132) -> 0 | AA132: =IF('Dati Gen'!$M$36<>"",$AA$141*'Dati Gen'!M25/'Dati Gen'!$M$36,0) -> 0 | AC132: =IF(R132<>"",VLOOKUP('SAL.30%'!R132,'Dati Gen'!$B$44:$D$51,3,0),"") -> SI | AF132: =IF($R132=AF$117,$AA132,0) -> 0 | AG132: =IF($R132=AG$117,$AA132,0) -> 0 | AH132: 0 | AI132: 0 | AJ132: 0 | AK132: 0 | AL132: 0 | AM132: 0 | AN132: 0
Q133: =IF('Dati Gen'!B26<>"",'Dati Gen'!B26,"") -> Calcoli e Deposito G.C. | R133: =IF('Dati Gen'!C26<>"",'Dati Gen'!C26,"") -> Ingegnere 1 | S133: =W133/(1+U133) -> 0 | U133: ='Dati Gen'!G26 -> 0.04 | V133: =S133*U133 -> 0 | W133: =AA133/(1+Y133) -> 0 | Y133: 0.22 | Z133: =(S133+V133)*Y133 -> 0 | AA133: =IF('Dati Gen'!$M$36<>"",$AA$141*'Dati Gen'!M26/'Dati Gen'!$M$36,0) -> 0 | AC133: =IF(R133<>"",VLOOKUP('SAL.30%'!R133,'Dati Gen'!$B$44:$D$51,3,0),"") -> SI | AF133: =IF($R133=AF$117,$AA133,0) -> 0 | AG133: 0 | AH133: 0 | AI133: 0 | AJ133: 0 | AK133: 0 | AL133: 0 | AM133: 0 | AN133: 0
Q134: =IF('Dati Gen'!B27<>"",'Dati Gen'!B27,"") -> Congruità | R134: =IF('Dati Gen'!C27<>"",'Dati Gen'!C27,"") -> Ingegnere 1 | S134: 0 | U134: ='Dati Gen'!G27 -> 0.04 | V134: =S134*U134 -> 0 | W134: 0 | Y134: 0.22 | Z134: =(S134+V134)*Y134 -> 0 | AA134: =IF('Dati Gen'!$M$36<>"",$AA$141*'Dati Gen'!M27/'Dati Gen'!$M$36,0) -> 0 | AC134: =IF(R134<>"",VLOOKUP('SAL.30%'!R134,'Dati Gen'!$B$44:$D$51,3,0),"") -> SI | AF134: 0 | AG134: 0 | AH134: 0 | AI134: 0 | AJ134: 0 | AK134: 0 | AL134: 0 | AM134: 0 | AN134: 0
Q135: =IF('Dati Gen'!B28<>"",'Dati Gen'!B28,"") ->  | R135: =IF('Dati Gen'!C28<>"",'Dati Gen'!C28,"") ->  | S135: 0 | U135: ='Dati Gen'!G28 -> 0.04 | V135: =S135*U135 -> 0 | W135: 0 | Y135: 0.22 | Z135: =(S135+V135)*Y135 -> 0 | AA135: =IF('Dati Gen'!$M$36<>"",$AA$141*'Dati Gen'!M28/'Dati Gen'!$M$36,0) -> 0 | AC135: =IF(R135<>"",VLOOKUP('SAL.30%'!R135,'Dati Gen'!$B$44:$D$51,3,0),"") ->  | AF135: 0 | AG135: 0 | AH135: 0 | AI135: 0 | AJ135: 0 | AK135: 0 | AL135: 0 | AM135: 0 | AN135: 0
Q136: =IF('Dati Gen'!B29<>"",'Dati Gen'!B29,"") ->  | R136: =IF('Dati Gen'!C29<>"",'Dati Gen'!C29,"") ->  | S136: 0 | U136: ='Dati Gen'!G29 -> 0.04 | V136: =T136*U136 -> 0 | W136: 0 | Y136: 0.22 | Z136: =(T136+V136)*Y136 -> 0 | AA136: =IF('Dati Gen'!$M$36<>"",$AA$141*'Dati Gen'!M29/'Dati Gen'!$M$36,0) -> 0 | AC136: =IF(R136<>"",VLOOKUP('SAL.30%'!R136,'Dati Gen'!$B$44:$D$51,3,0),"") ->  | AF136: 0 | AG136: 0 | AH136: 0 | AI136: 0 | AJ136: 0 | AK136: 0 | AL136: 0 | AM136: 0 | AN136: 0
Q137: =IF('Dati Gen'!B30<>"",'Dati Gen'!B30,"") ->  | R137: =IF('Dati Gen'!C30<>"",'Dati Gen'!C30,"") ->  | S137: 0 | U137: ='Dati Gen'!G30 -> 0.04 | V137: =T137*U137 -> 0 | W137: 0 | Y137: 0 | Z137: =(T137+V137)*Y137 -> 0 | AA137: =IF('Dati Gen'!$M$36<>"",$AA$141*'Dati Gen'!M30/'Dati Gen'!$M$36,0) -> 0 | AC137: =IF(R137<>"",VLOOKUP('SAL.30%'!R137,'Dati Gen'!$B$44:$D$51,3,0),"") ->  | AF137: 0 | AG137: 0 | AH137: 0 | AI137: 0 | AJ137: 0 | AK137: 0 | AL137: 0 | AM137: 0 | AN137: 0
Q138: =IF('Dati Gen'!B31<>"",'Dati Gen'!B31,"") ->  | R138: =IF('Dati Gen'!C31<>"",'Dati Gen'!C31,"") ->  | S138: 0 | U138: ='Dati Gen'!G31 -> 0.04 | V138: =T138*U138 -> 0 | W138: 0 | Y138: 0 | Z138: =(T138+V138)*Y138 -> 0 | AA138: =IF('Dati Gen'!$M$36<>"",$AA$141*'Dati Gen'!M31/'Dati Gen'!$M$36,0) -> 0 | AC138: =IF(R138<>"",VLOOKUP('SAL.30%'!R138,'Dati Gen'!$B$44:$D$51,3,0),"") ->  | AF138: 0 | AG138: 0 | AH138: 0 | AI138: 0 | AJ138: 0 | AK138: 0 | AL138: 0 | AM138: 0 | AN138: 0
Q139: =IF('Dati Gen'!B32<>"",'Dati Gen'!B32,"") ->  | R139: =IF('Dati Gen'!C32<>"",'Dati Gen'!C32,"") ->  | S139: 0 | U139: ='Dati Gen'!G32 -> 0.04 | V139: =T139*U139 -> 0 | W139: 0 | Y139: 0 | Z139: =(T139+V139)*Y139 -> 0 | AA139: =IF('Dati Gen'!$M$36<>"",$AA$141*'Dati Gen'!M32/'Dati Gen'!$M$36,0) -> 0 | AC139: =IF(R139<>"",VLOOKUP('SAL.30%'!R139,'Dati Gen'!$B$44:$D$51,3,0),"") ->  | AF139: 0 | AG139: 0 | AH139: 0 | AI139: 0 | AJ139: 0 | AK139: 0 | AL139: 0 | AM139: 0 | AN139: 0
Q140: =IF('Dati Gen'!B35<>"",'Dati Gen'!B35,"") -> Visto Conformità | R140: =IF('Dati Gen'!C35<>"",'Dati Gen'!C35,"") -> Dott. Igor | S140: 0 | U140: ='Dati Gen'!G35 -> 0.04 | V140: =S140*U140 -> 0 | W140: 0 | Y140: 0.22 | Z140: =(S140+V140)*Y140 -> 0 | AA140: =IF('Dati Gen'!$M$36<>"",$AA$141*'Dati Gen'!M35/'Dati Gen'!$M$36,0) -> 0 | AC140: =IF(R140<>"",VLOOKUP('SAL.30%'!R140,'Dati Gen'!$B$44:$D$51,3,0),"") -> NO | AF140: 0 | AG140: 0 | AH140: 0 | AI140: 0 | AJ140: 0 | AK140: 0 | AL140: 0 | AM140: 0 | AN140: 0
S141: =SUM(S132:T140) -> 0 | U141: =SUM(V132:V140) -> 0 | W141: =SUM(W132:X140) -> 0 | Z141: =SUM(Z132:Z140) -> 0 | AA141: =K93 -> 0 | AF141: =SUM(AF132:AF140) -> 0 | AG141: =SUM(AG132:AG140) -> 0 | AH141: 0 | AI141: 0 | AJ141: 0 | AK141: 0 | AL141: 0 | AM141: 0 | AN141: 0 | AO141: =SUM(AF141:AN141) -> 0
AF142: =IF($AO$141<>0,AF141/$AO$141,0) -> 0 | AG142: =IF($AO$141<>0,AG141/$AO$141,0) -> 0 | AH142: 0 | AI142: 0 | AJ142: 0 | AK142: 0 | AL142: 0 | AM142: 0 | AN142: 0

Sheet Pratica ENEA
B2: Tipologia Edificio | C2: =IF(TipoEdif=1,'Dati Gen'!Q5,'Dati Gen'!Q6) -> Edificio Unifamiliare | H2: =IF(TipoEdif=2,'Dati Gen'!K5,"") ->  | M2: https://detrazionifiscali.enea.it/creaasseverazione.asp | Y2: =NomeApp -> Pratica.110plus | Z2: ='Dati Gen'!K3 -> Vers.ne | AA2: ='Dati Gen'!L3 -> 2.1
B3: Data Inizio Lavori | C3: ='Dati Gen'!E14 -> 00:00:00 | Y3: ='Dati Gen'!K4 -> ©2021 SIM srl - www.madosoft.it
B4: Comune Ubicazione | C4: ='Dati Gen'!E8 -> 0 | Y4: Riepilogo Importi SAL
B5: Comune Montano | C5: X | D5: SI | F5: NO | G5: Elenco Comuni Montani | Y5: =C2 -> Edificio Unifamiliare | Z5: =H2 -> 
B6: Interessato Infrazione | D6: SI | E6: X | F6: NO | G6: Elenco Comuni Infrazioni | Y6: =CONCATENATE(C8," N.",J8) -> 0 N.0
B7: Intervento comma 4-Ter | D7: SI | E7: X | F7: NO | G7: 160% Zone Terremotate | Y7: =CONCATENATE(L8," ",C4) -> 0 0
B8: Indirizzo | C8: ='Dati Gen'!E9 -> 0 | I8: N.Civico | J8: ='Dati Gen'!N9 -> 0 | K8: CAP | L8: ='Dati Gen'!N8 -> 0
B9: Anno di Costruzione Immobile | C9: ='Dati Gen'!E11 -> 0 | G9: ='Dati Gen'!H11 -> Superficie Totale Disperdente : | L9: ='Dati Gen'!N11 -> 0 | W9: Totali Progetto
B10: Edificio in area Metanizzata | C10: X | D10: SI | F10: NO | W10: Spese previste in progetto | AA10: =AA20+AA27+AA34 -> 1100
B11: Autorizzazione Edilizia | C11: ='Dati Gen'!E12 -> Licenza Edilizia / Titolo Edilizio | I11: ='Dati Gen'!K12 -> N. | J11: ='Dati Gen'!L12 -> 0 | K11: ='Dati Gen'!M12 -> Data | L11: ='Dati Gen'!N12 -> 00:00:00 | W11: Spese Ammissibili | AA11: =AA21+AA28 -> 1100
B12: ='Dati Gen'!B13 -> Relazione ex Legge 10/91 Depositata al Comune in Data | H12: =IF('Dati Gen'!I13<>"",'Dati Gen'!I13,"") ->  | J12: Prot. N. | L12: =IF('Dati Gen'!N13<>"",'Dati Gen'!N13,"") ->  | W12: Realizzati | Y12: SAL 30% | Z12: SAL 60% | AA12: SAL FINALE
W13: Costo Lavori Realizzati | Y13: =Y23+Y30+Y37 -> 1100 | Z13: 0 | AA13: 0
B14: INTERVENTI TRAINANTI | W14: di cui ammessi | Y14: 1100 | Z14: 0 | AA14: 0
B16: intervento di isolamento termico delle superfici opache verticali, orizzontali e inclinate : PV) PO) POND) PS)
B17: Descrizione | G17: Superficie mq | H17: Trasm. Ante | I17: Trasm. Post | J17: Trasm.P. YIE | K17: Confine | L17: Coiben-tazione | M17: Realizzati mq
M18: SAL.30% | N18: SAL.60% | O18: SAL.FIN.
B19: Pareti Verticali in Blocchi di Tufo da 50cm | G19: 22.58 | H19: 0.8914 | I19: 0.2236 | J19: 0.01 | K19: Esterno | L19: Esterna | M19: 22.58 | W19: Totali Interventi Trainanti
B20: Pareti Verticali in mattoni pieni da 30cm | G20: 123.7 | H20: 1.839 | I20: 0.252 | J20: 0.0173 | K20: Esterno | L20: Esterna | M20: 123.7 | W20: Spese previste in progetto | AA20: =J33+J64 -> 1100
B21: Pareti Verticali in blocchi di cemento da 30cm | G21: 22.88 | H21: 1.3285 | I21: 0.291 | J21: 0.0197 | K21: Esterno | L21: Esterna | M21: 22.88 | W21: Spese Ammissibili | AA21: =J34+J65 -> 1100
B22: Coperture Legno | G22: 76.14 | H22: 2.1352 | I22: 0.2191 | J22: 0.0838 | K22: Esterno | L22: Esterna | M22: 76.14 | W22: Realizzati | Y22: SAL 30% | Z22: SAL 60% | AA22: SAL FINALE
W23: Costo Lavori Realizzati | Y23: =F36+F67 -> 1100 | Z23: =H36+H67 -> 0 | AA23: =J36+J67 -> 0
W24: di cui ammessi | Y24: =F37+F68 -> 1100 | Z24: =H37+H68 -> 0 | AA24: =J37+J68 -> 0
W26: Totali Interventi Trainati Parti Comuni
W27: Spese previste in progetto | AA27: =J105+J121+J149+J169+J184+J198+J216+J227+J238+J249 -> 0
W28: Spese Ammissibili | AA28: =J106+J122+J150+J170+J185+J199+J217+J228+J239+J250 -> 0
W29: Realizzati | Y29: SAL 30% | Z29: SAL 60% | AA29: SAL FINALE
W30: Costo Lavori Realizzati | Y30: =F108+F124+F152+F172+F187+F201+F219+F230+F241+F252 -> 0 | Z30: =H108+H124+H152+H172+H187+H201+H219+H230+H241+H252 -> 0 | AA30: =J108+J124+J152+J172+J187+J201+J219+J230+J241+J252 -> 0
B31: Superficie Totale disperdente oggetto di intervento [mq] | J31: =SUM(G19:G29) -> 245.3 | W31: di cui ammessi | Y31: =F109+F125+F153+F173+F188+F202+F220+F231+F242+F253 -> 0 | Z31: =H109+H125+H153+H173+H188+H202+H220+H231+H242+H253 -> 0 | AA31: =J109+J125+J153+J173+J188+J202+J220+J231+J242+J253 -> 0
B32: Spesa Massima Ammissibile | J32: ='Computo-Massimali'!R13 -> 50000
B33: Costo Complessivo Previsto in progetto | J33: ='Computo-Massimali'!L13 -> 1100 | W33: Totali Interventi Trainati U.Imm.
B34: Spesa Ammessa | J34: =IF(J33<J32,J33,J32) -> 1100 | W34: Spese previste in progetto | AA34: =J287+J302+J339+J353+J366+J379+J392+J405+J417 -> 0
F35: SAL 30% | H35: SAL 60% | J35: SAL FINALE | W35: Spese Ammissibili | AA35: =J288+J303+J340+J354+J367+J380+J393+J406+J418 -> 0
B36: Costo Lavori Realizzati | F36: ='SAL.30%'!L13 -> 1100 | H36: ='SAL.60%'!L13 -> 0 | J36: =SAL.Finale!L13 -> 0 | W36: Realizzati | Y36: SAL 30% | Z36: SAL 60% | AA36: SAL FINALE
B37: di cui ammessi | F37: =IF(F36<J34,F36,J34) -> 1100 | H37: =IF(H36<J34,H36,J34) -> 0 | J37: =IF(J36<J34,J36,J34) -> 0 | W37: Costo Lavori Realizzati | Y37: =F290+F305+F342+F356+F369+F382+F395+F408+F420+F431 -> 0 | Z37: =H290+H305+H342+H356+H369+H382+H395+H408+H420+H431 -> 0 | AA37: =J290+J305+J342+J356+J369+J382+J395+J408+J420+J431 -> 0
B38: Risparmio di energia primaria non rinnovabile di progetto [kWh/anno] | W38: di cui ammessi | Y38: =F291+F306+F343+F357+F370+F383+F396+F409+F421+F432 -> 0 | Z38: =H291+H306+H343+H357+H370+H383+H396+H409+H421+H432 -> 0 | AA38: =J291+J306+J343+J357+J370+J383+J396+J409+J421+J432 -> 0
B41: Intervento di sostituzione degli impianti di climatizzazione invernale esistenti
B42: Descrizione Nuovo Impianto | G42: Tipo Sostituito | H42: P.Nom Sostituito | I42: P.Nom kW | J42: Rendim Util Nomin. 100% | K42: Destinata | L42: Efficienza Riscaldam. hs | M42: Efficienza ACS hw | N42: Tipo Aliment. | O42: Classe Dispositivo Termoreg. Evoluto | P42: Tipo PDC | Q42: Pot. El. Assorb kW | R42: COP | S42: Superfic. Risc. Da PDC | V42: Descrizione Impianto
B43: - | P43: - | V43: -
G44: - | K44: - | N44: - | O44: - | P44: - | V44: CC) Caldaie a condensazione
G45: - | K45: - | N45: - | O45: - | P45: - | V45: PC) Pompe di calore (PDC) a compressione di vapore elettriche anche sonde geotermiche
G46: - | K46: - | N46: - | O46: - | P46: - | V46: PCA) Pompe di calore a gas ad assorbimento o a compressione di vapore azionate da motore primo
G47: - | K47: - | N47: - | O47: - | P47: - | V47: SI) Sistemi Ibridi
G48: - | K48: - | N48: - | O48: - | P48: - | V48: CO) Sistemi microcogenerazione
G49: - | K49: - | N49: - | O49: - | P49: - | V49: SA) Installazione di scaldacqua a pompa di calore in sostituzione di un sistema di produzione di acqua calda quando avviene con lo stesso generatore di calore destinato alla climatizzazione invernale ai sensi delle lettere b) e c) del comma 1 dell’articolo 119 del Decreto Rilancio
G50: - | K50: - | N50: - | O50: - | P50: - | V50: ST) Collettori solari
V51: TR) Teleriscaldamento (esclusivamente per i comuni montani non interessati dalle procedure di infrazione comunitaria n. 2014/2147 del 10 luglio 2014 o n. 2015/2043 del 28 maggio 2015 per la non ottemperanza dell’Italia agli obblighi previsti dalla direttiva 2008/50/CE, l’allaccio a sistemi di teleriscaldamento efficiente ai sensi dell’articolo 2, comma 2, lettera tt), del decreto legislativo 4 luglio 2014, n. 102)
B52: SI) Sistemi Ibridi | G52: Tipo Sostituito | H52: P.Nom Sostituito | I52: Caldaia a Condensazione | M52: Pompa di Calore
I53: P.Nom kW | J53: Rendim Nomin. 100% | K53: Efficienza Riscaldam. hs | L53: Tipo Aliment. | M53: Tipo PDC | N53: Tipo Roof Top | O53: P.Nom kW | P53: Pot. El. Assorb kW | Q53: COP | R53: Inverter | S53: Sonde Geotermiche | V53: Tipo Sostituito
F54: 1 | V54: -
F55: 2 | V55: Caldaia Standard
F56: 3 | G56: - | L56: - | M56: - | N56: - | R56: - | S56: - | V56: Caldaia Bassa Temperatura
F57: 4 | G57: - | L57: - | M57: - | N57: - | R57: - | S57: - | V57: Caldaia a Condensazione Gas
V58: Caldaia Condens.Gasolio
B59: Destinati a : Climatizzazione Invernale | G59: x | V59: Pompa di Calore anche con sonda geotermica
B60: Climatizzazione estiva | V60: Generatori di Aria Calda
B61: prod. di acqua calda sanitaria | G61: x | V61: Teleriscaldamento (solo in caso di distacco obbligato)
V62: Impianto a biomassa
B63: Spesa Massima Ammissibile | J63: ='Computo-Massimali'!R14 -> 30000 | V63: Altro
B64: Costo Complessivo Previsto in progetto | J64: ='Computo-Massimali'!L14 -> 0
B65: Spesa Ammessa | J65: =IF(J64<J63,J64,J63) -> 0
F66: SAL 30% | H66: SAL 60% | J66: SAL FINALE
B67: Costo Lavori Realizzati | F67: ='SAL.30%'!L14 -> 0 | H67: ='SAL.60%'!L14 -> 0 | J67: =SAL.Finale!L14 -> 0
B68: di cui ammessi | F68: =IF(F67<J65,F67,J65) -> 0 | H68: =IF(H67<J65,H67,J65) -> 0 | J68: =IF(J67<J65,J67,J65) -> 0
B69: Risparmio di energia primaria non rinnovabile di progetto [kWh/anno]
B75: INTERVENTI TRAINANTI Parti Comuni Condominiali
B77: intervento di isolamento termico delle superfici opache verticali, orizzontali e inclinate dell'involucro PV) PO) PS)
B78: Descrizione | G78: Superficie mq | H78: Trasm. Ante | I78: Trasm. Post | J78: Trasm.P. YIE | K78: Confine | L78: Coiben-tazione | M78: Realizzati mq
M79: SAL.30% | N79: SAL.60% | O79: SAL.FIN.
K86: - | L86: -
K87: - | L87: -
K88: - | L88: -
B89: Superficie Totale disperdente oggetto di intervento [mq] | J89: =SUM(G80:G88) -> 0
B90: Risparmio di energia primaria non rinnovabile di progetto [kWh/anno]
B92: IN) Sostituzione degli infissi
B93: Descrizione | G93: Telaio Prima | H93: Vetro Prima | J93: Trasm. Ante | K93: Superfice mq | L93: Telaio Dopo | M93: Vetro Dopo | O93: Trasm. Post | P93: Chius. Oscura
G97: - | H97: - | L97: - | M97: -
G98: - | H98: - | L98: - | M98: -
G99: - | H99: - | L99: - | M99: -
G100: - | H100: - | L100: - | M100: -
B101: Risparmio di energia primaria non rinnovabile di progetto [kWh/anno]
B103: Isolamento termico sup. verticali, orizzontali, inclinate e Sostituzione Infissi
B104: Spesa Massima Ammissibile | J104: ='Computo-Massimali'!R24 -> 54545
B105: Costo Complessivo Previsto in progetto | J105: ='Computo-Massimali'!L24 -> 0
B106: Spesa Ammessa | J106: =IF(J105<J104,J105,J104) -> 0
F107: SAL 30% | H107: SAL 60% | J107: SAL FINALE
B108: Costo Lavori Realizzati | F108: ='SAL.30%'!L24 -> 0 | H108: ='SAL.60%'!L24 -> 0 | J108: =SAL.Finale!L24 -> 0
B109: di cui ammessi | F109: =IF(F108<J106,F108,J106) -> 0 | H109: =IF(H108<J106,H108,J106) -> 0 | J109: =IF(J108<J106,J108,J106) -> 0
B112: SS) Schermature solari Anche chiusure oscuranti
B113: Descrizione | G113: Tipo Schermatura | H113: Installazione | J113: Superf. Schermatura | K113: Superfice finestra protetta | L113: Resistenza term. suppl m2K/W | M113: Orientamento | N113: Tipo Calcolo | P113: gtot | Q113: Materiale schermatura | S113: Meccan. Regolaz.
G114: - | H114: - | M114: - | N114: - | Q114: - | S114: -
G115: - | H115: - | M115: - | N115: - | Q115: - | S115: -
G116: - | H116: - | M116: - | N116: - | Q116: - | S116: -
G117: - | H117: - | M117: - | N117: - | Q117: - | S117: -
G118: - | H118: - | M118: - | N118: - | Q118: - | S118: -
B120: Spesa Massima Ammissibile | J120: ='Computo-Massimali'!R25 -> 54545
B121: Costo Complessivo Previsto in progetto | J121: ='Computo-Massimali'!L25 -> 0
B122: Spesa Ammessa | J122: =IF(J121<J120,J121,J120) -> 0
F123: SAL 30% | H123: SAL 60% | J123: SAL FINALE
B124: Costo Lavori Realizzati | F124: ='SAL.30%'!L25 -> 0 | H124: ='SAL.60%'!L25 -> 0 | J124: =SAL.Finale!L25 -> 0
B125: di cui ammessi | F125: =IF(F124<J122,F124,J122) -> 0 | H125: =IF(H124<J122,H124,J122) -> 0 | J125: =IF(J124<J122,J124,J122) -> 0
B126: Risparmio di energia primaria non rinnovabile di progetto [kWh/anno]
B128: Intervento, sulle parti comuni, di sostituzione degli impianti di climatizzazione invernale esistenti con impianti dotati di
B129: CC) Caldaie a condensazione | G129: Tipo Sostituito | H129: P.Nom Sostituito | I129: P.Nom kW | J129: Rendim Util Nomin. 100% | K129: Destinata | L129: Efficienza Riscaldam. hs | M129: Efficienza ACS hw | N129: Tipo Aliment. | O129: Classe Dispositivo Termoreg. Evoluto
G130: - | K130: - | N130: - | O130: -
G131: - | K131: - | N131: - | O131: - | V131: Tipo Generatore
V132: -
B133: PC) Pompe di calore (PDC) a compressione di vapore elettriche anche sonde geotermiche | G133: Tipo Sostituito | H133: P.Nom Sostituito | I133: Tipo PDC | J133: Tipo Roof Top | K133: P.Nom kW | L133: Pot. El. Assorb kW | M133: Inverter | N133: COP | O133: Reversibile | P133: Sonde Geotermiche | Q133: Sup. Riscald. dalla PDC | V133: Cucine a legna
G134: - | I134: - | J134: - | M134: - | O134: - | P134: -
G135: - | I135: - | J135: - | M135: - | O135: - | P135: -
B137: PCA) Pompe di calore a gas ad assorbimento o a compressione di vapore azionate da motore primo | G137: Tipo Sostituito | H137: P.Nom Sostituito | I137: Tipo PDC | J137: Tipo Roof Top | K137: P.Nom kW | L137: Inverter | M137: GUEh | N137: Reversibile | O137: GUEc | P137: Sup. Riscald. Dalla PDC
G138: - | I138: - | J138: - | L138: - | N138: -
G139: - | I139: - | J139: - | L139: - | N139: -
B141: SI) Sistemi Ibridi | G141: Tipo Sostituito | H141: P.Nom Sostituito | I141: Caldaia a Condensazione | M141: Pompa di Calore
I142: P.Nom kW | J142: Rendim Nomin. 100% | K142: Efficienza Riscaldam. hs | L142: Tipo Aliment. | M142: Tipo PDC | N142: Tipo Roof Top | O142: P.Nom kW | P142: Pot. El. Assorb kW | Q142: COP | R142: Inverter | S142: Sonde Geotermiche | V142: Tipo Sostituito
F143: 1 | V143: -
F144: 2 | V144: Caldaia Standard
F145: 3 | G145: - | L145: - | M145: - | N145: - | R145: - | S145: - | V145: Caldaia Bassa Temperatura
F146: 4 | G146: - | L146: - | M146: - | N146: - | R146: - | S146: - | V146: Caldaia a Condensazione Gas
B148: Spesa Massima Ammissibile per Impianti Climatizzazione CC) PC) PCA) SI) | J148: ='Computo-Massimali'!R26 -> 27272
B149: Spese Previste in progetto per Impianti Climatizzazione CC) PC) PCA) SI) | J149: ='Computo-Massimali'!L26 -> 0
B150: Spesa Ammessa | J150: =IF(J149<J148,J149,J148) -> 0
F151: SAL 30% | H151: SAL 60% | J151: SAL FINALE
B152: Costo Lavori Realizzati | F152: ='SAL.30%'!L26 -> 0 | H152: ='SAL.60%'!L26 -> 0 | J152: =SAL.Finale!L26 -> 0
B153: di cui ammessi | F153: =IF(F152<J150,F152,J150) -> 0 | H153: =IF(H152<J150,H152,J150) -> 0 | J153: =IF(J152<J150,J152,J150) -> 0
B154: Risparmio di energia primaria non rinnovabile di progetto [kWh/anno]
B156: GA) Generatori di Aria Calda a Condensazione | G156: Tipo Sostituito | H156: Pu. scald. sostituito kW | I156: Pu. scald. PDC kW | J156: COP nuovo scald. | K156: Capacità accumulo litri
G157: -
G158: -
B160: IB) Impianti a Biomassa | G160: Tipo Sostituito | H160: Pu. scald. sostituito kW | I160: Pu. scald. PDC kW | J160: COP nuovo scald. | K160: Capacità accumulo litri
G161: -
G162: -
B164: SA) Scaldacqua a pompa di calore | G164: Tipo Sostituito | H164: Pu. scald. sostituito kW | I164: Pu. scald. PDC kW | J164: COP nuovo scald. | K164: Capacità accumulo litri
G165: -
G166: -
B168: Spesa Massima Ammissibile per Impianti GA) IB) SA) | J168: ='Computo-Massimali'!R30 -> 27272
B169: Spese Previste in progetto per Impianti GA) IB) SA) | J169: ='Computo-Massimali'!L30 -> 0
B170: Spesa Ammessa | J170: =IF(J169<J168,J169,J168) -> 0
F171: SAL 30% | H171: SAL 60% | J171: SAL FINALE
B172: Costo Lavori Realizzati | F172: ='SAL.30%'!L30 -> 0 | H172: ='SAL.60%'!L30 -> 0 | J172: =SAL.Finale!L30 -> 0
B173: di cui ammessi | F173: =IF(F172<J170,F172,J170) -> 0 | H173: =IF(H172<J170,H172,J170) -> 0 | J173: =IF(J172<J170,J172,J170) -> 0
B174: Risparmio di energia primaria non rinnovabile di progetto [kWh/anno]
B177: CO) Sistemi microcogenerazione | G177: Tipo Sostituito | H177: P.Nom Sostituito | I177: Pot. Elettr. kW | J177: Pot. Immes. kW | K177: Pot. Term. Rec. kW | L177: PES % | M177: Tipo Aliment. | N177: Tipo Intervent | O177: a Celle Combust. | P177: Riscaldatore Supplement. | Q177: P.Risc. Supp kW | R177: Efficienz hs % | S177: Classe Energet
G178: - | M178: - | N178: - | O178: - | P178: - | S178: -
G179: - | M179: - | N179: - | O179: - | P179: - | S179: -
G180: - | M180: - | N180: - | O180: - | P180: - | S180: -
G181: - | M181: - | N181: - | O181: - | P181: - | S181: -
B183: Spesa Massima Ammissibile per CO) Sistemi Microgenerazione | J183: ='Computo-Massimali'!R31 -> 90909
B184: Spese Previste in progetto per CO) Microgenerazione | J184: ='Computo-Massimali'!L31 -> 0
B185: Spesa Ammessa | J185: =IF(J184<J183,J184,J183) -> 0
F186: SAL 30% | H186: SAL 60% | J186: SAL FINALE
B187: Costo Lavori Realizzati | F187: ='SAL.30%'!L31 -> 0 | H187: ='SAL.60%'!L31 -> 0 | J187: =SAL.Finale!L31 -> 0
B188: di cui ammessi | F188: =IF(F187<J185,F187,J185) -> 0 | H188: =IF(H187<J185,H187,J185) -> 0 | J188: =IF(J187<J185,J187,J185) -> 0
B189: Risparmio di energia primaria non rinnovabile di progetto [kWh/anno]
B191: ST) Collettori Solari | G191: Sup lorda Ag singolo modulo | H191: N. di moduli | I191: S.tot | J191: Tipo di colllettori | K191: Tipo di installazione | L191: Inclinaz. % | M191: Orientamento | N191: Factory Made | O191: Qcol / Qsol kWht oppure QL MJ | P191: Accumulo litri | Q191: Dest. Calore | R191: Solar Keymrk | S191: Tipo impianto sost.
I192: =G192*H192 -> 0 | J192: - | K192: -
I193: =G193*H193 -> 0 | J193: - | K193: - | M193: - | N193: - | Q193: - | R193: - | S193: -
I194: =G194*H194 -> 0 | J194: - | K194: - | M194: - | N194: - | Q194: - | R194: - | S194: -
I195: =G195*H195 -> 0 | J195: - | K195: - | M195: - | N195: - | Q195: - | R195: - | S195: -
B197: Spesa Massima Ammissibile per ST) Collettori Solari | J197: ='Computo-Massimali'!R32 -> 54545
B198: Spese Previste in progetto per ST) Collettori Solari | J198: ='Computo-Massimali'!L32 -> 0
B199: Spesa Ammessa | J199: =IF(J198<J197,J198,J197) -> 0
F200: SAL 30% | H200: SAL 60% | J200: SAL FINALE
B201: Costo Lavori Realizzati | F201: ='SAL.30%'!L32 -> 0 | H201: ='SAL.60%'!L32 -> 0 | J201: =SAL.Finale!L32 -> 0
B202: di cui ammessi | F202: =IF(F201<J199,F201,J199) -> 0 | H202: =IF(H201<J199,H201,J199) -> 0 | J202: =IF(J201<J199,J201,J199) -> 0
B203: Risparmio di energia primaria non rinnovabile di progetto [kWh/anno]
B211: FV) Fotovoltaico | G211: Codice POD | J211: Potenza Picco kW
B215: Spesa Massima Ammissibile per FV) Fotovoltaico | J215: ='Computo-Massimali'!R33 -> 9600
B216: Spese Previste in progetto per FV) Fotovoltaico | J216: ='Computo-Massimali'!L33 -> 0
B217: Spesa Ammessa | J217: =IF(J216<J215,J216,J215) -> 0
F218: SAL 30% | H218: SAL 60% | J218: SAL FINALE
B219: Costo Lavori Realizzati | F219: ='SAL.30%'!L33 -> 0 | H219: ='SAL.60%'!L33 -> 0 | J219: =SAL.Finale!L33 -> 0
B220: di cui ammessi | F220: =IF(F219<J217,F219,J217) -> 0 | H220: =IF(H219<J217,H219,J217) -> 0 | J220: =IF(J219<J217,J219,J217) -> 0
B222: AC) Sistema di Accumulo | J222: Capacità kWh
B226: Spesa Massima Ammissibile perAC) Sistema di Accumulo | J226: ='Computo-Massimali'!R34 -> 10000
B227: Spese Previste in progetto per AC) Sistema di Accumulo | J227: ='Computo-Massimali'!L34 -> 0
B228: Spesa Ammessa | J228: =IF(J227<J226,J227,J226) -> 0
F229: SAL 30% | H229: SAL 60% | J229: SAL FINALE
B230: Costo Lavori Realizzati | F230: ='SAL.30%'!L34 -> 0 | H230: ='SAL.60%'!L34 -> 0 | J230: =SAL.Finale!L34 -> 0
B231: di cui ammessi | F231: =IF(F230<J228,F230,J228) -> 0 | H231: =IF(H230<J228,H230,J228) -> 0 | J231: =IF(J230<J228,J230,J228) -> 0
B233: CR) Infrastrutture per la ricarica dei veicoli elettrici
J234: 0
B237: Spesa Massima Ammissibile per CR) Colonnine di Ricarica | J237: ='Computo-Massimali'!R35 -> 1500
B238: Spese Previste in progetto per CR) Colonnine di Ricarica | J238: ='Computo-Massimali'!L35 -> 0
B239: Spesa Ammessa | J239: =IF(J238<J237,J238,J237) -> 0
F240: SAL 30% | H240: SAL 60% | J240: SAL FINALE
B241: Costo Lavori Realizzati | F241: ='SAL.30%'!L35 -> 0 | H241: ='SAL.60%'!L35 -> 0 | J241: =SAL.Finale!L35 -> 0
B242: di cui ammessi | F242: =IF(F241<J239,F241,J239) -> 0 | H242: =IF(H241<J239,H241,J239) -> 0 | J242: =IF(J241<J239,J241,J239) -> 0
B244: EBA) Barriere Architettoniche
J245: 0
B248: Spesa Massima Ammissibile per EBA) Barriere Architettoniche | J248: ='Computo-Massimali'!R36 -> 96000
B249: Spese Previste in progetto per EBA) Barriere Architettoniche | J249: ='Computo-Massimali'!L36 -> 0
B250: Spesa Ammessa | J250: =IF(J249<J248,J249,J248) -> 0
F251: SAL 30% | H251: SAL 60% | J251: SAL FINALE
B252: Costo Lavori Realizzati | F252: ='SAL.30%'!L36 -> 0 | H252: ='SAL.60%'!L36 -> 0 | J252: =SAL.Finale!L36 -> 0
B253: di cui ammessi | F253: =IF(F252<J250,F252,J250) -> 0 | H253: =IF(H252<J250,H252,J250) -> 0 | J253: =IF(J252<J250,J252,J250) -> 0
B257: INTERVENTI TRAINATI Unità Immobiliare
B259: intervento di isolamento termico delle superfici opache verticali e orizzontali: PV)Pareti Verticali; PO)Coperture; PS)Pavimenti
B260: Descrizione | G260: Superficie mq | H260: Trasm. Ante | I260: Trasm. Post | J260: Trasm.P. YIE | K260: Confine | L260: Coiben-tazione | M260: Realizzati mq
M261: SAL.30% | N261: SAL.60% | O261: SAL.FIN.
K268: - | L268: -
... 124 more rows

Sheet Fatture
B2: Fornitore | D2: SIM srl | I2: Cliente | K2: Tizio Caio | O2: Fattura Fornitore
B3: Indirizzo | I3: Indirizzo
B4: Città | I4: Città
B5: CF./P.Iva | I5: C.F. :
B6: Tel./Mail | D6: /
B7: FATTURA N. | F7: Oggetto Lavori
B8: DATA | D8: 2022-01-12 | F8: SAL N.1 a tutto il 24/04/2021
B9: Cessione del 100% (sconto in fattura praticato ai sensi dell'art.121 DL.34/2020 e smi | T9: ='Dati Gen'!D44 -> SI | U9: ='Dati Gen'!D45 -> NO | V9: ='Dati Gen'!D46 -> NO | W9: ='Dati Gen'!D47 -> NO | X9: ='Dati Gen'!D48 -> NO | Y9: ='Dati Gen'!D49 -> NO | Z9: ='Dati Gen'!D50 -> NO | AA9: SI | AB9: NO
C10: DESCRIZIONE | G10: QUANTITA' | I10: PREZZO | K10: SC./MG. | L10: IMPORTO | M10: %IVA | O10: Importo Iva | P10: Tot.Rigo | Q10: Spesa Ammessa | R10: Sconto | S10: Spese Tecniche | T10: =IF('Dati Gen'!B44<>"",'Dati Gen'!B44,"") -> Ingegnere 1 | U10: =IF('Dati Gen'!B45<>"",'Dati Gen'!B45,"") -> Dott. Igor | V10: =IF('Dati Gen'!B46<>"",'Dati Gen'!B46,"") ->  | W10: =IF('Dati Gen'!B47<>"",'Dati Gen'!B47,"") ->  | X10: =IF('Dati Gen'!B48<>"",'Dati Gen'!B48,"") ->  | Y10: =IF('Dati Gen'!B49<>"",'Dati Gen'!B49,"") ->  | Z10: =IF('Dati Gen'!B50<>"",'Dati Gen'!B50,"") ->  | AA10: =IF('Dati Gen'!B51<>"",'Dati Gen'!B51,"") -> 
B11: =IF(C11<>"",1,"") -> 1 | C11: INTERVENTI TRAINANTI | L11: =IF(I11<>"",G11*I11,"") ->  | O11: =IF(L11<>"",L11*M11,0) -> 0 | P11: =IF(L11<>"",O11+L11,0) -> 0 | Q11: 0 | R11: =IF(P11<Q11,P11,Q11) -> 0 | S11: 0 | T11: =$S11*'SAL.30%'!AF$128 -> 0 | U11: =$S11*'SAL.30%'!AG$128 -> 0 | V11: =$S11*'SAL.30%'!AH$128 -> 0 | W11: =$S11*'SAL.30%'!AI$128 -> 0 | X11: =$S11*'SAL.30%'!AJ$128 -> 0 | Y11: =$S11*'SAL.30%'!AK$128 -> 0 | Z11: =$S11*'SAL.30%'!AL$128 -> 0 | AA11: =$S11*'SAL.30%'!AM$128 -> 0 | AB11: =$S11*'SAL.30%'!AN$128 -> 0
B12: =IF(C12<>"",B11+1,"") -> 2 | C12: Versione Demo | G12: 1 | I12: 705.5474854 | L12: =IF(I12<>"",G12*I12,"") -> 705.5474854 | M12: 0.1000000015 | O12: =IF(L12<>"",L12*M12,0) -> 70.55474959 | P12: =IF(L12<>"",O12+L12,0) -> 776.1022349 | Q12: 1100 | R12: =IF(P12<Q12,P12,Q12) -> 776.1022349 | S12: 0 | T12: =$S12*'SAL.30%'!AF$128 -> 0 | U12: =$S12*'SAL.30%'!AG$128 -> 0 | V12: =$S12*'SAL.30%'!AH$128 -> 0 | W12: =$S12*'SAL.30%'!AI$128 -> 0 | X12: =$S12*'SAL.30%'!AJ$128 -> 0 | Y12: =$S12*'SAL.30%'!AK$128 -> 0 | Z12: =$S12*'SAL.30%'!AL$128 -> 0 | AA12: =$S12*'SAL.30%'!AM$128 -> 0 | AB12: =$S12*'SAL.30%'!AN$128 -> 0
O13: 0 | P13: =IF(L13<>"",O13+L13,0) -> 0 | Q13: 0 | R13: 0 | S13: 0 | T13: =$S13*'SAL.30%'!AF$128 -> 0 | U13: =$S13*'SAL.30%'!AG$128 -> 0 | V13: =$S13*'SAL.30%'!AH$128 -> 0 | W13: =$S13*'SAL.30%'!AI$128 -> 0 | X13: =$S13*'SAL.30%'!AJ$128 -> 0 | Y13: =$S13*'SAL.30%'!AK$128 -> 0 | Z13: =$S13*'SAL.30%'!AL$128 -> 0 | AA13: =$S13*'SAL.30%'!AM$128 -> 0 | AB13: =$S13*'SAL.30%'!AN$128 -> 0
O14: 0 | P14: 0 | Q14: 0 | R14: 0 | S14: 0 | T14: =$S14*'SAL.30%'!AF$128 -> 0 | U14: =$S14*'SAL.30%'!AG$128 -> 0 | V14: =$S14*'SAL.30%'!AH$128 -> 0 | W14: =$S14*'SAL.30%'!AI$128 -> 0 | X14: =$S14*'SAL.30%'!AJ$128 -> 0 | Y14: =$S14*'SAL.30%'!AK$128 -> 0 | Z14: =$S14*'SAL.30%'!AL$128 -> 0 | AA14: =$S14*'SAL.30%'!AM$128 -> 0 | AB14: =$S14*'SAL.30%'!AN$128 -> 0
O15: 0 | P15: 0 | Q15: 0 | R15: 0 | S15: 0 | T15: =$S15*'SAL.30%'!AF$128 -> 0 | U15: =$S15*'SAL.30%'!AG$128 -> 0 | V15: =$S15*'SAL.30%'!AH$128 -> 0 | W15: =$S15*'SAL.30%'!AI$128 -> 0 | X15: =$S15*'SAL.30%'!AJ$128 -> 0 | Y15: =$S15*'SAL.30%'!AK$128 -> 0 | Z15: =$S15*'SAL.30%'!AL$128 -> 0 | AA15: =$S15*'SAL.30%'!AM$128 -> 0 | AB15: =$S15*'SAL.30%'!AN$128 -> 0
O16: 0 | P16: 0 | Q16: 0 | R16: 0 | S16: 0 | T16: =$S16*'SAL.30%'!AF$128 -> 0 | U16: =$S16*'SAL.30%'!AG$128 -> 0 | V16: =$S16*'SAL.30%'!AH$128 -> 0 | W16: =$S16*'SAL.30%'!AI$128 -> 0 | X16: =$S16*'SAL.30%'!AJ$128 -> 0 | Y16: =$S16*'SAL.30%'!AK$128 -> 0 | Z16: =$S16*'SAL.30%'!AL$128 -> 0 | AA16: =$S16*'SAL.30%'!AM$128 -> 0 | AB16: =$S16*'SAL.30%'!AN$128 -> 0
O17: 0 | P17: 0 | Q17: 0 | R17: 0 | S17: 0 | T17: =$S17*'SAL.30%'!AF$128 -> 0 | U17: =$S17*'SAL.30%'!AG$128 -> 0 | V17: =$S17*'SAL.30%'!AH$128 -> 0 | W17: =$S17*'SAL.30%'!AI$128 -> 0 | X17: =$S17*'SAL.30%'!AJ$128 -> 0 | Y17: =$S17*'SAL.30%'!AK$128 -> 0 | Z17: =$S17*'SAL.30%'!AL$128 -> 0 | AA17: =$S17*'SAL.30%'!AM$128 -> 0 | AB17: =$S17*'SAL.30%'!AN$128 -> 0
O18: 0 | P18: 0 | Q18: 0 | R18: 0 | S18: 0 | T18: =$S18*'SAL.30%'!AF$128 -> 0 | U18: =$S18*'SAL.30%'!AG$128 -> 0 | V18: =$S18*'SAL.30%'!AH$128 -> 0 | W18: =$S18*'SAL.30%'!AI$128 -> 0 | X18: =$S18*'SAL.30%'!AJ$128 -> 0 | Y18: =$S18*'SAL.30%'!AK$128 -> 0 | Z18: =$S18*'SAL.30%'!AL$128 -> 0 | AA18: =$S18*'SAL.30%'!AM$128 -> 0 | AB18: =$S18*'SAL.30%'!AN$128 -> 0
O19: 0 | P19: 0 | Q19: 0 | R19: 0 | S19: 0 | T19: =$S19*'SAL.30%'!AF$128 -> 0 | U19: =$S19*'SAL.30%'!AG$128 -> 0 | V19: =$S19*'SAL.30%'!AH$128 -> 0 | W19: =$S19*'SAL.30%'!AI$128 -> 0 | X19: =$S19*'SAL.30%'!AJ$128 -> 0 | Y19: =$S19*'SAL.30%'!AK$128 -> 0 | Z19: =$S19*'SAL.30%'!AL$128 -> 0 | AA19: =$S19*'SAL.30%'!AM$128 -> 0 | AB19: =$S19*'SAL.30%'!AN$128 -> 0
O20: 0 | P20: 0 | Q20: 0 | R20: 0 | S20: 0 | T20: =$S20*'SAL.30%'!AF$128 -> 0 | U20: =$S20*'SAL.30%'!AG$128 -> 0 | V20: =$S20*'SAL.30%'!AH$128 -> 0 | W20: =$S20*'SAL.30%'!AI$128 -> 0 | X20: =$S20*'SAL.30%'!AJ$128 -> 0 | Y20: =$S20*'SAL.30%'!AK$128 -> 0 | Z20: =$S20*'SAL.30%'!AL$128 -> 0 | AA20: =$S20*'SAL.30%'!AM$128 -> 0 | AB20: =$S20*'SAL.30%'!AN$128 -> 0
O21: 0 | P21: 0 | Q21: 0 | R21: 0 | S21: 0 | T21: =$S21*'SAL.30%'!AF$128 -> 0 | U21: =$S21*'SAL.30%'!AG$128 -> 0 | V21: =$S21*'SAL.30%'!AH$128 -> 0 | W21: =$S21*'SAL.30%'!AI$128 -> 0 | X21: =$S21*'SAL.30%'!AJ$128 -> 0 | Y21: =$S21*'SAL.30%'!AK$128 -> 0 | Z21: =$S21*'SAL.30%'!AL$128 -> 0 | AA21: =$S21*'SAL.30%'!AM$128 -> 0 | AB21: =$S21*'SAL.30%'!AN$128 -> 0
O22: 0 | P22: 0 | Q22: 0 | R22: 0 | S22: 0 | T22: =$S22*'SAL.30%'!AF$128 -> 0 | U22: =$S22*'SAL.30%'!AG$128 -> 0 | V22: =$S22*'SAL.30%'!AH$128 -> 0 | W22: =$S22*'SAL.30%'!AI$128 -> 0 | X22: =$S22*'SAL.30%'!AJ$128 -> 0 | Y22: =$S22*'SAL.30%'!AK$128 -> 0 | Z22: =$S22*'SAL.30%'!AL$128 -> 0 | AA22: =$S22*'SAL.30%'!AM$128 -> 0 | AB22: =$S22*'SAL.30%'!AN$128 -> 0
O23: 0 | P23: 0 | Q23: 0 | R23: 0 | S23: 0 | T23: =$S23*'SAL.30%'!AF$128 -> 0 | U23: =$S23*'SAL.30%'!AG$128 -> 0 | V23: =$S23*'SAL.30%'!AH$128 -> 0 | W23: =$S23*'SAL.30%'!AI$128 -> 0 | X23: =$S23*'SAL.30%'!AJ$128 -> 0 | Y23: =$S23*'SAL.30%'!AK$128 -> 0 | Z23: =$S23*'SAL.30%'!AL$128 -> 0 | AA23: =$S23*'SAL.30%'!AM$128 -> 0 | AB23: =$S23*'SAL.30%'!AN$128 -> 0
O24: 0 | P24: 0 | Q24: 0 | R24: 0 | S24: 0 | T24: =$S24*'SAL.30%'!AF$128 -> 0 | U24: =$S24*'SAL.30%'!AG$128 -> 0 | V24: =$S24*'SAL.30%'!AH$128 -> 0 | W24: =$S24*'SAL.30%'!AI$128 -> 0 | X24: =$S24*'SAL.30%'!AJ$128 -> 0 | Y24: =$S24*'SAL.30%'!AK$128 -> 0 | Z24: =$S24*'SAL.30%'!AL$128 -> 0 | AA24: =$S24*'SAL.30%'!AM$128 -> 0 | AB24: =$S24*'SAL.30%'!AN$128 -> 0
O25: 0 | P25: 0 | Q25: 0 | R25: 0 | S25: 0 | T25: =$S25*'SAL.30%'!AF$128 -> 0 | U25: =$S25*'SAL.30%'!AG$128 -> 0 | V25: =$S25*'SAL.30%'!AH$128 -> 0 | W25: =$S25*'SAL.30%'!AI$128 -> 0 | X25: =$S25*'SAL.30%'!AJ$128 -> 0 | Y25: =$S25*'SAL.30%'!AK$128 -> 0 | Z25: =$S25*'SAL.30%'!AL$128 -> 0 | AA25: =$S25*'SAL.30%'!AM$128 -> 0 | AB25: =$S25*'SAL.30%'!AN$128 -> 0
O26: 0 | P26: 0 | Q26: 0 | R26: 0 | S26: 0 | T26: =$S26*'SAL.30%'!AF$128 -> 0 | U26: =$S26*'SAL.30%'!AG$128 -> 0 | V26: =$S26*'SAL.30%'!AH$128 -> 0 | W26: =$S26*'SAL.30%'!AI$128 -> 0 | X26: =$S26*'SAL.30%'!AJ$128 -> 0 | Y26: =$S26*'SAL.30%'!AK$128 -> 0 | Z26: =$S26*'SAL.30%'!AL$128 -> 0 | AA26: =$S26*'SAL.30%'!AM$128 -> 0 | AB26: =$S26*'SAL.30%'!AN$128 -> 0
O27: 0 | P27: 0 | Q27: 0 | R27: 0 | S27: 0 | T27: =$S27*'SAL.30%'!AF$128 -> 0 | U27: =$S27*'SAL.30%'!AG$128 -> 0 | V27: =$S27*'SAL.30%'!AH$128 -> 0 | W27: =$S27*'SAL.30%'!AI$128 -> 0 | X27: =$S27*'SAL.30%'!AJ$128 -> 0 | Y27: =$S27*'SAL.30%'!AK$128 -> 0 | Z27: =$S27*'SAL.30%'!AL$128 -> 0 | AA27: =$S27*'SAL.30%'!AM$128 -> 0 | AB27: =$S27*'SAL.30%'!AN$128 -> 0
O28: 0 | P28: 0 | Q28: 0 | R28: 0 | S28: 0 | T28: =$S28*'SAL.30%'!AF$128 -> 0 | U28: =$S28*'SAL.30%'!AG$128 -> 0 | V28: =$S28*'SAL.30%'!AH$128 -> 0 | W28: =$S28*'SAL.30%'!AI$128 -> 0 | X28: =$S28*'SAL.30%'!AJ$128 -> 0 | Y28: =$S28*'SAL.30%'!AK$128 -> 0 | Z28: =$S28*'SAL.30%'!AL$128 -> 0 | AA28: =$S28*'SAL.30%'!AM$128 -> 0 | AB28: =$S28*'SAL.30%'!AN$128 -> 0
O29: 0 | P29: 0 | Q29: 0 | R29: 0 | S29: 0 | T29: =$S29*'SAL.30%'!AF$128 -> 0 | U29: =$S29*'SAL.30%'!AG$128 -> 0 | V29: =$S29*'SAL.30%'!AH$128 -> 0 | W29: =$S29*'SAL.30%'!AI$128 -> 0 | X29: =$S29*'SAL.30%'!AJ$128 -> 0 | Y29: =$S29*'SAL.30%'!AK$128 -> 0 | Z29: =$S29*'SAL.30%'!AL$128 -> 0 | AA29: =$S29*'SAL.30%'!AM$128 -> 0 | AB29: =$S29*'SAL.30%'!AN$128 -> 0
O30: 0 | P30: 0 | Q30: 0 | R30: 0 | S30: 0 | T30: =$S30*'SAL.30%'!AF$128 -> 0 | U30: =$S30*'SAL.30%'!AG$128 -> 0 | V30: =$S30*'SAL.30%'!AH$128 -> 0 | W30: =$S30*'SAL.30%'!AI$128 -> 0 | X30: =$S30*'SAL.30%'!AJ$128 -> 0 | Y30: =$S30*'SAL.30%'!AK$128 -> 0 | Z30: =$S30*'SAL.30%'!AL$128 -> 0 | AA30: =$S30*'SAL.30%'!AM$128 -> 0 | AB30: =$S30*'SAL.30%'!AN$128 -> 0
O31: 0 | P31: 0 | Q31: 0 | R31: 0 | S31: 0 | T31: =$S31*'SAL.30%'!AF$128 -> 0 | U31: =$S31*'SAL.30%'!AG$128 -> 0 | V31: =$S31*'SAL.30%'!AH$128 -> 0 | W31: =$S31*'SAL.30%'!AI$128 -> 0 | X31: =$S31*'SAL.30%'!AJ$128 -> 0 | Y31: =$S31*'SAL.30%'!AK$128 -> 0 | Z31: =$S31*'SAL.30%'!AL$128 -> 0 | AA31: =$S31*'SAL.30%'!AM$128 -> 0 | AB31: =$S31*'SAL.30%'!AN$128 -> 0
O32: 0 | P32: 0 | Q32: 0 | R32: 0 | S32: 0 | T32: =$S32*'SAL.30%'!AF$128 -> 0 | U32: =$S32*'SAL.30%'!AG$128 -> 0 | V32: =$S32*'SAL.30%'!AH$128 -> 0 | W32: =$S32*'SAL.30%'!AI$128 -> 0 | X32: =$S32*'SAL.30%'!AJ$128 -> 0 | Y32: =$S32*'SAL.30%'!AK$128 -> 0 | Z32: =$S32*'SAL.30%'!AL$128 -> 0 | AA32: =$S32*'SAL.30%'!AM$128 -> 0 | AB32: =$S32*'SAL.30%'!AN$128 -> 0
O33: 0 | P33: 0 | Q33: 0 | R33: 0 | S33: 0 | T33: =$S33*'SAL.30%'!AF$128 -> 0 | U33: =$S33*'SAL.30%'!AG$128 -> 0 | V33: =$S33*'SAL.30%'!AH$128 -> 0 | W33: =$S33*'SAL.30%'!AI$128 -> 0 | X33: =$S33*'SAL.30%'!AJ$128 -> 0 | Y33: =$S33*'SAL.30%'!AK$128 -> 0 | Z33: =$S33*'SAL.30%'!AL$128 -> 0 | AA33: =$S33*'SAL.30%'!AM$128 -> 0 | AB33: =$S33*'SAL.30%'!AN$128 -> 0
O34: 0 | P34: 0 | Q34: 0 | R34: 0 | S34: 0 | T34: =$S34*'SAL.30%'!AF$128 -> 0 | U34: =$S34*'SAL.30%'!AG$128 -> 0 | V34: =$S34*'SAL.30%'!AH$128 -> 0 | W34: =$S34*'SAL.30%'!AI$128 -> 0 | X34: =$S34*'SAL.30%'!AJ$128 -> 0 | Y34: =$S34*'SAL.30%'!AK$128 -> 0 | Z34: =$S34*'SAL.30%'!AL$128 -> 0 | AA34: =$S34*'SAL.30%'!AM$128 -> 0 | AB34: =$S34*'SAL.30%'!AN$128 -> 0
O35: 0 | P35: 0 | Q35: 0 | R35: 0 | S35: 0 | T35: =$S35*'SAL.30%'!AF$128 -> 0 | U35: =$S35*'SAL.30%'!AG$128 -> 0 | V35: =$S35*'SAL.30%'!AH$128 -> 0 | W35: =$S35*'SAL.30%'!AI$128 -> 0 | X35: =$S35*'SAL.30%'!AJ$128 -> 0 | Y35: =$S35*'SAL.30%'!AK$128 -> 0 | Z35: =$S35*'SAL.30%'!AL$128 -> 0 | AA35: =$S35*'SAL.30%'!AM$128 -> 0 | AB35: =$S35*'SAL.30%'!AN$128 -> 0
O36: 0 | P36: 0 | Q36: 0 | R36: 0 | S36: 0 | T36: =$S36*'SAL.30%'!AF$128 -> 0 | U36: =$S36*'SAL.30%'!AG$128 -> 0 | V36: =$S36*'SAL.30%'!AH$128 -> 0 | W36: =$S36*'SAL.30%'!AI$128 -> 0 | X36: =$S36*'SAL.30%'!AJ$128 -> 0 | Y36: =$S36*'SAL.30%'!AK$128 -> 0 | Z36: =$S36*'SAL.30%'!AL$128 -> 0 | AA36: =$S36*'SAL.30%'!AM$128 -> 0 | AB36: =$S36*'SAL.30%'!AN$128 -> 0
O37: 0 | P37: 0 | Q37: 0 | R37: 0 | S37: 0 | T37: =$S37*'SAL.30%'!AF$128 -> 0 | U37: =$S37*'SAL.30%'!AG$128 -> 0 | V37: =$S37*'SAL.30%'!AH$128 -> 0 | W37: =$S37*'SAL.30%'!AI$128 -> 0 | X37: =$S37*'SAL.30%'!AJ$128 -> 0 | Y37: =$S37*'SAL.30%'!AK$128 -> 0 | Z37: =$S37*'SAL.30%'!AL$128 -> 0 | AA37: =$S37*'SAL.30%'!AM$128 -> 0 | AB37: =$S37*'SAL.30%'!AN$128 -> 0 | AC37: Imponibile Spese Tecniche | AD37: Totale Spese Tecniche
O38: 0 | P38: 0 | Q38: 0 | R38: 0 | S38: 0 | T38: =$S38*'SAL.30%'!AF$128 -> 0 | U38: =$S38*'SAL.30%'!AG$128 -> 0 | V38: =$S38*'SAL.30%'!AH$128 -> 0 | W38: =$S38*'SAL.30%'!AI$128 -> 0 | X38: =$S38*'SAL.30%'!AJ$128 -> 0 | Y38: =$S38*'SAL.30%'!AK$128 -> 0 | Z38: =$S38*'SAL.30%'!AL$128 -> 0 | AA38: =$S38*'SAL.30%'!AM$128 -> 0 | AB38: =$S38*'SAL.30%'!AN$128 -> 0
O39: =SUM(O11:O38) -> 70.55474959 | P39: =SUM(P11:P38) -> 776.1022349 | Q39: =SUM(Q11:Q38) -> 1100 | R39: =SUM(R11:R38) -> 776.1022349 | S39: =SUM(S11:S38) -> 0 | T39: =SUM(T11:T38) -> 0 | U39: 0 | V39: 0 | W39: 0 | X39: 0 | Y39: 0 | Z39: 0 | AA39: 0 | AB39: 0 | AC39: =AD39/1.22 -> 0 | AD39: =SUM(T39:AB39) -> 0
K40: Imponibile | L40: =SUM(L11:L38) -> 705.5474854 | AC40: Imponibile Fatturato | AD40: Totale Fatture Tecnici
K41: IVA | L41: =SUM(O11:O38) -> 70.55474959 | T41: =IF(T9="SI",T39,0) -> 0 | U41: 0 | V41: 0 | W41: 0 | X41: 0 | Y41: 0 | Z41: 0 | AA41: 0 | AB41: 0 | AC41: =AD41/1.22 -> 0 | AD41: =SUM(T41:AB41) -> 0
K42: Totale | L42: =SUM(L40:L41) -> 776.1022349
K43: Sconto in Fattura | L43: =-R39 -> -776.1022349 | AB43: Spese Tecniche non Fatturate direttamente dai Tecnici | AC43: =AC39-AC41 -> 0 | AD43: =AD39-AD41 -> 0
K44: Netto a Pagare | L44: =IF(L42+L43<>0,L42+L43,"0,00 €") -> 0,00 €
B46: Pagamento
B47: Note
B49: ©2021 SIM srl - www.madosoft.it | M49: Pag.1/1

Sheet Rendiconto
B2: RENDICONTO APPALTATORE / GENERAL CONTRACTOR
C3: Descrizione | E3: Incasso/Spesa | F3: Importo | G3: Iva | H3: Totale | I3: Saldo | Y3: Totale
B4: 2021-01-01 | C4: Acquisto Materiali Edili | E4: Spesa | F4: 5000 | G4: =IF(F4<>0,IF(E4="Incasso",F4*0.22,-F4*0.22),"") -> -1100 | H4: =IF(F4<>0,IF(E4="Incasso",F4+G4,-F4+G4),"") -> -6100 | I4: =IF(H4<>0,H4,"") -> -6100 | X4: 2021-01-01 | Y4: =H4 -> -6100
B5: 2021-01-01 | C5: Acquisto Materiali Impianti | E5: Spesa | F5: 10000 | G5: =IF(F5<>0,IF(E5="Incasso",F5*0.22,-F5*0.22),"") -> -2200 | H5: =IF(F5<>0,IF(E5="Incasso",F5+G5,-F5+G5),"") -> -12200 | I5: =IF(I4<>0,IF(H5<>0,I4+H5,""),"") -> -18300 | X5: 2021-01-01 | Y5: =H5 -> -12200
B6: 2021-02-16 | C6: SAL N.1 - Fattura 26/2021 | E6: Incasso | F6: 12000 | G6: 2640 | H6: 14640 | I6: =IF(I5<>0,IF(H6<>0,I5+H6,""),"") -> -3660 | X6: 2021-02-16 | Y6: 14640
B7: 2021-02-16 | C7: SAL N.1 - Pagata Fatt. Ing XYZ | E7: Spesa | F7: 3000 | G7: -660 | H7: -3660 | I7: =IF(ISNUMBER(I6),IF(ISNUMBER(H7),I6+H7,""),"") -> -7320 | X7: 2021-02-16 | Y7: -3660
I8: =IF(ISNUMBER(I7),IF(ISNUMBER(H8),I7+H8,""),"") -> 
Y32: =G35 -> -7320
F33: Entrate: | G33: =SUMIF(H4:H31,">0",H4:H31) -> 14640 | H33: Iva Incassata: | I33: =SUMIF(G4:G31,">0",G4:G31) -> 2640
F34: Uscite: | G34: =SUMIF(H4:H31,"<0",H4:H31) -> -21960 | H34: Iva Pagata: | I34: =SUMIF(G4:G31,"<0",G4:G31) -> -3960
F35: Saldo: | G35: =SUM(H4:H31) -> -7320 | H35: Saldo Iva: | I35: =SUM(G4:G31) -> -1320
F39: ImportoLavori | G39: Spese | H39: Importo
C40: Interventi Isolamento T | F40: ='Computo-Massimali'!J13 -> 1100 | G40: ='Computo-Massimali'!K13 -> 0 | H40: =SUM(F40:G40) -> 1100
C41: Impianti Climatizzazione e ACS T | F41: ='Computo-Massimali'!J14 -> 0 | G41: ='Computo-Massimali'!K14 -> 0 | H41: =SUM(F41:G41) -> 0
C42: Totali Trainanti | F42: =SUM(F40:F41) -> 1100 | G42: =SUM(G40:G41) -> 0 | H42: =SUM(F42:G42) -> 1100
C43: Interventi Isolamento PC | F43: =SUM('Computo-Massimali'!J20:'Computo-Massimali'!J22) -> 0 | G43: =SUM('Computo-Massimali'!K20:'Computo-Massimali'!K22) -> 0 | H43: =SUM(F43:G43) -> 0
C44: Infissi PC | F44: ='Computo-Massimali'!J23 -> 0 | G44: ='Computo-Massimali'!K23 -> 0 | H44: =SUM(F44:G44) -> 0

Sheet ModelloFattura (hidden)
B2: Fornitore | I2: Cliente | O2: Fattura Fornitore
B3: Indirizzo | I3: Indirizzo
B4: Città | I4: Città
B5: CF./P.Iva | I5: C.F. :
B6: Tel./Mail
B7: FATTURA N.
B8: DATA
B9: Cessione del 100% (sconto in fattura praticato ai sensi dell'art.121 DL.34/2020 e smi | T9: ='Dati Gen'!D44 -> SI | U9: ='Dati Gen'!D45 -> NO | V9: ='Dati Gen'!D46 -> NO | W9: ='Dati Gen'!D47 -> NO | X9: ='Dati Gen'!D48 -> NO | Y9: ='Dati Gen'!D49 -> NO | Z9: ='Dati Gen'!D50 -> NO | AA9: SI | AB9: NO
C10: DESCRIZIONE | G10: QUANTITA' | I10: PREZZO | K10: SC./MG. | L10: IMPORTO | M10: %IVA | O10: Importo Iva | P10: Tot.Rigo | Q10: Spesa Ammessa | R10: Sconto | S10: Spese Tecniche | T10: =IF('Dati Gen'!B44<>"",'Dati Gen'!B44,"") -> Ingegnere 1 | U10: =IF('Dati Gen'!B45<>"",'Dati Gen'!B45,"") -> Dott. Igor | V10: =IF('Dati Gen'!B46<>"",'Dati Gen'!B46,"") ->  | W10: =IF('Dati Gen'!B47<>"",'Dati Gen'!B47,"") ->  | X10: =IF('Dati Gen'!B48<>"",'Dati Gen'!B48,"") ->  | Y10: =IF('Dati Gen'!B49<>"",'Dati Gen'!B49,"") ->  | Z10: =IF('Dati Gen'!B50<>"",'Dati Gen'!B50,"") ->  | AA10: =IF('Dati Gen'!B51<>"",'Dati Gen'!B51,"") -> 
B11: =IF(C11<>"",1,"") ->  | L11: =IF(I11<>"",G11*I11,"") ->  | O11: =IF(L11<>"",L11*M11,0) -> 0 | P11: =IF(L11<>"",O11+L11,0) -> 0 | Q11: 0 | R11: =IF(P11<Q11,P11,Q11) -> 0 | S11: 0 | T11: =$S11*'SAL.30%'!AF$128 -> 0 | U11: =$S11*'SAL.30%'!AG$128 -> 0 | V11: =$S11*'SAL.30%'!AH$128 -> 0 | W11: =$S11*'SAL.30%'!AI$128 -> 0 | X11: =$S11*'SAL.30%'!AJ$128 -> 0 | Y11: =$S11*'SAL.30%'!AK$128 -> 0 | Z11: =$S11*'SAL.30%'!AL$128 -> 0 | AA11: =$S11*'SAL.30%'!AM$128 -> 0 | AB11: =$S11*'SAL.30%'!AN$128 -> 0
B12: =IF(C12<>"",B11+1,"") ->  | L12: =IF(I12<>"",G12*I12,"") ->  | O12: =IF(L12<>"",L12*M12,0) -> 0 | P12: =IF(L12<>"",O12+L12,0) -> 0 | Q12: 0 | R12: =IF(P12<Q12,P12,Q12) -> 0 | S12: 0 | T12: =$S12*'SAL.30%'!AF$128 -> 0 | U12: =$S12*'SAL.30%'!AG$128 -> 0 | V12: =$S12*'SAL.30%'!AH$128 -> 0 | W12: =$S12*'SAL.30%'!AI$128 -> 0 | X12: =$S12*'SAL.30%'!AJ$128 -> 0 | Y12: =$S12*'SAL.30%'!AK$128 -> 0 | Z12: =$S12*'SAL.30%'!AL$128 -> 0 | AA12: =$S12*'SAL.30%'!AM$128 -> 0 | AB12: =$S12*'SAL.30%'!AN$128 -> 0
O13: 0 | P13: =IF(L13<>"",O13+L13,0) -> 0 | Q13: 0 | R13: 0 | S13: 0 | T13: =$S13*'SAL.30%'!AF$128 -> 0 | U13: =$S13*'SAL.30%'!AG$128 -> 0 | V13: =$S13*'SAL.30%'!AH$128 -> 0 | W13: =$S13*'SAL.30%'!AI$128 -> 0 | X13: =$S13*'SAL.30%'!AJ$128 -> 0 | Y13: =$S13*'SAL.30%'!AK$128 -> 0 | Z13: =$S13*'SAL.30%'!AL$128 -> 0 | AA13: =$S13*'SAL.30%'!AM$128 -> 0 | AB13: =$S13*'SAL.30%'!AN$128 -> 0
O14: 0 | P14: 0 | Q14: 0 | R14: 0 | S14: 0 | T14: =$S14*'SAL.30%'!AF$128 -> 0 | U14: =$S14*'SAL.30%'!AG$128 -> 0 | V14: =$S14*'SAL.30%'!AH$128 -> 0 | W14: =$S14*'SAL.30%'!AI$128 -> 0 | X14: =$S14*'SAL.30%'!AJ$128 -> 0 | Y14: =$S14*'SAL.30%'!AK$128 -> 0 | Z14: =$S14*'SAL.30%'!AL$128 -> 0 | AA14: =$S14*'SAL.30%'!AM$128 -> 0 | AB14: =$S14*'SAL.30%'!AN$128 -> 0
O15: 0 | P15: 0 | Q15: 0 | R15: 0 | S15: 0 | T15: =$S15*'SAL.30%'!AF$128 -> 0 | U15: =$S15*'SAL.30%'!AG$128 -> 0 | V15: =$S15*'SAL.30%'!AH$128 -> 0 | W15: =$S15*'SAL.30%'!AI$128 -> 0 | X15: =$S15*'SAL.30%'!AJ$128 -> 0 | Y15: =$S15*'SAL.30%'!AK$128 -> 0 | Z15: =$S15*'SAL.30%'!AL$128 -> 0 | AA15: =$S15*'SAL.30%'!AM$128 -> 0 | AB15: =$S15*'SAL.30%'!AN$128 -> 0
O16: 0 | P16: 0 | Q16: 0 | R16: 0 | S16: 0 | T16: =$S16*'SAL.30%'!AF$128 -> 0 | U16: =$S16*'SAL.30%'!AG$128 -> 0 | V16: =$S16*'SAL.30%'!AH$128 -> 0 | W16: =$S16*'SAL.30%'!AI$128 -> 0 | X16: =$S16*'SAL.30%'!AJ$128 -> 0 | Y16: =$S16*'SAL.30%'!AK$128 -> 0 | Z16: =$S16*'SAL.30%'!AL$128 -> 0 | AA16: =$S16*'SAL.30%'!AM$128 -> 0 | AB16: =$S16*'SAL.30%'!AN$128 -> 0
O17: 0 | P17: 0 | Q17: 0 | R17: 0 | S17: 0 | T17: =$S17*'SAL.30%'!AF$128 -> 0 | U17: =$S17*'SAL.30%'!AG$128 -> 0 | V17: =$S17*'SAL.30%'!AH$128 -> 0 | W17: =$S17*'SAL.30%'!AI$128 -> 0 | X17: =$S17*'SAL.30%'!AJ$128 -> 0 | Y17: =$S17*'SAL.30%'!AK$128 -> 0 | Z17: =$S17*'SAL.30%'!AL$128 -> 0 | AA17: =$S17*'SAL.30%'!AM$128 -> 0 | AB17: =$S17*'SAL.30%'!AN$128 -> 0
O18: 0 | P18: 0 | Q18: 0 | R18: 0 | S18: 0 | T18: =$S18*'SAL.30%'!AF$128 -> 0 | U18: =$S18*'SAL.30%'!AG$128 -> 0 | V18: =$S18*'SAL.30%'!AH$128 -> 0 | W18: =$S18*'SAL.30%'!AI$128 -> 0 | X18: =$S18*'SAL.30%'!AJ$128 -> 0 | Y18: =$S18*'SAL.30%'!AK$128 -> 0 | Z18: =$S18*'SAL.30%'!AL$128 -> 0 | AA18: =$S18*'SAL.30%'!AM$128 -> 0 | AB18: =$S18*'SAL.30%'!AN$128 -> 0
O19: 0 | P19: 0 | Q19: 0 | R19: 0 | S19: 0 | T19: =$S19*'SAL.30%'!AF$128 -> 0 | U19: =$S19*'SAL.30%'!AG$128 -> 0 | V19: =$S19*'SAL.30%'!AH$128 -> 0 | W19: =$S19*'SAL.30%'!AI$128 -> 0 | X19: =$S19*'SAL.30%'!AJ$128 -> 0 | Y19: =$S19*'SAL.30%'!AK$128 -> 0 | Z19: =$S19*'SAL.30%'!AL$128 -> 0 | AA19: =$S19*'SAL.30%'!AM$128 -> 0 | AB19: =$S19*'SAL.30%'!AN$128 -> 0
O20: 0 | P20: 0 | Q20: 0 | R20: 0 | S20: 0 | T20: =$S20*'SAL.30%'!AF$128 -> 0 | U20: =$S20*'SAL.30%'!AG$128 -> 0 | V20: =$S20*'SAL.30%'!AH$128 -> 0 | W20: =$S20*'SAL.30%'!AI$128 -> 0 | X20: =$S20*'SAL.30%'!AJ$128 -> 0 | Y20: =$S20*'SAL.30%'!AK$128 -> 0 | Z20: =$S20*'SAL.30%'!AL$128 -> 0 | AA20: =$S20*'SAL.30%'!AM$128 -> 0 | AB20: =$S20*'SAL.30%'!AN$128 -> 0
O21: 0 | P21: 0 | Q21: 0 | R21: 0 | S21: 0 | T21: =$S21*'SAL.30%'!AF$128 -> 0 | U21: =$S21*'SAL.30%'!AG$128 -> 0 | V21: =$S21*'SAL.30%'!AH$128 -> 0 | W21: =$S21*'SAL.30%'!AI$128 -> 0 | X21: =$S21*'SAL.30%'!AJ$128 -> 0 | Y21: =$S21*'SAL.30%'!AK$128 -> 0 | Z21: =$S21*'SAL.30%'!AL$128 -> 0 | AA21: =$S21*'SAL.30%'!AM$128 -> 0 | AB21: =$S21*'SAL.30%'!AN$128 -> 0
O22: 0 | P22: 0 | Q22: 0 | R22: 0 | S22: 0 | T22: =$S22*'SAL.30%'!AF$128 -> 0 | U22: =$S22*'SAL.30%'!AG$128 -> 0 | V22: =$S22*'SAL.30%'!AH$128 -> 0 | W22: =$S22*'SAL.30%'!AI$128 -> 0 | X22: =$S22*'SAL.30%'!AJ$128 -> 0 | Y22: =$S22*'SAL.30%'!AK$128 -> 0 | Z22: =$S22*'SAL.30%'!AL$128 -> 0 | AA22: =$S22*'SAL.30%'!AM$128 -> 0 | AB22: =$S22*'SAL.30%'!AN$128 -> 0
O23: 0 | P23: 0 | Q23: 0 | R23: 0 | S23: 0 | T23: =$S23*'SAL.30%'!AF$128 -> 0 | U23: =$S23*'SAL.30%'!AG$128 -> 0 | V23: =$S23*'SAL.30%'!AH$128 -> 0 | W23: =$S23*'SAL.30%'!AI$128 -> 0 | X23: =$S23*'SAL.30%'!AJ$128 -> 0 | Y23: =$S23*'SAL.30%'!AK$128 -> 0 | Z23: =$S23*'SAL.30%'!AL$128 -> 0 | AA23: =$S23*'SAL.30%'!AM$128 -> 0 | AB23: =$S23*'SAL.30%'!AN$128 -> 0
O24: 0 | P24: 0 | Q24: 0 | R24: 0 | S24: 0 | T24: =$S24*'SAL.30%'!AF$128 -> 0 | U24: =$S24*'SAL.30%'!AG$128 -> 0 | V24: =$S24*'SAL.30%'!AH$128 -> 0 | W24: =$S24*'SAL.30%'!AI$128 -> 0 | X24: =$S24*'SAL.30%'!AJ$128 -> 0 | Y24: =$S24*'SAL.30%'!AK$128 -> 0 | Z24: =$S24*'SAL.30%'!AL$128 -> 0 | AA24: =$S24*'SAL.30%'!AM$128 -> 0 | AB24: =$S24*'SAL.30%'!AN$128 -> 0
O25: 0 | P25: 0 | Q25: 0 | R25: 0 | S25: 0 | T25: =$S25*'SAL.30%'!AF$128 -> 0 | U25: =$S25*'SAL.30%'!AG$128 -> 0 | V25: =$S25*'SAL.30%'!AH$128 -> 0 | W25: =$S25*'SAL.30%'!AI$128 -> 0 | X25: =$S25*'SAL.30%'!AJ$128 -> 0 | Y25: =$S25*'SAL.30%'!AK$128 -> 0 | Z25: =$S25*'SAL.30%'!AL$128 -> 0 | AA25: =$S25*'SAL.30%'!AM$128 -> 0 | AB25: =$S25*'SAL.30%'!AN$128 -> 0
O26: 0 | P26: 0 | Q26: 0 | R26: 0 | S26: 0 | T26: =$S26*'SAL.30%'!AF$128 -> 0 | U26: =$S26*'SAL.30%'!AG$128 -> 0 | V26: =$S26*'SAL.30%'!AH$128 -> 0 | W26: =$S26*'SAL.30%'!AI$128 -> 0 | X26: =$S26*'SAL.30%'!AJ$128 -> 0 | Y26: =$S26*'SAL.30%'!AK$128 -> 0 | Z26: =$S26*'SAL.30%'!AL$128 -> 0 | AA26: =$S26*'SAL.30%'!AM$128 -> 0 | AB26: =$S26*'SAL.30%'!AN$128 -> 0
O27: 0 | P27: 0 | Q27: 0 | R27: 0 | S27: 0 | T27: =$S27*'SAL.30%'!AF$128 -> 0 | U27: =$S27*'SAL.30%'!AG$128 -> 0 | V27: =$S27*'SAL.30%'!AH$128 -> 0 | W27: =$S27*'SAL.30%'!AI$128 -> 0 | X27: =$S27*'SAL.30%'!AJ$128 -> 0 | Y27: =$S27*'SAL.30%'!AK$128 -> 0 | Z27: =$S27*'SAL.30%'!AL$128 -> 0 | AA27: =$S27*'SAL.30%'!AM$128 -> 0 | AB27: =$S27*'SAL.30%'!AN$128 -> 0
O28: 0 | P28: 0 | Q28: 0 | R28: 0 | S28: 0 | T28: =$S28*'SAL.30%'!AF$128 -> 0 | U28: =$S28*'SAL.30%'!AG$128 -> 0 | V28: =$S28*'SAL.30%'!AH$128 -> 0 | W28: =$S28*'SAL.30%'!AI$128 -> 0 | X28: =$S28*'SAL.30%'!AJ$128 -> 0 | Y28: =$S28*'SAL.30%'!AK$128 -> 0 | Z28: =$S28*'SAL.30%'!AL$128 -> 0 | AA28: =$S28*'SAL.30%'!AM$128 -> 0 | AB28: =$S28*'SAL.30%'!AN$128 -> 0
O29: 0 | P29: 0 | Q29: 0 | R29: 0 | S29: 0 | T29: =$S29*'SAL.30%'!AF$128 -> 0 | U29: =$S29*'SAL.30%'!AG$128 -> 0 | V29: =$S29*'SAL.30%'!AH$128 -> 0 | W29: =$S29*'SAL.30%'!AI$128 -> 0 | X29: =$S29*'SAL.30%'!AJ$128 -> 0 | Y29: =$S29*'SAL.30%'!AK$128 -> 0 | Z29: =$S29*'SAL.30%'!AL$128 -> 0 | AA29: =$S29*'SAL.30%'!AM$128 -> 0 | AB29: =$S29*'SAL.30%'!AN$128 -> 0
O30: 0 | P30: 0 | Q30: 0 | R30: 0 | S30: 0 | T30: =$S30*'SAL.30%'!AF$128 -> 0 | U30: =$S30*'SAL.30%'!AG$128 -> 0 | V30: =$S30*'SAL.30%'!AH$128 -> 0 | W30: =$S30*'SAL.30%'!AI$128 -> 0 | X30: =$S30*'SAL.30%'!AJ$128 -> 0 | Y30: =$S30*'SAL.30%'!AK$128 -> 0 | Z30: =$S30*'SAL.30%'!AL$128 -> 0 | AA30: =$S30*'SAL.30%'!AM$128 -> 0 | AB30: =$S30*'SAL.30%'!AN$128 -> 0
O31: 0 | P31: 0 | Q31: 0 | R31: 0 | S31: 0 | T31: =$S31*'SAL.30%'!AF$128 -> 0 | U31: =$S31*'SAL.30%'!AG$128 -> 0 | V31: =$S31*'SAL.30%'!AH$128 -> 0 | W31: =$S31*'SAL.30%'!AI$128 -> 0 | X31: =$S31*'SAL.30%'!AJ$128 -> 0 | Y31: =$S31*'SAL.30%'!AK$128 -> 0 | Z31: =$S31*'SAL.30%'!AL$128 -> 0 | AA31: =$S31*'SAL.30%'!AM$128 -> 0 | AB31: =$S31*'SAL.30%'!AN$128 -> 0
O32: 0 | P32: 0 | Q32: 0 | R32: 0 | S32: 0 | T32: =$S32*'SAL.30%'!AF$128 -> 0 | U32: =$S32*'SAL.30%'!AG$128 -> 0 | V32: =$S32*'SAL.30%'!AH$128 -> 0 | W32: =$S32*'SAL.30%'!AI$128 -> 0 | X32: =$S32*'SAL.30%'!AJ$128 -> 0 | Y32: =$S32*'SAL.30%'!AK$128 -> 0 | Z32: =$S32*'SAL.30%'!AL$128 -> 0 | AA32: =$S32*'SAL.30%'!AM$128 -> 0 | AB32: =$S32*'SAL.30%'!AN$128 -> 0
O33: 0 | P33: 0 | Q33: 0 | R33: 0 | S33: 0 | T33: =$S33*'SAL.30%'!AF$128 -> 0 | U33: =$S33*'SAL.30%'!AG$128 -> 0 | V33: =$S33*'SAL.30%'!AH$128 -> 0 | W33: =$S33*'SAL.30%'!AI$128 -> 0 | X33: =$S33*'SAL.30%'!AJ$128 -> 0 | Y33: =$S33*'SAL.30%'!AK$128 -> 0 | Z33: =$S33*'SAL.30%'!AL$128 -> 0 | AA33: =$S33*'SAL.30%'!AM$128 -> 0 | AB33: =$S33*'SAL.30%'!AN$128 -> 0
O34: 0 | P34: 0 | Q34: 0 | R34: 0 | S34: 0 | T34: =$S34*'SAL.30%'!AF$128 -> 0 | U34: =$S34*'SAL.30%'!AG$128 -> 0 | V34: =$S34*'SAL.30%'!AH$128 -> 0 | W34: =$S34*'SAL.30%'!AI$128 -> 0 | X34: =$S34*'SAL.30%'!AJ$128 -> 0 | Y34: =$S34*'SAL.30%'!AK$128 -> 0 | Z34: =$S34*'SAL.30%'!AL$128 -> 0 | AA34: =$S34*'SAL.30%'!AM$128 -> 0 | AB34: =$S34*'SAL.30%'!AN$128 -> 0
O35: 0 | P35: 0 | Q35: 0 | R35: 0 | S35: 0 | T35: =$S35*'SAL.30%'!AF$128 -> 0 | U35: =$S35*'SAL.30%'!AG$128 -> 0 | V35: =$S35*'SAL.30%'!AH$128 -> 0 | W35: =$S35*'SAL.30%'!AI$128 -> 0 | X35: =$S35*'SAL.30%'!AJ$128 -> 0 | Y35: =$S35*'SAL.30%'!AK$128 -> 0 | Z35: =$S35*'SAL.30%'!AL$128 -> 0 | AA35: =$S35*'SAL.30%'!AM$128 -> 0 | AB35: =$S35*'SAL.30%'!AN$128 -> 0
O36: 0 | P36: 0 | Q36: 0 | R36: 0 | S36: 0 | T36: =$S36*'SAL.30%'!AF$128 -> 0 | U36: =$S36*'SAL.30%'!AG$128 -> 0 | V36: =$S36*'SAL.30%'!AH$128 -> 0 | W36: =$S36*'SAL.30%'!AI$128 -> 0 | X36: =$S36*'SAL.30%'!AJ$128 -> 0 | Y36: =$S36*'SAL.30%'!AK$128 -> 0 | Z36: =$S36*'SAL.30%'!AL$128 -> 0 | AA36: =$S36*'SAL.30%'!AM$128 -> 0 | AB36: =$S36*'SAL.30%'!AN$128 -> 0
O37: 0 | P37: 0 | Q37: 0 | R37: 0 | S37: 0 | T37: =$S37*'SAL.30%'!AF$128 -> 0 | U37: =$S37*'SAL.30%'!AG$128 -> 0 | V37: =$S37*'SAL.30%'!AH$128 -> 0 | W37: =$S37*'SAL.30%'!AI$128 -> 0 | X37: =$S37*'SAL.30%'!AJ$128 -> 0 | Y37: =$S37*'SAL.30%'!AK$128 -> 0 | Z37: =$S37*'SAL.30%'!AL$128 -> 0 | AA37: =$S37*'SAL.30%'!AM$128 -> 0 | AB37: =$S37*'SAL.30%'!AN$128 -> 0 | AC37: Imponibile Spese Tecniche | AD37: Totale Spese Tecniche
O38: 0 | P38: 0 | Q38: 0 | R38: 0 | S38: 0 | T38: =$S38*'SAL.30%'!AF$128 -> 0 | U38: =$S38*'SAL.30%'!AG$128 -> 0 | V38: =$S38*'SAL.30%'!AH$128 -> 0 | W38: =$S38*'SAL.30%'!AI$128 -> 0 | X38: =$S38*'SAL.30%'!AJ$128 -> 0 | Y38: =$S38*'SAL.30%'!AK$128 -> 0 | Z38: =$S38*'SAL.30%'!AL$128 -> 0 | AA38: =$S38*'SAL.30%'!AM$128 -> 0 | AB38: =$S38*'SAL.30%'!AN$128 -> 0
O39: =SUM(O11:O38) -> 0 | P39: =SUM(P11:P38) -> 0 | Q39: =SUM(Q11:Q38) -> 0 | R39: =SUM(R11:R38) -> 0 | S39: =SUM(S11:S38) -> 0 | T39: =SUM(T11:T38) -> 0 | U39: 0 | V39: 0 | W39: 0 | X39: 0 | Y39: 0 | Z39: 0 | AA39: 0 | AB39: 0 | AC39: =AD39/1.22 -> 0 | AD39: =SUM(T39:AB39) -> 0
K40: Imponibile | L40: =SUM(L11:L38) -> 0 | AC40: Imponibile Fatturato | AD40: Totale Fatture Tecnici
K41: IVA | L41: =SUM(O11:O38) -> 0 | T41: =IF(T9="SI",T39,0) -> 0 | U41: 0 | V41: 0 | W41: 0 | X41: 0 | Y41: 0 | Z41: 0 | AA41: 0 | AB41: 0 | AC41: =AD41/1.22 -> 0 | AD41: =SUM(T41:AB41) -> 0
K42: Totale | L42: =SUM(L40:L41) -> 0
K43: Sconto in Fattura | L43: =-R39 -> 0 | AB43: Spese Tecniche non Fatturate direttamente dai Tecnici | AC43: =AC39-AC41 -> 0 | AD43: =AD39-AD41 -> 0
K44: Netto a Pagare | L44: =IF(L42+L43<>0,L42+L43,"0,00 €") -> 0,00 €
B46: Pagamento
B47: Note
B49: ©2021 SIM srl - www.madosoft.it | M49: Pag. 1/1
B52: Fornitore | I52: Cliente | O52: Fattura Tecnico
B53: Indirizzo | I53: Indirizzo
B54: Città | I54: Città
B55: CF./P.Iva | I55: C.F. :
B56: Tel./Mail
B57: FATTURA N. | F57: VS. DARE PER
B58: DATA | D58: 2021-01-12
B59: Cessione del 100% (sconto in fattura praticato ai sensi dell'art.121 DL.34/2020 e smi
C60: DESCRIZIONE | H60: ONORARIO | K60: % Cassa | L60: IMPONIBILE | M60: %IVA | O60: Importo Iva | P60: Tot.Rigo
B61: =IF(C61<>"",1,"") ->  | L61: =H61*(1+K61) -> 0 | O61: =IF(L61<>"",L61*M61,0) -> 0 | P61: =IF(L61<>"",O61+L61,0) -> 0
B62: =IF(C62<>"",B61+1,"") ->  | L62: =H62*(1+K62) -> 0 | O62: =IF(L62<>"",L62*M62,0) -> 0 | P62: =IF(L62<>"",O62+L62,0) -> 0
L63: 0 | O63: 0 | P63: =IF(L63<>"",O63+L63,0) -> 0
L64: 0 | O64: 0 | P64: 0
L65: 0 | O65: 0 | P65: 0
L66: 0 | O66: 0 | P66: 0
L67: 0 | O67: 0 | P67: 0
L68: 0 | O68: 0 | P68: 0
L69: 0 | O69: 0 | P69: 0
L70: 0 | O70: 0 | P70: 0
L71: 0 | O71: 0 | P71: 0
L72: 0 | O72: 0 | P72: 0
L73: 0 | O73: 0 | P73: 0
L74: 0 | O74: 0 | P74: 0
L75: 0 | O75: 0 | P75: 0
L76: 0 | O76: 0 | P76: 0
L77: 0 | O77: 0 | P77: 0
L78: 0 | O78: 0 | P78: 0
L79: 0 | O79: 0 | P79: 0
L80: 0 | O80: 0 | P80: 0
L81: 0 | O81: 0 | P81: 0
L82: 0 | O82: 0 | P82: 0
L83: 0 | O83: 0 | P83: 0
L84: 0 | O84: 0 | P84: 0
L85: 0 | O85: 0 | P85: 0
L86: 0 | O86: 0 | P86: 0
L87: 0 | O87: 0 | P87: 0
L88: 0 | O88: 0 | P88: 0
O89: =SUM(O61:O88) -> 0 | P89: =SUM(P61:P88) -> 0
K90: Imponibile | L90: =SUM(L61:L88) -> 0
K91: IVA | L91: =SUM(O61:O88) -> 0
K92: Totale | L92: =SUM(L90:M91) -> 0
K93: Sconto in Fattura | L93: =-SUM(P61:P88) -> 0
K94: Netto a Pagare | L94: =IF(L92+L93<>0,L92+L93,"0,00 €") -> 0,00 €
B96: Pagamento
B97: Note
M99: Pag. 1/1
Q110: Spesa Ammessa
Q111: 0
Q112: 0
Q113: 0
Q114: 0
Q115: 0
Q116: 0
Q117: 0
Q118: 0
Q119: 0
Q120: 0
Q121: 0
Q122: 0
Q123: 0
Q124: 0
Q125: 0
Q126: 0
Q127: 0
Q128: 0
Q129: 0
Q130: 0
Q131: 0
Q132: 0
Q133: 0
Q134: 0
Q135: 0
Q136: 0
Q137: 0
Q138: 0
Q139: =SUM(Q111:Q138) -> 0
Q160: Spesa Ammessa
Q161: 0
Q162: 0
Q163: 0
Q164: 0
Q165: 0
Q166: 0
Q167: 0
Q168: 0
Q169: 0
Q170: 0
Q171: 0
Q172: 0
Q173: 0
Q174: 0
Q175: 0
Q176: 0
Q177: 0
Q178: 0
Q179: 0
Q180: 0
Q181: 0
Q182: 0
Q183: 0
Q184: 0
Q185: 0
Q186: 0
Q187: 0
Q188: 0
Q189: =SUM(Q161:Q188) -> 0
